Workbook

Sheet List1
A1: Pořadí | B1: Jméno | C1: Body 8 nej | D1: Body celkem | E1: 1. NAMCC 6.5. | G1: UNO 11.6 | I1: Hrádek | K1: L.Boh. | M1: Na Vrších | O1: Osyčina | Q1: Sv.Hamry | S1: Svratka | U1: 9. | W1: 10. | Y1: 11. | AA1: 12. | AC1: 13. | AE1: 14. | AG1: 15. | AI1: 16. | AK1: 17. | AM1: 18. | AP1: Setřídit: Ctrl+Shift+S
E2: Poř. | F2: Body | G2: Poř. | H2: Body | I2: Poř. | J2: Body | K2: Poř. | L2: Body | M2: Poř. | N2: Body | O2: Poř. | P2: Body | Q2: Poř. | R2: Body | S2: Poř. | T2: Body | U2: Poř. | V2: Body | W2: Poř. | X2: Body | Y2: Poř. | Z2: Body | AA2: Poř. | AB2: Body | AC2: Poř. | AD2: Body | AE2: Poř. | AF2: Body | AG2: Poř. | AH2: Body | AI2: Poř. | AJ2: Body | AK2: Poř. | AL2: Body | AM2: Poř. | AN2: Body
A3: =IF(ISBLANK(B3),"",1) -> 1 | B3: Stránský Bohumil | C3: =IF(IFERROR(LARGE(F3:AN3,1),0)+IFERROR(LARGE(F3:AN3,2),0)+IFERROR(LARGE(F3:AN3,3),0)+IFERROR(LARGE(F3:AN3,4),0)+IFERROR(LARGE(F3:AN3,5),0)+IFERROR(LARGE(F3:AN3,6),0)+IFERROR(LARGE(F3:AN3,7),0)++IFERROR(LARGE(F3:AN3,8),0)=0,"",IFERROR(LARGE(F3:AN3,1),0)+IFERROR(LARGE(F3:AN3,2),0)+IFERROR(LARGE(F3:AN3,3),0)+IFERROR(LARGE(F3:AN3,4),0)+IFERROR(LARGE(F3:AN3,5),0)+IFERROR(LARGE(F3:AN3,6),0)+IFERROR(LARGE(F3:AN3,7),0)+IFERROR(LARGE(F3:AND3,8),0)) -> 200 | D3: =IF(SUM(F3,H3,J3,L3,N3,P3,R3,T3,V3,X3,Z3,AB3,AD3,AF3,AH3,AJ3,AL3,AN3)=0,"",SUM(F3,H3,J3,L3,N3,P3,R3,T3,V3,X3,Z3,AB3,AD3,AF3,AH3,AJ3,AL3,AN3)) -> 200 | E3: 1 | F3: =IF(ISBLANK(E3),"",IF(VALUE(E3)>89,1,VLOOKUP(VALUE(E3),List2!$A$1:'List2'!$B$90,2))) -> 200 | H3: =IF(ISBLANK(G3),"",IF(VALUE(G3)>89,1,VLOOKUP(VALUE(G3),List2!$A$1:'List2'!$B$90,2))) ->  | J3: =IF(ISBLANK(I3),"",IF(VALUE(I3)>89,1,VLOOKUP(VALUE(I3),List2!$A$1:'List2'!$B$90,2))) ->  | L3: =IF(ISBLANK(K3),"",IF(VALUE(K3)>89,1,VLOOKUP(VALUE(K3),List2!$A$1:'List2'!$B$90,2))) ->  | N3: =IF(ISBLANK(M3),"",IF(VALUE(M3)>89,1,VLOOKUP(VALUE(M3),List2!$A$1:'List2'!$B$90,2))) ->  | P3: =IF(ISBLANK(O3),"",IF(VALUE(O3)>89,1,VLOOKUP(VALUE(O3),List2!$A$1:'List2'!$B$90,2))) ->  | R3: =IF(ISBLANK(Q3),"",IF(VALUE(Q3)>89,1,VLOOKUP(VALUE(Q3),List2!$A$1:'List2'!$B$90,2))) ->  | T3: =IF(ISBLANK(S3),"",IF(VALUE(S3)>89,1,VLOOKUP(VALUE(S3),List2!$A$1:'List2'!$B$90,2))) ->  | V3: =IF(ISBLANK(U3),"",IF(VALUE(U3)>89,1,VLOOKUP(VALUE(U3),List2!$A$1:'List2'!$B$90,2))) ->  | X3: =IF(ISBLANK(W3),"",IF(VALUE(W3)>89,1,VLOOKUP(VALUE(W3),List2!$A$1:'List2'!$B$90,2))) ->  | Z3: =IF(ISBLANK(Y3),"",IF(VALUE(Y3)>89,1,VLOOKUP(VALUE(Y3),List2!$A$1:'List2'!$B$90,2))) ->  | AB3: =IF(ISBLANK(AA3),"",IF(VALUE(AA3)>89,1,VLOOKUP(VALUE(AA3),List2!$A$1:'List2'!$B$90,2))) ->  | AD3: =IF(ISBLANK(AC3),"",IF(VALUE(AC3)>89,1,VLOOKUP(VALUE(AC3),List2!$A$1:'List2'!$B$90,2))) ->  | AF3: =IF(ISBLANK(AE3),"",IF(VALUE(AE3)>89,1,VLOOKUP(VALUE(AE3),List2!$A$1:'List2'!$B$90,2))) ->  | AH3: =IF(ISBLANK(AG3),"",IF(VALUE(AG3)>89,1,VLOOKUP(VALUE(AG3),List2!$A$1:'List2'!$B$90,2))) ->  | AJ3: =IF(ISBLANK(AI3),"",IF(VALUE(AI3)>89,1,VLOOKUP(VALUE(AI3),List2!$A$1:'List2'!$B$90,2))) ->  | AL3: =IF(ISBLANK(AK3),"",IF(VALUE(AK3)>89,1,VLOOKUP(VALUE(AK3),List2!$A$1:'List2'!$B$90,2))) ->  | AN3: =IF(ISBLANK(AM3),"",IF(VALUE(AM3)>89,1,VLOOKUP(VALUE(AM3),List2!$A$1:'List2'!$B$90,2))) ->  | AP3: =IFERROR(LARGE(F3:AN3,1),0)+IFERROR(LARGE(F3:AN3,2),0)+IFERROR(LARGE(F3:AN3,3),0)+IFERROR(LARGE(F3:AN3,4),0)+IFERROR(LARGE(F3:AN3,5),0)+IFERROR(LARGE(F3:AN3,6),0)+IFERROR(LARGE(F3:AN3,7),0)+IFERROR(LARGE(F3:AN3,8),0) -> 200
A4: =IF(OR(ISBLANK(B4),A3=""),"",A3+1) -> 2 | B4: Tomeš Jiří | C4: 350 | D4: 350 | E4: 2 | F4: =IF(ISBLANK(E4),"",IF(VALUE(E4)>89,1,VLOOKUP(VALUE(E4),List2!$A$1:'List2'!$B$90,2))) -> 180 | G4: 3 | H4: =IF(ISBLANK(G4),"",IF(VALUE(G4)>89,1,VLOOKUP(VALUE(G4),List2!$A$1:'List2'!$B$90,2))) -> 170 | J4: =IF(ISBLANK(I4),"",IF(VALUE(I4)>89,1,VLOOKUP(VALUE(I4),List2!$A$1:'List2'!$B$90,2))) ->  | L4: =IF(ISBLANK(K4),"",IF(VALUE(K4)>89,1,VLOOKUP(VALUE(K4),List2!$A$1:'List2'!$B$90,2))) ->  | N4: =IF(ISBLANK(M4),"",IF(VALUE(M4)>89,1,VLOOKUP(VALUE(M4),List2!$A$1:'List2'!$B$90,2))) ->  | P4: =IF(ISBLANK(O4),"",IF(VALUE(O4)>89,1,VLOOKUP(VALUE(O4),List2!$A$1:'List2'!$B$90,2))) ->  | R4: =IF(ISBLANK(Q4),"",IF(VALUE(Q4)>89,1,VLOOKUP(VALUE(Q4),List2!$A$1:'List2'!$B$90,2))) ->  | T4: =IF(ISBLANK(S4),"",IF(VALUE(S4)>89,1,VLOOKUP(VALUE(S4),List2!$A$1:'List2'!$B$90,2))) ->  | V4: =IF(ISBLANK(U4),"",IF(VALUE(U4)>89,1,VLOOKUP(VALUE(U4),List2!$A$1:'List2'!$B$90,2))) ->  | X4: =IF(ISBLANK(W4),"",IF(VALUE(W4)>89,1,VLOOKUP(VALUE(W4),List2!$A$1:'List2'!$B$90,2))) ->  | Z4: =IF(ISBLANK(Y4),"",IF(VALUE(Y4)>89,1,VLOOKUP(VALUE(Y4),List2!$A$1:'List2'!$B$90,2))) ->  | AB4: =IF(ISBLANK(AA4),"",IF(VALUE(AA4)>89,1,VLOOKUP(VALUE(AA4),List2!$A$1:'List2'!$B$90,2))) ->  | AD4: =IF(ISBLANK(AC4),"",IF(VALUE(AC4)>89,1,VLOOKUP(VALUE(AC4),List2!$A$1:'List2'!$B$90,2))) ->  | AF4: =IF(ISBLANK(AE4),"",IF(VALUE(AE4)>89,1,VLOOKUP(VALUE(AE4),List2!$A$1:'List2'!$B$90,2))) ->  | AH4: =IF(ISBLANK(AG4),"",IF(VALUE(AG4)>89,1,VLOOKUP(VALUE(AG4),List2!$A$1:'List2'!$B$90,2))) ->  | AJ4: =IF(ISBLANK(AI4),"",IF(VALUE(AI4)>89,1,VLOOKUP(VALUE(AI4),List2!$A$1:'List2'!$B$90,2))) ->  | AL4: =IF(ISBLANK(AK4),"",IF(VALUE(AK4)>89,1,VLOOKUP(VALUE(AK4),List2!$A$1:'List2'!$B$90,2))) ->  | AN4: =IF(ISBLANK(AM4),"",IF(VALUE(AM4)>89,1,VLOOKUP(VALUE(AM4),List2!$A$1:'List2'!$B$90,2))) ->  | AP4: 350
A5: =IF(OR(ISBLANK(B5),A4=""),"",A4+1) -> 3 | B5: Sládek František | C5: 952 | D5: 952 | E5: 3 | F5: =IF(ISBLANK(E5),"",IF(VALUE(E5)>89,1,VLOOKUP(VALUE(E5),List2!$A$1:'List2'!$B$90,2))) -> 170 | G5: 4 | H5: =IF(ISBLANK(G5),"",IF(VALUE(G5)>89,1,VLOOKUP(VALUE(G5),List2!$A$1:'List2'!$B$90,2))) -> 162 | I5: 5 | J5: =IF(ISBLANK(I5),"",IF(VALUE(I5)>89,1,VLOOKUP(VALUE(I5),List2!$A$1:'List2'!$B$90,2))) -> 156 | K5: 1 | L5: =IF(ISBLANK(K5),"",IF(VALUE(K5)>89,1,VLOOKUP(VALUE(K5),List2!$A$1:'List2'!$B$90,2))) -> 200 | N5: =IF(ISBLANK(M5),"",IF(VALUE(M5)>89,1,VLOOKUP(VALUE(M5),List2!$A$1:'List2'!$B$90,2))) ->  | O5: 9 | P5: =IF(ISBLANK(O5),"",IF(VALUE(O5)>89,1,VLOOKUP(VALUE(O5),List2!$A$1:'List2'!$B$90,2))) -> 140 | Q5: 14 | R5: =IF(ISBLANK(Q5),"",IF(VALUE(Q5)>89,1,VLOOKUP(VALUE(Q5),List2!$A$1:'List2'!$B$90,2))) -> 124 | T5: =IF(ISBLANK(S5),"",IF(VALUE(S5)>89,1,VLOOKUP(VALUE(S5),List2!$A$1:'List2'!$B$90,2))) ->  | V5: =IF(ISBLANK(U5),"",IF(VALUE(U5)>89,1,VLOOKUP(VALUE(U5),List2!$A$1:'List2'!$B$90,2))) ->  | X5: =IF(ISBLANK(W5),"",IF(VALUE(W5)>89,1,VLOOKUP(VALUE(W5),List2!$A$1:'List2'!$B$90,2))) ->  | Z5: =IF(ISBLANK(Y5),"",IF(VALUE(Y5)>89,1,VLOOKUP(VALUE(Y5),List2!$A$1:'List2'!$B$90,2))) ->  | AB5: =IF(ISBLANK(AA5),"",IF(VALUE(AA5)>89,1,VLOOKUP(VALUE(AA5),List2!$A$1:'List2'!$B$90,2))) ->  | AD5: =IF(ISBLANK(AC5),"",IF(VALUE(AC5)>89,1,VLOOKUP(VALUE(AC5),List2!$A$1:'List2'!$B$90,2))) ->  | AF5: =IF(ISBLANK(AE5),"",IF(VALUE(AE5)>89,1,VLOOKUP(VALUE(AE5),List2!$A$1:'List2'!$B$90,2))) ->  | AH5: =IF(ISBLANK(AG5),"",IF(VALUE(AG5)>89,1,VLOOKUP(VALUE(AG5),List2!$A$1:'List2'!$B$90,2))) ->  | AJ5: =IF(ISBLANK(AI5),"",IF(VALUE(AI5)>89,1,VLOOKUP(VALUE(AI5),List2!$A$1:'List2'!$B$90,2))) ->  | AL5: =IF(ISBLANK(AK5),"",IF(VALUE(AK5)>89,1,VLOOKUP(VALUE(AK5),List2!$A$1:'List2'!$B$90,2))) ->  | AN5: =IF(ISBLANK(AM5),"",IF(VALUE(AM5)>89,1,VLOOKUP(VALUE(AM5),List2!$A$1:'List2'!$B$90,2))) ->  | AP5: 952
A6: 4 | B6: Vávra Jan | C6: 1254 | D6: 1251 | E6: 4 | F6: =IF(ISBLANK(E6),"",IF(VALUE(E6)>89,1,VLOOKUP(VALUE(E6),List2!$A$1:'List2'!$B$90,2))) -> 162 | G6: 6 | H6: =IF(ISBLANK(G6),"",IF(VALUE(G6)>89,1,VLOOKUP(VALUE(G6),List2!$A$1:'List2'!$B$90,2))) -> 152 | I6: 10 | J6: =IF(ISBLANK(I6),"",IF(VALUE(I6)>89,1,VLOOKUP(VALUE(I6),List2!$A$1:'List2'!$B$90,2))) -> 136 | K6: 5 | L6: =IF(ISBLANK(K6),"",IF(VALUE(K6)>89,1,VLOOKUP(VALUE(K6),List2!$A$1:'List2'!$B$90,2))) -> 156 | M6: 3 | N6: =IF(ISBLANK(M6),"",IF(VALUE(M6)>89,1,VLOOKUP(VALUE(M6),List2!$A$1:'List2'!$B$90,2))) -> 170 | O6: 2 | P6: =IF(ISBLANK(O6),"",IF(VALUE(O6)>89,1,VLOOKUP(VALUE(O6),List2!$A$1:'List2'!$B$90,2))) -> 180 | Q6: 11 | R6: =IF(ISBLANK(Q6),"",IF(VALUE(Q6)>89,1,VLOOKUP(VALUE(Q6),List2!$A$1:'List2'!$B$90,2))) -> 133 | S6: 4 | T6: =IF(ISBLANK(S6),"",IF(VALUE(S6)>89,1,VLOOKUP(VALUE(S6),List2!$A$1:'List2'!$B$90,2))) -> 162 | V6: =IF(ISBLANK(U6),"",IF(VALUE(U6)>89,1,VLOOKUP(VALUE(U6),List2!$A$1:'List2'!$B$90,2))) ->  | X6: =IF(ISBLANK(W6),"",IF(VALUE(W6)>89,1,VLOOKUP(VALUE(W6),List2!$A$1:'List2'!$B$90,2))) ->  | AB6: =IF(ISBLANK(AA6),"",IF(VALUE(AA6)>89,1,VLOOKUP(VALUE(AA6),List2!$A$1:'List2'!$B$90,2))) ->  | AD6: =IF(ISBLANK(AC6),"",IF(VALUE(AC6)>89,1,VLOOKUP(VALUE(AC6),List2!$A$1:'List2'!$B$90,2))) ->  | AF6: =IF(ISBLANK(AE6),"",IF(VALUE(AE6)>89,1,VLOOKUP(VALUE(AE6),List2!$A$1:'List2'!$B$90,2))) ->  | AH6: =IF(ISBLANK(AG6),"",IF(VALUE(AG6)>89,1,VLOOKUP(VALUE(AG6),List2!$A$1:'List2'!$B$90,2))) ->  | AJ6: =IF(ISBLANK(AI6),"",IF(VALUE(AI6)>89,1,VLOOKUP(VALUE(AI6),List2!$A$1:'List2'!$B$90,2))) ->  | AL6: =IF(ISBLANK(AK6),"",IF(VALUE(AK6)>89,1,VLOOKUP(VALUE(AK6),List2!$A$1:'List2'!$B$90,2))) ->  | AN6: =IF(ISBLANK(AM6),"",IF(VALUE(AM6)>89,1,VLOOKUP(VALUE(AM6),List2!$A$1:'List2'!$B$90,2))) ->  | AP6: 1251
A7: 5 | B7: Klacl Pavel | C7: 292 | D7: 292 | E7: 5 | F7: =IF(ISBLANK(E7),"",IF(VALUE(E7)>89,1,VLOOKUP(VALUE(E7),List2!$A$1:'List2'!$B$90,2))) -> 156 | G7: 10 | H7: =IF(ISBLANK(G7),"",IF(VALUE(G7)>89,1,VLOOKUP(VALUE(G7),List2!$A$1:'List2'!$B$90,2))) -> 136 | J7: =IF(ISBLANK(I7),"",IF(VALUE(I7)>89,1,VLOOKUP(VALUE(I7),List2!$A$1:'List2'!$B$90,2))) ->  | L7: =IF(ISBLANK(K7),"",IF(VALUE(K7)>89,1,VLOOKUP(VALUE(K7),List2!$A$1:'List2'!$B$90,2))) ->  | N7: =IF(ISBLANK(M7),"",IF(VALUE(M7)>89,1,VLOOKUP(VALUE(M7),List2!$A$1:'List2'!$B$90,2))) ->  | P7: =IF(ISBLANK(O7),"",IF(VALUE(O7)>89,1,VLOOKUP(VALUE(O7),List2!$A$1:'List2'!$B$90,2))) ->  | R7: =IF(ISBLANK(Q7),"",IF(VALUE(Q7)>89,1,VLOOKUP(VALUE(Q7),List2!$A$1:'List2'!$B$90,2))) ->  | T7: =IF(ISBLANK(S7),"",IF(VALUE(S7)>89,1,VLOOKUP(VALUE(S7),List2!$A$1:'List2'!$B$90,2))) ->  | V7: =IF(ISBLANK(U7),"",IF(VALUE(U7)>89,1,VLOOKUP(VALUE(U7),List2!$A$1:'List2'!$B$90,2))) ->  | X7: =IF(ISBLANK(W7),"",IF(VALUE(W7)>89,1,VLOOKUP(VALUE(W7),List2!$A$1:'List2'!$B$90,2))) ->  | Z7: =IF(ISBLANK(Y7),"",IF(VALUE(Y7)>89,1,VLOOKUP(VALUE(Y7),List2!$A$1:'List2'!$B$90,2))) ->  | AB7: =IF(ISBLANK(AA7),"",IF(VALUE(AA7)>89,1,VLOOKUP(VALUE(AA7),List2!$A$1:'List2'!$B$90,2))) ->  | AD7: =IF(ISBLANK(AC7),"",IF(VALUE(AC7)>89,1,VLOOKUP(VALUE(AC7),List2!$A$1:'List2'!$B$90,2))) ->  | AF7: =IF(ISBLANK(AE7),"",IF(VALUE(AE7)>89,1,VLOOKUP(VALUE(AE7),List2!$A$1:'List2'!$B$90,2))) ->  | AH7: =IF(ISBLANK(AG7),"",IF(VALUE(AG7)>89,1,VLOOKUP(VALUE(AG7),List2!$A$1:'List2'!$B$90,2))) ->  | AJ7: =IF(ISBLANK(AI7),"",IF(VALUE(AI7)>89,1,VLOOKUP(VALUE(AI7),List2!$A$1:'List2'!$B$90,2))) ->  | AL7: =IF(ISBLANK(AK7),"",IF(VALUE(AK7)>89,1,VLOOKUP(VALUE(AK7),List2!$A$1:'List2'!$B$90,2))) ->  | AN7: =IF(ISBLANK(AM7),"",IF(VALUE(AM7)>89,1,VLOOKUP(VALUE(AM7),List2!$A$1:'List2'!$B$90,2))) ->  | AP7: 292
A8: 6 | B8: Martinek Milan | C8: 960 | D8: 960 | F8: =IF(ISBLANK(E8),"",IF(VALUE(E8)>89,1,VLOOKUP(VALUE(E8),List2!$A$1:'List2'!$B$90,2))) ->  | G8: 1 | H8: =IF(ISBLANK(G8),"",IF(VALUE(G8)>89,1,VLOOKUP(VALUE(G8),List2!$A$1:'List2'!$B$90,2))) -> 200 | I8: 2 | J8: =IF(ISBLANK(I8),"",IF(VALUE(I8)>89,1,VLOOKUP(VALUE(I8),List2!$A$1:'List2'!$B$90,2))) -> 180 | K8: 2 | L8: =IF(ISBLANK(K8),"",IF(VALUE(K8)>89,1,VLOOKUP(VALUE(K8),List2!$A$1:'List2'!$B$90,2))) -> 180 | M8: 1 | N8: =IF(ISBLANK(M8),"",IF(VALUE(M8)>89,1,VLOOKUP(VALUE(M8),List2!$A$1:'List2'!$B$90,2))) -> 200 | P8: =IF(ISBLANK(O8),"",IF(VALUE(O8)>89,1,VLOOKUP(VALUE(O8),List2!$A$1:'List2'!$B$90,2))) ->  | Q8: 1 | R8: =IF(ISBLANK(Q8),"",IF(VALUE(Q8)>89,1,VLOOKUP(VALUE(Q8),List2!$A$1:'List2'!$B$90,2))) -> 200 | T8: =IF(ISBLANK(S8),"",IF(VALUE(S8)>89,1,VLOOKUP(VALUE(S8),List2!$A$1:'List2'!$B$90,2))) ->  | V8: =IF(ISBLANK(U8),"",IF(VALUE(U8)>89,1,VLOOKUP(VALUE(U8),List2!$A$1:'List2'!$B$90,2))) ->  | X8: =IF(ISBLANK(W8),"",IF(VALUE(W8)>89,1,VLOOKUP(VALUE(W8),List2!$A$1:'List2'!$B$90,2))) ->  | Z8: =IF(ISBLANK(Y8),"",IF(VALUE(Y8)>89,1,VLOOKUP(VALUE(Y8),List2!$A$1:'List2'!$B$90,2))) ->  | AB8: =IF(ISBLANK(AA8),"",IF(VALUE(AA8)>89,1,VLOOKUP(VALUE(AA8),List2!$A$1:'List2'!$B$90,2))) ->  | AD8: =IF(ISBLANK(AC8),"",IF(VALUE(AC8)>89,1,VLOOKUP(VALUE(AC8),List2!$A$1:'List2'!$B$90,2))) ->  | AF8: =IF(ISBLANK(AE8),"",IF(VALUE(AE8)>89,1,VLOOKUP(VALUE(AE8),List2!$A$1:'List2'!$B$90,2))) ->  | AH8: =IF(ISBLANK(AG8),"",IF(VALUE(AG8)>89,1,VLOOKUP(VALUE(AG8),List2!$A$1:'List2'!$B$90,2))) ->  | AJ8: =IF(ISBLANK(AI8),"",IF(VALUE(AI8)>89,1,VLOOKUP(VALUE(AI8),List2!$A$1:'List2'!$B$90,2))) ->  | AL8: =IF(ISBLANK(AK8),"",IF(VALUE(AK8)>89,1,VLOOKUP(VALUE(AK8),List2!$A$1:'List2'!$B$90,2))) ->  | AN8: =IF(ISBLANK(AM8),"",IF(VALUE(AM8)>89,1,VLOOKUP(VALUE(AM8),List2!$A$1:'List2'!$B$90,2))) ->  | AP8: 960
A9: 7 | B9: Mader Ivo | C9: 872 | D9: 872 | F9: =IF(ISBLANK(E9),"",IF(VALUE(E9)>89,1,VLOOKUP(VALUE(E9),List2!$A$1:'List2'!$B$90,2))) ->  | G9: 2 | H9: =IF(ISBLANK(G9),"",IF(VALUE(G9)>89,1,VLOOKUP(VALUE(G9),List2!$A$1:'List2'!$B$90,2))) -> 180 | I9: 1 | J9: =IF(ISBLANK(I9),"",IF(VALUE(I9)>89,1,VLOOKUP(VALUE(I9),List2!$A$1:'List2'!$B$90,2))) -> 200 | L9: =IF(ISBLANK(K9),"",IF(VALUE(K9)>89,1,VLOOKUP(VALUE(K9),List2!$A$1:'List2'!$B$90,2))) ->  | M9: 4 | N9: =IF(ISBLANK(M9),"",IF(VALUE(M9)>89,1,VLOOKUP(VALUE(M9),List2!$A$1:'List2'!$B$90,2))) -> 162 | O9: 12 | P9: =IF(ISBLANK(O9),"",IF(VALUE(O9)>89,1,VLOOKUP(VALUE(O9),List2!$A$1:'List2'!$B$90,2))) -> 130 | R9: =IF(ISBLANK(Q9),"",IF(VALUE(Q9)>89,1,VLOOKUP(VALUE(Q9),List2!$A$1:'List2'!$B$90,2))) ->  | S9: 1 | T9: =IF(ISBLANK(S9),"",IF(VALUE(S9)>89,1,VLOOKUP(VALUE(S9),List2!$A$1:'List2'!$B$90,2))) -> 200 | V9: =IF(ISBLANK(U9),"",IF(VALUE(U9)>89,1,VLOOKUP(VALUE(U9),List2!$A$1:'List2'!$B$90,2))) ->  | X9: =IF(ISBLANK(W9),"",IF(VALUE(W9)>89,1,VLOOKUP(VALUE(W9),List2!$A$1:'List2'!$B$90,2))) ->  | Z9: =IF(ISBLANK(Y9),"",IF(VALUE(Y9)>89,1,VLOOKUP(VALUE(Y9),List2!$A$1:'List2'!$B$90,2))) ->  | AB9: =IF(ISBLANK(AA9),"",IF(VALUE(AA9)>89,1,VLOOKUP(VALUE(AA9),List2!$A$1:'List2'!$B$90,2))) ->  | AD9: =IF(ISBLANK(AC9),"",IF(VALUE(AC9)>89,1,VLOOKUP(VALUE(AC9),List2!$A$1:'List2'!$B$90,2))) ->  | AF9: =IF(ISBLANK(AE9),"",IF(VALUE(AE9)>89,1,VLOOKUP(VALUE(AE9),List2!$A$1:'List2'!$B$90,2))) ->  | AH9: =IF(ISBLANK(AG9),"",IF(VALUE(AG9)>89,1,VLOOKUP(VALUE(AG9),List2!$A$1:'List2'!$B$90,2))) ->  | AJ9: =IF(ISBLANK(AI9),"",IF(VALUE(AI9)>89,1,VLOOKUP(VALUE(AI9),List2!$A$1:'List2'!$B$90,2))) ->  | AL9: =IF(ISBLANK(AK9),"",IF(VALUE(AK9)>89,1,VLOOKUP(VALUE(AK9),List2!$A$1:'List2'!$B$90,2))) ->  | AN9: =IF(ISBLANK(AM9),"",IF(VALUE(AM9)>89,1,VLOOKUP(VALUE(AM9),List2!$A$1:'List2'!$B$90,2))) ->  | AP9: 872
A10: 8 | B10: Fergl Jaroslav | C10: 798 | D10: 798 | F10: =IF(ISBLANK(E10),"",IF(VALUE(E10)>89,1,VLOOKUP(VALUE(E10),List2!$A$1:'List2'!$B$90,2))) ->  | G10: 5 | H10: =IF(ISBLANK(G10),"",IF(VALUE(G10)>89,1,VLOOKUP(VALUE(G10),List2!$A$1:'List2'!$B$90,2))) -> 156 | I10: 8 | J10: =IF(ISBLANK(I10),"",IF(VALUE(I10)>89,1,VLOOKUP(VALUE(I10),List2!$A$1:'List2'!$B$90,2))) -> 144 | K10: 4 | L10: =IF(ISBLANK(K10),"",IF(VALUE(K10)>89,1,VLOOKUP(VALUE(K10),List2!$A$1:'List2'!$B$90,2))) -> 162 | M10: 2 | N10: =IF(ISBLANK(M10),"",IF(VALUE(M10)>89,1,VLOOKUP(VALUE(M10),List2!$A$1:'List2'!$B$90,2))) -> 180 | P10: =IF(ISBLANK(O10),"",IF(VALUE(O10)>89,1,VLOOKUP(VALUE(O10),List2!$A$1:'List2'!$B$90,2))) ->  | Q10: 5 | R10: =IF(ISBLANK(Q10),"",IF(VALUE(Q10)>89,1,VLOOKUP(VALUE(Q10),List2!$A$1:'List2'!$B$90,2))) -> 156 | T10: =IF(ISBLANK(S10),"",IF(VALUE(S10)>89,1,VLOOKUP(VALUE(S10),List2!$A$1:'List2'!$B$90,2))) ->  | V10: =IF(ISBLANK(U10),"",IF(VALUE(U10)>89,1,VLOOKUP(VALUE(U10),List2!$A$1:'List2'!$B$90,2))) ->  | X10: =IF(ISBLANK(W10),"",IF(VALUE(W10)>89,1,VLOOKUP(VALUE(W10),List2!$A$1:'List2'!$B$90,2))) ->  | Z10: =IF(ISBLANK(Y10),"",IF(VALUE(Y10)>89,1,VLOOKUP(VALUE(Y10),List2!$A$1:'List2'!$B$90,2))) ->  | AB10: =IF(ISBLANK(AA10),"",IF(VALUE(AA10)>89,1,VLOOKUP(VALUE(AA10),List2!$A$1:'List2'!$B$90,2))) ->  | AD10: =IF(ISBLANK(AC10),"",IF(VALUE(AC10)>89,1,VLOOKUP(VALUE(AC10),List2!$A$1:'List2'!$B$90,2))) ->  | AF10: =IF(ISBLANK(AE10),"",IF(VALUE(AE10)>89,1,VLOOKUP(VALUE(AE10),List2!$A$1:'List2'!$B$90,2))) ->  | AH10: =IF(ISBLANK(AG10),"",IF(VALUE(AG10)>89,1,VLOOKUP(VALUE(AG10),List2!$A$1:'List2'!$B$90,2))) ->  | AJ10: =IF(ISBLANK(AI10),"",IF(VALUE(AI10)>89,1,VLOOKUP(VALUE(AI10),List2!$A$1:'List2'!$B$90,2))) ->  | AL10: =IF(ISBLANK(AK10),"",IF(VALUE(AK10)>89,1,VLOOKUP(VALUE(AK10),List2!$A$1:'List2'!$B$90,2))) ->  | AN10: =IF(ISBLANK(AM10),"",IF(VALUE(AM10)>89,1,VLOOKUP(VALUE(AM10),List2!$A$1:'List2'!$B$90,2))) ->  | AP10: 798
A11: 9 | B11: Kolář Petr | C11: 310 | D11: 310 | F11: =IF(ISBLANK(E11),"",IF(VALUE(E11)>89,1,VLOOKUP(VALUE(E11),List2!$A$1:'List2'!$B$90,2))) ->  | G11: 7 | H11: =IF(ISBLANK(G11),"",IF(VALUE(G11)>89,1,VLOOKUP(VALUE(G11),List2!$A$1:'List2'!$B$90,2))) -> 148 | J11: =IF(ISBLANK(I11),"",IF(VALUE(I11)>89,1,VLOOKUP(VALUE(I11),List2!$A$1:'List2'!$B$90,2))) ->  | L11: =IF(ISBLANK(K11),"",IF(VALUE(K11)>89,1,VLOOKUP(VALUE(K11),List2!$A$1:'List2'!$B$90,2))) ->  | N11: =IF(ISBLANK(M11),"",IF(VALUE(M11)>89,1,VLOOKUP(VALUE(M11),List2!$A$1:'List2'!$B$90,2))) ->  | O11: 4 | P11: =IF(ISBLANK(O11),"",IF(VALUE(O11)>89,1,VLOOKUP(VALUE(O11),List2!$A$1:'List2'!$B$90,2))) -> 162 | R11: =IF(ISBLANK(Q11),"",IF(VALUE(Q11)>89,1,VLOOKUP(VALUE(Q11),List2!$A$1:'List2'!$B$90,2))) ->  | T11: =IF(ISBLANK(S11),"",IF(VALUE(S11)>89,1,VLOOKUP(VALUE(S11),List2!$A$1:'List2'!$B$90,2))) ->  | V11: =IF(ISBLANK(U11),"",IF(VALUE(U11)>89,1,VLOOKUP(VALUE(U11),List2!$A$1:'List2'!$B$90,2))) ->  | X11: =IF(ISBLANK(W11),"",IF(VALUE(W11)>89,1,VLOOKUP(VALUE(W11),List2!$A$1:'List2'!$B$90,2))) ->  | Z11: =IF(ISBLANK(Y11),"",IF(VALUE(Y11)>89,1,VLOOKUP(VALUE(Y11),List2!$A$1:'List2'!$B$90,2))) ->  | AB11: =IF(ISBLANK(AA11),"",IF(VALUE(AA11)>89,1,VLOOKUP(VALUE(AA11),List2!$A$1:'List2'!$B$90,2))) ->  | AD11: =IF(ISBLANK(AC11),"",IF(VALUE(AC11)>89,1,VLOOKUP(VALUE(AC11),List2!$A$1:'List2'!$B$90,2))) ->  | AF11: =IF(ISBLANK(AE11),"",IF(VALUE(AE11)>89,1,VLOOKUP(VALUE(AE11),List2!$A$1:'List2'!$B$90,2))) ->  | AH11: =IF(ISBLANK(AG11),"",IF(VALUE(AG11)>89,1,VLOOKUP(VALUE(AG11),List2!$A$1:'List2'!$B$90,2))) ->  | AJ11: =IF(ISBLANK(AI11),"",IF(VALUE(AI11)>89,1,VLOOKUP(VALUE(AI11),List2!$A$1:'List2'!$B$90,2))) ->  | AL11: =IF(ISBLANK(AK11),"",IF(VALUE(AK11)>89,1,VLOOKUP(VALUE(AK11),List2!$A$1:'List2'!$B$90,2))) ->  | AN11: =IF(ISBLANK(AM11),"",IF(VALUE(AM11)>89,1,VLOOKUP(VALUE(AM11),List2!$A$1:'List2'!$B$90,2))) ->  | AP11: 310
A12: 10 | B12: Baculák Zbyňěk | C12: 288 | D12: 288 | F12: =IF(ISBLANK(E12),"",IF(VALUE(E12)>89,1,VLOOKUP(VALUE(E12),List2!$A$1:'List2'!$B$90,2))) ->  | G12: 8 | H12: =IF(ISBLANK(G12),"",IF(VALUE(G12)>89,1,VLOOKUP(VALUE(G12),List2!$A$1:'List2'!$B$90,2))) -> 144 | J12: =IF(ISBLANK(I12),"",IF(VALUE(I12)>89,1,VLOOKUP(VALUE(I12),List2!$A$1:'List2'!$B$90,2))) ->  | L12: =IF(ISBLANK(K12),"",IF(VALUE(K12)>89,1,VLOOKUP(VALUE(K12),List2!$A$1:'List2'!$B$90,2))) ->  | N12: =IF(ISBLANK(M12),"",IF(VALUE(M12)>89,1,VLOOKUP(VALUE(M12),List2!$A$1:'List2'!$B$90,2))) ->  | O12: 8 | P12: =IF(ISBLANK(O12),"",IF(VALUE(O12)>89,1,VLOOKUP(VALUE(O12),List2!$A$1:'List2'!$B$90,2))) -> 144 | R12: =IF(ISBLANK(Q12),"",IF(VALUE(Q12)>89,1,VLOOKUP(VALUE(Q12),List2!$A$1:'List2'!$B$90,2))) ->  | T12: =IF(ISBLANK(S12),"",IF(VALUE(S12)>89,1,VLOOKUP(VALUE(S12),List2!$A$1:'List2'!$B$90,2))) ->  | V12: =IF(ISBLANK(U12),"",IF(VALUE(U12)>89,1,VLOOKUP(VALUE(U12),List2!$A$1:'List2'!$B$90,2))) ->  | X12: =IF(ISBLANK(W12),"",IF(VALUE(W12)>89,1,VLOOKUP(VALUE(W12),List2!$A$1:'List2'!$B$90,2))) ->  | Z12: =IF(ISBLANK(Y12),"",IF(VALUE(Y12)>89,1,VLOOKUP(VALUE(Y12),List2!$A$1:'List2'!$B$90,2))) ->  | AB12: =IF(ISBLANK(AA12),"",IF(VALUE(AA12)>89,1,VLOOKUP(VALUE(AA12),List2!$A$1:'List2'!$B$90,2))) ->  | AD12: =IF(ISBLANK(AC12),"",IF(VALUE(AC12)>89,1,VLOOKUP(VALUE(AC12),List2!$A$1:'List2'!$B$90,2))) ->  | AF12: =IF(ISBLANK(AE12),"",IF(VALUE(AE12)>89,1,VLOOKUP(VALUE(AE12),List2!$A$1:'List2'!$B$90,2))) ->  | AH12: =IF(ISBLANK(AG12),"",IF(VALUE(AG12)>89,1,VLOOKUP(VALUE(AG12),List2!$A$1:'List2'!$B$90,2))) ->  | AJ12: =IF(ISBLANK(AI12),"",IF(VALUE(AI12)>89,1,VLOOKUP(VALUE(AI12),List2!$A$1:'List2'!$B$90,2))) ->  | AL12: =IF(ISBLANK(AK12),"",IF(VALUE(AK12)>89,1,VLOOKUP(VALUE(AK12),List2!$A$1:'List2'!$B$90,2))) ->  | AN12: =IF(ISBLANK(AM12),"",IF(VALUE(AM12)>89,1,VLOOKUP(VALUE(AM12),List2!$A$1:'List2'!$B$90,2))) ->  | AP12: 288
A13: 11 | B13: Formánek Martin | C13: 140 | D13: 140 | F13: =IF(ISBLANK(E13),"",IF(VALUE(E13)>89,1,VLOOKUP(VALUE(E13),List2!$A$1:'List2'!$B$90,2))) ->  | G13: 9 | H13: =IF(ISBLANK(G13),"",IF(VALUE(G13)>89,1,VLOOKUP(VALUE(G13),List2!$A$1:'List2'!$B$90,2))) -> 140 | J13: =IF(ISBLANK(I13),"",IF(VALUE(I13)>89,1,VLOOKUP(VALUE(I13),List2!$A$1:'List2'!$B$90,2))) ->  | L13: =IF(ISBLANK(K13),"",IF(VALUE(K13)>89,1,VLOOKUP(VALUE(K13),List2!$A$1:'List2'!$B$90,2))) ->  | N13: =IF(ISBLANK(M13),"",IF(VALUE(M13)>89,1,VLOOKUP(VALUE(M13),List2!$A$1:'List2'!$B$90,2))) ->  | P13: =IF(ISBLANK(O13),"",IF(VALUE(O13)>89,1,VLOOKUP(VALUE(O13),List2!$A$1:'List2'!$B$90,2))) ->  | R13: =IF(ISBLANK(Q13),"",IF(VALUE(Q13)>89,1,VLOOKUP(VALUE(Q13),List2!$A$1:'List2'!$B$90,2))) ->  | T13: =IF(ISBLANK(S13),"",IF(VALUE(S13)>89,1,VLOOKUP(VALUE(S13),List2!$A$1:'List2'!$B$90,2))) ->  | V13: =IF(ISBLANK(U13),"",IF(VALUE(U13)>89,1,VLOOKUP(VALUE(U13),List2!$A$1:'List2'!$B$90,2))) ->  | X13: =IF(ISBLANK(W13),"",IF(VALUE(W13)>89,1,VLOOKUP(VALUE(W13),List2!$A$1:'List2'!$B$90,2))) ->  | Z13: =IF(ISBLANK(Y13),"",IF(VALUE(Y13)>89,1,VLOOKUP(VALUE(Y13),List2!$A$1:'List2'!$B$90,2))) ->  | AB13: =IF(ISBLANK(AA13),"",IF(VALUE(AA13)>89,1,VLOOKUP(VALUE(AA13),List2!$A$1:'List2'!$B$90,2))) ->  | AD13: =IF(ISBLANK(AC13),"",IF(VALUE(AC13)>89,1,VLOOKUP(VALUE(AC13),List2!$A$1:'List2'!$B$90,2))) ->  | AF13: =IF(ISBLANK(AE13),"",IF(VALUE(AE13)>89,1,VLOOKUP(VALUE(AE13),List2!$A$1:'List2'!$B$90,2))) ->  | AH13: =IF(ISBLANK(AG13),"",IF(VALUE(AG13)>89,1,VLOOKUP(VALUE(AG13),List2!$A$1:'List2'!$B$90,2))) ->  | AJ13: =IF(ISBLANK(AI13),"",IF(VALUE(AI13)>89,1,VLOOKUP(VALUE(AI13),List2!$A$1:'List2'!$B$90,2))) ->  | AL13: =IF(ISBLANK(AK13),"",IF(VALUE(AK13)>89,1,VLOOKUP(VALUE(AK13),List2!$A$1:'List2'!$B$90,2))) ->  | AN13: =IF(ISBLANK(AM13),"",IF(VALUE(AM13)>89,1,VLOOKUP(VALUE(AM13),List2!$A$1:'List2'!$B$90,2))) ->  | AP13: 140
A14: 12 | B14: Chládek Miloš | C14: 133 | D14: 133 | F14: =IF(ISBLANK(E14),"",IF(VALUE(E14)>89,1,VLOOKUP(VALUE(E14),List2!$A$1:'List2'!$B$90,2))) ->  | G14: 11 | H14: =IF(ISBLANK(G14),"",IF(VALUE(G14)>89,1,VLOOKUP(VALUE(G14),List2!$A$1:'List2'!$B$90,2))) -> 133 | J14: =IF(ISBLANK(I14),"",IF(VALUE(I14)>89,1,VLOOKUP(VALUE(I14),List2!$A$1:'List2'!$B$90,2))) ->  | L14: =IF(ISBLANK(K14),"",IF(VALUE(K14)>89,1,VLOOKUP(VALUE(K14),List2!$A$1:'List2'!$B$90,2))) ->  | N14: =IF(ISBLANK(M14),"",IF(VALUE(M14)>89,1,VLOOKUP(VALUE(M14),List2!$A$1:'List2'!$B$90,2))) ->  | P14: =IF(ISBLANK(O14),"",IF(VALUE(O14)>89,1,VLOOKUP(VALUE(O14),List2!$A$1:'List2'!$B$90,2))) ->  | R14: =IF(ISBLANK(Q14),"",IF(VALUE(Q14)>89,1,VLOOKUP(VALUE(Q14),List2!$A$1:'List2'!$B$90,2))) ->  | T14: =IF(ISBLANK(S14),"",IF(VALUE(S14)>89,1,VLOOKUP(VALUE(S14),List2!$A$1:'List2'!$B$90,2))) ->  | V14: =IF(ISBLANK(U14),"",IF(VALUE(U14)>89,1,VLOOKUP(VALUE(U14),List2!$A$1:'List2'!$B$90,2))) ->  | X14: =IF(ISBLANK(W14),"",IF(VALUE(W14)>89,1,VLOOKUP(VALUE(W14),List2!$A$1:'List2'!$B$90,2))) ->  | Z14: =IF(ISBLANK(Y14),"",IF(VALUE(Y14)>89,1,VLOOKUP(VALUE(Y14),List2!$A$1:'List2'!$B$90,2))) ->  | AB14: =IF(ISBLANK(AA14),"",IF(VALUE(AA14)>89,1,VLOOKUP(VALUE(AA14),List2!$A$1:'List2'!$B$90,2))) ->  | AD14: =IF(ISBLANK(AC14),"",IF(VALUE(AC14)>89,1,VLOOKUP(VALUE(AC14),List2!$A$1:'List2'!$B$90,2))) ->  | AF14: =IF(ISBLANK(AE14),"",IF(VALUE(AE14)>89,1,VLOOKUP(VALUE(AE14),List2!$A$1:'List2'!$B$90,2))) ->  | AH14: =IF(ISBLANK(AG14),"",IF(VALUE(AG14)>89,1,VLOOKUP(VALUE(AG14),List2!$A$1:'List2'!$B$90,2))) ->  | AJ14: =IF(ISBLANK(AI14),"",IF(VALUE(AI14)>89,1,VLOOKUP(VALUE(AI14),List2!$A$1:'List2'!$B$90,2))) ->  | AL14: =IF(ISBLANK(AK14),"",IF(VALUE(AK14)>89,1,VLOOKUP(VALUE(AK14),List2!$A$1:'List2'!$B$90,2))) ->  | AN14: =IF(ISBLANK(AM14),"",IF(VALUE(AM14)>89,1,VLOOKUP(VALUE(AM14),List2!$A$1:'List2'!$B$90,2))) ->  | AP14: 133
A15: 13 | B15: Holý Martin | C15: 170 | D15: 170 | F15: =IF(ISBLANK(E15),"",IF(VALUE(E15)>89,1,VLOOKUP(VALUE(E15),List2!$A$1:'List2'!$B$90,2))) ->  | H15: =IF(ISBLANK(G15),"",IF(VALUE(G15)>89,1,VLOOKUP(VALUE(G15),List2!$A$1:'List2'!$B$90,2))) ->  | I15: 3 | J15: =IF(ISBLANK(I15),"",IF(VALUE(I15)>89,1,VLOOKUP(VALUE(I15),List2!$A$1:'List2'!$B$90,2))) -> 170 | L15: =IF(ISBLANK(K15),"",IF(VALUE(K15)>89,1,VLOOKUP(VALUE(K15),List2!$A$1:'List2'!$B$90,2))) ->  | N15: =IF(ISBLANK(M15),"",IF(VALUE(M15)>89,1,VLOOKUP(VALUE(M15),List2!$A$1:'List2'!$B$90,2))) ->  | P15: =IF(ISBLANK(O15),"",IF(VALUE(O15)>89,1,VLOOKUP(VALUE(O15),List2!$A$1:'List2'!$B$90,2))) ->  | R15: =IF(ISBLANK(Q15),"",IF(VALUE(Q15)>89,1,VLOOKUP(VALUE(Q15),List2!$A$1:'List2'!$B$90,2))) ->  | T15: =IF(ISBLANK(S15),"",IF(VALUE(S15)>89,1,VLOOKUP(VALUE(S15),List2!$A$1:'List2'!$B$90,2))) ->  | V15: =IF(ISBLANK(U15),"",IF(VALUE(U15)>89,1,VLOOKUP(VALUE(U15),List2!$A$1:'List2'!$B$90,2))) ->  | X15: =IF(ISBLANK(W15),"",IF(VALUE(W15)>89,1,VLOOKUP(VALUE(W15),List2!$A$1:'List2'!$B$90,2))) ->  | Z15: =IF(ISBLANK(Y15),"",IF(VALUE(Y15)>89,1,VLOOKUP(VALUE(Y15),List2!$A$1:'List2'!$B$90,2))) ->  | AB15: =IF(ISBLANK(AA15),"",IF(VALUE(AA15)>89,1,VLOOKUP(VALUE(AA15),List2!$A$1:'List2'!$B$90,2))) ->  | AD15: =IF(ISBLANK(AC15),"",IF(VALUE(AC15)>89,1,VLOOKUP(VALUE(AC15),List2!$A$1:'List2'!$B$90,2))) ->  | AF15: =IF(ISBLANK(AE15),"",IF(VALUE(AE15)>89,1,VLOOKUP(VALUE(AE15),List2!$A$1:'List2'!$B$90,2))) ->  | AH15: =IF(ISBLANK(AG15),"",IF(VALUE(AG15)>89,1,VLOOKUP(VALUE(AG15),List2!$A$1:'List2'!$B$90,2))) ->  | AJ15: =IF(ISBLANK(AI15),"",IF(VALUE(AI15)>89,1,VLOOKUP(VALUE(AI15),List2!$A$1:'List2'!$B$90,2))) ->  | AL15: =IF(ISBLANK(AK15),"",IF(VALUE(AK15)>89,1,VLOOKUP(VALUE(AK15),List2!$A$1:'List2'!$B$90,2))) ->  | AN15: =IF(ISBLANK(AM15),"",IF(VALUE(AM15)>89,1,VLOOKUP(VALUE(AM15),List2!$A$1:'List2'!$B$90,2))) ->  | AP15: 170
A16: 14 | B16: Prosek Pavel | C16: 162 | D16: 162 | F16: =IF(ISBLANK(E16),"",IF(VALUE(E16)>89,1,VLOOKUP(VALUE(E16),List2!$A$1:'List2'!$B$90,2))) ->  | H16: =IF(ISBLANK(G16),"",IF(VALUE(G16)>89,1,VLOOKUP(VALUE(G16),List2!$A$1:'List2'!$B$90,2))) ->  | I16: 4 | J16: =IF(ISBLANK(I16),"",IF(VALUE(I16)>89,1,VLOOKUP(VALUE(I16),List2!$A$1:'List2'!$B$90,2))) -> 162 | L16: =IF(ISBLANK(K16),"",IF(VALUE(K16)>89,1,VLOOKUP(VALUE(K16),List2!$A$1:'List2'!$B$90,2))) ->  | N16: =IF(ISBLANK(M16),"",IF(VALUE(M16)>89,1,VLOOKUP(VALUE(M16),List2!$A$1:'List2'!$B$90,2))) ->  | P16: =IF(ISBLANK(O16),"",IF(VALUE(O16)>89,1,VLOOKUP(VALUE(O16),List2!$A$1:'List2'!$B$90,2))) ->  | R16: =IF(ISBLANK(Q16),"",IF(VALUE(Q16)>89,1,VLOOKUP(VALUE(Q16),List2!$A$1:'List2'!$B$90,2))) ->  | T16: =IF(ISBLANK(S16),"",IF(VALUE(S16)>89,1,VLOOKUP(VALUE(S16),List2!$A$1:'List2'!$B$90,2))) ->  | V16: =IF(ISBLANK(U16),"",IF(VALUE(U16)>89,1,VLOOKUP(VALUE(U16),List2!$A$1:'List2'!$B$90,2))) ->  | X16: =IF(ISBLANK(W16),"",IF(VALUE(W16)>89,1,VLOOKUP(VALUE(W16),List2!$A$1:'List2'!$B$90,2))) ->  | Z16: =IF(ISBLANK(Y16),"",IF(VALUE(Y16)>89,1,VLOOKUP(VALUE(Y16),List2!$A$1:'List2'!$B$90,2))) ->  | AB16: =IF(ISBLANK(AA16),"",IF(VALUE(AA16)>89,1,VLOOKUP(VALUE(AA16),List2!$A$1:'List2'!$B$90,2))) ->  | AD16: =IF(ISBLANK(AC16),"",IF(VALUE(AC16)>89,1,VLOOKUP(VALUE(AC16),List2!$A$1:'List2'!$B$90,2))) ->  | AF16: =IF(ISBLANK(AE16),"",IF(VALUE(AE16)>89,1,VLOOKUP(VALUE(AE16),List2!$A$1:'List2'!$B$90,2))) ->  | AH16: =IF(ISBLANK(AG16),"",IF(VALUE(AG16)>89,1,VLOOKUP(VALUE(AG16),List2!$A$1:'List2'!$B$90,2))) ->  | AJ16: =IF(ISBLANK(AI16),"",IF(VALUE(AI16)>89,1,VLOOKUP(VALUE(AI16),List2!$A$1:'List2'!$B$90,2))) ->  | AL16: =IF(ISBLANK(AK16),"",IF(VALUE(AK16)>89,1,VLOOKUP(VALUE(AK16),List2!$A$1:'List2'!$B$90,2))) ->  | AN16: =IF(ISBLANK(AM16),"",IF(VALUE(AM16)>89,1,VLOOKUP(VALUE(AM16),List2!$A$1:'List2'!$B$90,2))) ->  | AP16: 162
A17: 15 | B17: Vlček Jan | C17: 152 | D17: 152 | F17: =IF(ISBLANK(E17),"",IF(VALUE(E17)>89,1,VLOOKUP(VALUE(E17),List2!$A$1:'List2'!$B$90,2))) ->  | H17: =IF(ISBLANK(G17),"",IF(VALUE(G17)>89,1,VLOOKUP(VALUE(G17),List2!$A$1:'List2'!$B$90,2))) ->  | I17: 6 | J17: =IF(ISBLANK(I17),"",IF(VALUE(I17)>89,1,VLOOKUP(VALUE(I17),List2!$A$1:'List2'!$B$90,2))) -> 152 | L17: =IF(ISBLANK(K17),"",IF(VALUE(K17)>89,1,VLOOKUP(VALUE(K17),List2!$A$1:'List2'!$B$90,2))) ->  | N17: =IF(ISBLANK(M17),"",IF(VALUE(M17)>89,1,VLOOKUP(VALUE(M17),List2!$A$1:'List2'!$B$90,2))) ->  | P17: =IF(ISBLANK(O17),"",IF(VALUE(O17)>89,1,VLOOKUP(VALUE(O17),List2!$A$1:'List2'!$B$90,2))) ->  | R17: =IF(ISBLANK(Q17),"",IF(VALUE(Q17)>89,1,VLOOKUP(VALUE(Q17),List2!$A$1:'List2'!$B$90,2))) ->  | T17: =IF(ISBLANK(S17),"",IF(VALUE(S17)>89,1,VLOOKUP(VALUE(S17),List2!$A$1:'List2'!$B$90,2))) ->  | V17: =IF(ISBLANK(U17),"",IF(VALUE(U17)>89,1,VLOOKUP(VALUE(U17),List2!$A$1:'List2'!$B$90,2))) ->  | X17: =IF(ISBLANK(W17),"",IF(VALUE(W17)>89,1,VLOOKUP(VALUE(W17),List2!$A$1:'List2'!$B$90,2))) ->  | Z17: =IF(ISBLANK(Y17),"",IF(VALUE(Y17)>89,1,VLOOKUP(VALUE(Y17),List2!$A$1:'List2'!$B$90,2))) ->  | AB17: =IF(ISBLANK(AA17),"",IF(VALUE(AA17)>89,1,VLOOKUP(VALUE(AA17),List2!$A$1:'List2'!$B$90,2))) ->  | AD17: =IF(ISBLANK(AC17),"",IF(VALUE(AC17)>89,1,VLOOKUP(VALUE(AC17),List2!$A$1:'List2'!$B$90,2))) ->  | AF17: =IF(ISBLANK(AE17),"",IF(VALUE(AE17)>89,1,VLOOKUP(VALUE(AE17),List2!$A$1:'List2'!$B$90,2))) ->  | AH17: =IF(ISBLANK(AG17),"",IF(VALUE(AG17)>89,1,VLOOKUP(VALUE(AG17),List2!$A$1:'List2'!$B$90,2))) ->  | AJ17: =IF(ISBLANK(AI17),"",IF(VALUE(AI17)>89,1,VLOOKUP(VALUE(AI17),List2!$A$1:'List2'!$B$90,2))) ->  | AL17: =IF(ISBLANK(AK17),"",IF(VALUE(AK17)>89,1,VLOOKUP(VALUE(AK17),List2!$A$1:'List2'!$B$90,2))) ->  | AN17: =IF(ISBLANK(AM17),"",IF(VALUE(AM17)>89,1,VLOOKUP(VALUE(AM17),List2!$A$1:'List2'!$B$90,2))) ->  | AP17: 152
A18: 16 | B18: Horák Rudolf | C18: 148 | D18: 148 | F18: =IF(ISBLANK(E18),"",IF(VALUE(E18)>89,1,VLOOKUP(VALUE(E18),List2!$A$1:'List2'!$B$90,2))) ->  | H18: =IF(ISBLANK(G18),"",IF(VALUE(G18)>89,1,VLOOKUP(VALUE(G18),List2!$A$1:'List2'!$B$90,2))) ->  | I18: 7 | J18: =IF(ISBLANK(I18),"",IF(VALUE(I18)>89,1,VLOOKUP(VALUE(I18),List2!$A$1:'List2'!$B$90,2))) -> 148 | L18: =IF(ISBLANK(K18),"",IF(VALUE(K18)>89,1,VLOOKUP(VALUE(K18),List2!$A$1:'List2'!$B$90,2))) ->  | N18: =IF(ISBLANK(M18),"",IF(VALUE(M18)>89,1,VLOOKUP(VALUE(M18),List2!$A$1:'List2'!$B$90,2))) ->  | P18: =IF(ISBLANK(O18),"",IF(VALUE(O18)>89,1,VLOOKUP(VALUE(O18),List2!$A$1:'List2'!$B$90,2))) ->  | R18: =IF(ISBLANK(Q18),"",IF(VALUE(Q18)>89,1,VLOOKUP(VALUE(Q18),List2!$A$1:'List2'!$B$90,2))) ->  | T18: =IF(ISBLANK(S18),"",IF(VALUE(S18)>89,1,VLOOKUP(VALUE(S18),List2!$A$1:'List2'!$B$90,2))) ->  | V18: =IF(ISBLANK(U18),"",IF(VALUE(U18)>89,1,VLOOKUP(VALUE(U18),List2!$A$1:'List2'!$B$90,2))) ->  | X18: =IF(ISBLANK(W18),"",IF(VALUE(W18)>89,1,VLOOKUP(VALUE(W18),List2!$A$1:'List2'!$B$90,2))) ->  | Z18: =IF(ISBLANK(Y18),"",IF(VALUE(Y18)>89,1,VLOOKUP(VALUE(Y18),List2!$A$1:'List2'!$B$90,2))) ->  | AB18: =IF(ISBLANK(AA18),"",IF(VALUE(AA18)>89,1,VLOOKUP(VALUE(AA18),List2!$A$1:'List2'!$B$90,2))) ->  | AD18: =IF(ISBLANK(AC18),"",IF(VALUE(AC18)>89,1,VLOOKUP(VALUE(AC18),List2!$A$1:'List2'!$B$90,2))) ->  | AF18: =IF(ISBLANK(AE18),"",IF(VALUE(AE18)>89,1,VLOOKUP(VALUE(AE18),List2!$A$1:'List2'!$B$90,2))) ->  | AH18: =IF(ISBLANK(AG18),"",IF(VALUE(AG18)>89,1,VLOOKUP(VALUE(AG18),List2!$A$1:'List2'!$B$90,2))) ->  | AJ18: =IF(ISBLANK(AI18),"",IF(VALUE(AI18)>89,1,VLOOKUP(VALUE(AI18),List2!$A$1:'List2'!$B$90,2))) ->  | AL18: =IF(ISBLANK(AK18),"",IF(VALUE(AK18)>89,1,VLOOKUP(VALUE(AK18),List2!$A$1:'List2'!$B$90,2))) ->  | AN18: =IF(ISBLANK(AM18),"",IF(VALUE(AM18)>89,1,VLOOKUP(VALUE(AM18),List2!$A$1:'List2'!$B$90,2))) ->  | AP18: 148
A19: 17 | B19: Krýda Jiří | C19: 140 | D19: 140 | F19: =IF(ISBLANK(E19),"",IF(VALUE(E19)>89,1,VLOOKUP(VALUE(E19),List2!$A$1:'List2'!$B$90,2))) ->  | H19: =IF(ISBLANK(G19),"",IF(VALUE(G19)>89,1,VLOOKUP(VALUE(G19),List2!$A$1:'List2'!$B$90,2))) ->  | I19: 9 | J19: =IF(ISBLANK(I19),"",IF(VALUE(I19)>89,1,VLOOKUP(VALUE(I19),List2!$A$1:'List2'!$B$90,2))) -> 140 | L19: =IF(ISBLANK(K19),"",IF(VALUE(K19)>89,1,VLOOKUP(VALUE(K19),List2!$A$1:'List2'!$B$90,2))) ->  | N19: =IF(ISBLANK(M19),"",IF(VALUE(M19)>89,1,VLOOKUP(VALUE(M19),List2!$A$1:'List2'!$B$90,2))) ->  | P19: =IF(ISBLANK(O19),"",IF(VALUE(O19)>89,1,VLOOKUP(VALUE(O19),List2!$A$1:'List2'!$B$90,2))) ->  | R19: =IF(ISBLANK(Q19),"",IF(VALUE(Q19)>89,1,VLOOKUP(VALUE(Q19),List2!$A$1:'List2'!$B$90,2))) ->  | T19: =IF(ISBLANK(S19),"",IF(VALUE(S19)>89,1,VLOOKUP(VALUE(S19),List2!$A$1:'List2'!$B$90,2))) ->  | V19: =IF(ISBLANK(U19),"",IF(VALUE(U19)>89,1,VLOOKUP(VALUE(U19),List2!$A$1:'List2'!$B$90,2))) ->  | X19: =IF(ISBLANK(W19),"",IF(VALUE(W19)>89,1,VLOOKUP(VALUE(W19),List2!$A$1:'List2'!$B$90,2))) ->  | Z19: =IF(ISBLANK(Y19),"",IF(VALUE(Y19)>89,1,VLOOKUP(VALUE(Y19),List2!$A$1:'List2'!$B$90,2))) ->  | AB19: =IF(ISBLANK(AA19),"",IF(VALUE(AA19)>89,1,VLOOKUP(VALUE(AA19),List2!$A$1:'List2'!$B$90,2))) ->  | AD19: =IF(ISBLANK(AC19),"",IF(VALUE(AC19)>89,1,VLOOKUP(VALUE(AC19),List2!$A$1:'List2'!$B$90,2))) ->  | AF19: =IF(ISBLANK(AE19),"",IF(VALUE(AE19)>89,1,VLOOKUP(VALUE(AE19),List2!$A$1:'List2'!$B$90,2))) ->  | AH19: =IF(ISBLANK(AG19),"",IF(VALUE(AG19)>89,1,VLOOKUP(VALUE(AG19),List2!$A$1:'List2'!$B$90,2))) ->  | AJ19: =IF(ISBLANK(AI19),"",IF(VALUE(AI19)>89,1,VLOOKUP(VALUE(AI19),List2!$A$1:'List2'!$B$90,2))) ->  | AL19: =IF(ISBLANK(AK19),"",IF(VALUE(AK19)>89,1,VLOOKUP(VALUE(AK19),List2!$A$1:'List2'!$B$90,2))) ->  | AN19: =IF(ISBLANK(AM19),"",IF(VALUE(AM19)>89,1,VLOOKUP(VALUE(AM19),List2!$A$1:'List2'!$B$90,2))) ->  | AP19: 140
A20: 18 | B20: Rybář Vladimír | C20: 133 | D20: 133 | F20: =IF(ISBLANK(E20),"",IF(VALUE(E20)>89,1,VLOOKUP(VALUE(E20),List2!$A$1:'List2'!$B$90,2))) ->  | H20: =IF(ISBLANK(G20),"",IF(VALUE(G20)>89,1,VLOOKUP(VALUE(G20),List2!$A$1:'List2'!$B$90,2))) ->  | I20: 11 | J20: =IF(ISBLANK(I20),"",IF(VALUE(I20)>89,1,VLOOKUP(VALUE(I20),List2!$A$1:'List2'!$B$90,2))) -> 133 | L20: =IF(ISBLANK(K20),"",IF(VALUE(K20)>89,1,VLOOKUP(VALUE(K20),List2!$A$1:'List2'!$B$90,2))) ->  | N20: =IF(ISBLANK(M20),"",IF(VALUE(M20)>89,1,VLOOKUP(VALUE(M20),List2!$A$1:'List2'!$B$90,2))) ->  | P20: =IF(ISBLANK(O20),"",IF(VALUE(O20)>89,1,VLOOKUP(VALUE(O20),List2!$A$1:'List2'!$B$90,2))) ->  | R20: =IF(ISBLANK(Q20),"",IF(VALUE(Q20)>89,1,VLOOKUP(VALUE(Q20),List2!$A$1:'List2'!$B$90,2))) ->  | T20: =IF(ISBLANK(S20),"",IF(VALUE(S20)>89,1,VLOOKUP(VALUE(S20),List2!$A$1:'List2'!$B$90,2))) ->  | V20: =IF(ISBLANK(U20),"",IF(VALUE(U20)>89,1,VLOOKUP(VALUE(U20),List2!$A$1:'List2'!$B$90,2))) ->  | X20: =IF(ISBLANK(W20),"",IF(VALUE(W20)>89,1,VLOOKUP(VALUE(W20),List2!$A$1:'List2'!$B$90,2))) ->  | Z20: =IF(ISBLANK(Y20),"",IF(VALUE(Y20)>89,1,VLOOKUP(VALUE(Y20),List2!$A$1:'List2'!$B$90,2))) ->  | AB20: =IF(ISBLANK(AA20),"",IF(VALUE(AA20)>89,1,VLOOKUP(VALUE(AA20),List2!$A$1:'List2'!$B$90,2))) ->  | AD20: =IF(ISBLANK(AC20),"",IF(VALUE(AC20)>89,1,VLOOKUP(VALUE(AC20),List2!$A$1:'List2'!$B$90,2))) ->  | AF20: =IF(ISBLANK(AE20),"",IF(VALUE(AE20)>89,1,VLOOKUP(VALUE(AE20),List2!$A$1:'List2'!$B$90,2))) ->  | AH20: =IF(ISBLANK(AG20),"",IF(VALUE(AG20)>89,1,VLOOKUP(VALUE(AG20),List2!$A$1:'List2'!$B$90,2))) ->  | AJ20: =IF(ISBLANK(AI20),"",IF(VALUE(AI20)>89,1,VLOOKUP(VALUE(AI20),List2!$A$1:'List2'!$B$90,2))) ->  | AL20: =IF(ISBLANK(AK20),"",IF(VALUE(AK20)>89,1,VLOOKUP(VALUE(AK20),List2!$A$1:'List2'!$B$90,2))) ->  | AN20: =IF(ISBLANK(AM20),"",IF(VALUE(AM20)>89,1,VLOOKUP(VALUE(AM20),List2!$A$1:'List2'!$B$90,2))) ->  | AP20: 133
A21: 19 | B21: Drbal Petr | C21: 650 | D21: 650 | F21: =IF(ISBLANK(E21),"",IF(VALUE(E21)>89,1,VLOOKUP(VALUE(E21),List2!$A$1:'List2'!$B$90,2))) ->  | H21: =IF(ISBLANK(G21),"",IF(VALUE(G21)>89,1,VLOOKUP(VALUE(G21),List2!$A$1:'List2'!$B$90,2))) ->  | J21: =IF(ISBLANK(I21),"",IF(VALUE(I21)>89,1,VLOOKUP(VALUE(I21),List2!$A$1:'List2'!$B$90,2))) ->  | K21: 3 | L21: =IF(ISBLANK(K21),"",IF(VALUE(K21)>89,1,VLOOKUP(VALUE(K21),List2!$A$1:'List2'!$B$90,2))) -> 170 | N21: =IF(ISBLANK(M21),"",IF(VALUE(M21)>89,1,VLOOKUP(VALUE(M21),List2!$A$1:'List2'!$B$90,2))) ->  | O21: 7 | P21: =IF(ISBLANK(O21),"",IF(VALUE(O21)>89,1,VLOOKUP(VALUE(O21),List2!$A$1:'List2'!$B$90,2))) -> 148 | Q21: 4 | R21: =IF(ISBLANK(Q21),"",IF(VALUE(Q21)>89,1,VLOOKUP(VALUE(Q21),List2!$A$1:'List2'!$B$90,2))) -> 162 | S21: 3 | T21: =IF(ISBLANK(S21),"",IF(VALUE(S21)>89,1,VLOOKUP(VALUE(S21),List2!$A$1:'List2'!$B$90,2))) -> 170 | V21: =IF(ISBLANK(U21),"",IF(VALUE(U21)>89,1,VLOOKUP(VALUE(U21),List2!$A$1:'List2'!$B$90,2))) ->  | X21: =IF(ISBLANK(W21),"",IF(VALUE(W21)>89,1,VLOOKUP(VALUE(W21),List2!$A$1:'List2'!$B$90,2))) ->  | Z21: =IF(ISBLANK(Y21),"",IF(VALUE(Y21)>89,1,VLOOKUP(VALUE(Y21),List2!$A$1:'List2'!$B$90,2))) ->  | AB21: =IF(ISBLANK(AA21),"",IF(VALUE(AA21)>89,1,VLOOKUP(VALUE(AA21),List2!$A$1:'List2'!$B$90,2))) ->  | AD21: =IF(ISBLANK(AC21),"",IF(VALUE(AC21)>89,1,VLOOKUP(VALUE(AC21),List2!$A$1:'List2'!$B$90,2))) ->  | AF21: =IF(ISBLANK(AE21),"",IF(VALUE(AE21)>89,1,VLOOKUP(VALUE(AE21),List2!$A$1:'List2'!$B$90,2))) ->  | AH21: =IF(ISBLANK(AG21),"",IF(VALUE(AG21)>89,1,VLOOKUP(VALUE(AG21),List2!$A$1:'List2'!$B$90,2))) ->  | AJ21: =IF(ISBLANK(AI21),"",IF(VALUE(AI21)>89,1,VLOOKUP(VALUE(AI21),List2!$A$1:'List2'!$B$90,2))) ->  | AL21: =IF(ISBLANK(AK21),"",IF(VALUE(AK21)>89,1,VLOOKUP(VALUE(AK21),List2!$A$1:'List2'!$B$90,2))) ->  | AN21: =IF(ISBLANK(AM21),"",IF(VALUE(AM21)>89,1,VLOOKUP(VALUE(AM21),List2!$A$1:'List2'!$B$90,2))) ->  | AP21: 650
A22: 20 | B22: Vítek Zdeněk | C22: 156 | D22: 156 | F22: =IF(ISBLANK(E22),"",IF(VALUE(E22)>89,1,VLOOKUP(VALUE(E22),List2!$A$1:'List2'!$B$90,2))) ->  | H22: =IF(ISBLANK(G22),"",IF(VALUE(G22)>89,1,VLOOKUP(VALUE(G22),List2!$A$1:'List2'!$B$90,2))) ->  | J22: =IF(ISBLANK(I22),"",IF(VALUE(I22)>89,1,VLOOKUP(VALUE(I22),List2!$A$1:'List2'!$B$90,2))) ->  | L22: =IF(ISBLANK(K22),"",IF(VALUE(K22)>89,1,VLOOKUP(VALUE(K22),List2!$A$1:'List2'!$B$90,2))) ->  | M22: 5 | N22: =IF(ISBLANK(M22),"",IF(VALUE(M22)>89,1,VLOOKUP(VALUE(M22),List2!$A$1:'List2'!$B$90,2))) -> 156 | P22: =IF(ISBLANK(O22),"",IF(VALUE(O22)>89,1,VLOOKUP(VALUE(O22),List2!$A$1:'List2'!$B$90,2))) ->  | R22: =IF(ISBLANK(Q22),"",IF(VALUE(Q22)>89,1,VLOOKUP(VALUE(Q22),List2!$A$1:'List2'!$B$90,2))) ->  | T22: =IF(ISBLANK(S22),"",IF(VALUE(S22)>89,1,VLOOKUP(VALUE(S22),List2!$A$1:'List2'!$B$90,2))) ->  | V22: =IF(ISBLANK(U22),"",IF(VALUE(U22)>89,1,VLOOKUP(VALUE(U22),List2!$A$1:'List2'!$B$90,2))) ->  | X22: =IF(ISBLANK(W22),"",IF(VALUE(W22)>89,1,VLOOKUP(VALUE(W22),List2!$A$1:'List2'!$B$90,2))) ->  | Z22: =IF(ISBLANK(Y22),"",IF(VALUE(Y22)>89,1,VLOOKUP(VALUE(Y22),List2!$A$1:'List2'!$B$90,2))) ->  | AB22: =IF(ISBLANK(AA22),"",IF(VALUE(AA22)>89,1,VLOOKUP(VALUE(AA22),List2!$A$1:'List2'!$B$90,2))) ->  | AD22: =IF(ISBLANK(AC22),"",IF(VALUE(AC22)>89,1,VLOOKUP(VALUE(AC22),List2!$A$1:'List2'!$B$90,2))) ->  | AF22: =IF(ISBLANK(AE22),"",IF(VALUE(AE22)>89,1,VLOOKUP(VALUE(AE22),List2!$A$1:'List2'!$B$90,2))) ->  | AH22: =IF(ISBLANK(AG22),"",IF(VALUE(AG22)>89,1,VLOOKUP(VALUE(AG22),List2!$A$1:'List2'!$B$90,2))) ->  | AJ22: =IF(ISBLANK(AI22),"",IF(VALUE(AI22)>89,1,VLOOKUP(VALUE(AI22),List2!$A$1:'List2'!$B$90,2))) ->  | AL22: =IF(ISBLANK(AK22),"",IF(VALUE(AK22)>89,1,VLOOKUP(VALUE(AK22),List2!$A$1:'List2'!$B$90,2))) ->  | AN22: =IF(ISBLANK(AM22),"",IF(VALUE(AM22)>89,1,VLOOKUP(VALUE(AM22),List2!$A$1:'List2'!$B$90,2))) ->  | AP22: 156
A23: 21 | B23: Koleš Ladislav | C23: 200 | D23: 200 | F23: =IF(ISBLANK(E23),"",IF(VALUE(E23)>89,1,VLOOKUP(VALUE(E23),List2!$A$1:'List2'!$B$90,2))) ->  | H23: =IF(ISBLANK(G23),"",IF(VALUE(G23)>89,1,VLOOKUP(VALUE(G23),List2!$A$1:'List2'!$B$90,2))) ->  | J23: =IF(ISBLANK(I23),"",IF(VALUE(I23)>89,1,VLOOKUP(VALUE(I23),List2!$A$1:'List2'!$B$90,2))) ->  | L23: =IF(ISBLANK(K23),"",IF(VALUE(K23)>89,1,VLOOKUP(VALUE(K23),List2!$A$1:'List2'!$B$90,2))) ->  | N23: =IF(ISBLANK(M23),"",IF(VALUE(M23)>89,1,VLOOKUP(VALUE(M23),List2!$A$1:'List2'!$B$90,2))) ->  | O23: 1 | P23: =IF(ISBLANK(O23),"",IF(VALUE(O23)>89,1,VLOOKUP(VALUE(O23),List2!$A$1:'List2'!$B$90,2))) -> 200 | R23: =IF(ISBLANK(Q23),"",IF(VALUE(Q23)>89,1,VLOOKUP(VALUE(Q23),List2!$A$1:'List2'!$B$90,2))) ->  | T23: =IF(ISBLANK(S23),"",IF(VALUE(S23)>89,1,VLOOKUP(VALUE(S23),List2!$A$1:'List2'!$B$90,2))) ->  | V23: =IF(ISBLANK(U23),"",IF(VALUE(U23)>89,1,VLOOKUP(VALUE(U23),List2!$A$1:'List2'!$B$90,2))) ->  | X23: =IF(ISBLANK(W23),"",IF(VALUE(W23)>89,1,VLOOKUP(VALUE(W23),List2!$A$1:'List2'!$B$90,2))) ->  | Z23: =IF(ISBLANK(Y23),"",IF(VALUE(Y23)>89,1,VLOOKUP(VALUE(Y23),List2!$A$1:'List2'!$B$90,2))) ->  | AB23: =IF(ISBLANK(AA23),"",IF(VALUE(AA23)>89,1,VLOOKUP(VALUE(AA23),List2!$A$1:'List2'!$B$90,2))) ->  | AD23: =IF(ISBLANK(AC23),"",IF(VALUE(AC23)>89,1,VLOOKUP(VALUE(AC23),List2!$A$1:'List2'!$B$90,2))) ->  | AF23: =IF(ISBLANK(AE23),"",IF(VALUE(AE23)>89,1,VLOOKUP(VALUE(AE23),List2!$A$1:'List2'!$B$90,2))) ->  | AH23: =IF(ISBLANK(AG23),"",IF(VALUE(AG23)>89,1,VLOOKUP(VALUE(AG23),List2!$A$1:'List2'!$B$90,2))) ->  | AJ23: =IF(ISBLANK(AI23),"",IF(VALUE(AI23)>89,1,VLOOKUP(VALUE(AI23),List2!$A$1:'List2'!$B$90,2))) ->  | AL23: =IF(ISBLANK(AK23),"",IF(VALUE(AK23)>89,1,VLOOKUP(VALUE(AK23),List2!$A$1:'List2'!$B$90,2))) ->  | AN23: =IF(ISBLANK(AM23),"",IF(VALUE(AM23)>89,1,VLOOKUP(VALUE(AM23),List2!$A$1:'List2'!$B$90,2))) ->  | AP23: 200
A24: 22 | B24: Dušek Jiří | C24: 310 | D24: 310 | F24: =IF(ISBLANK(E24),"",IF(VALUE(E24)>89,1,VLOOKUP(VALUE(E24),List2!$A$1:'List2'!$B$90,2))) ->  | H24: =IF(ISBLANK(G24),"",IF(VALUE(G24)>89,1,VLOOKUP(VALUE(G24),List2!$A$1:'List2'!$B$90,2))) ->  | J24: =IF(ISBLANK(I24),"",IF(VALUE(I24)>89,1,VLOOKUP(VALUE(I24),List2!$A$1:'List2'!$B$90,2))) ->  | L24: =IF(ISBLANK(K24),"",IF(VALUE(K24)>89,1,VLOOKUP(VALUE(K24),List2!$A$1:'List2'!$B$90,2))) ->  | N24: =IF(ISBLANK(M24),"",IF(VALUE(M24)>89,1,VLOOKUP(VALUE(M24),List2!$A$1:'List2'!$B$90,2))) ->  | O24: 3 | P24: =IF(ISBLANK(O24),"",IF(VALUE(O24)>89,1,VLOOKUP(VALUE(O24),List2!$A$1:'List2'!$B$90,2))) -> 170 | Q24: 9 | R24: =IF(ISBLANK(Q24),"",IF(VALUE(Q24)>89,1,VLOOKUP(VALUE(Q24),List2!$A$1:'List2'!$B$90,2))) -> 140 | T24: =IF(ISBLANK(S24),"",IF(VALUE(S24)>89,1,VLOOKUP(VALUE(S24),List2!$A$1:'List2'!$B$90,2))) ->  | V24: =IF(ISBLANK(U24),"",IF(VALUE(U24)>89,1,VLOOKUP(VALUE(U24),List2!$A$1:'List2'!$B$90,2))) ->  | X24: =IF(ISBLANK(W24),"",IF(VALUE(W24)>89,1,VLOOKUP(VALUE(W24),List2!$A$1:'List2'!$B$90,2))) ->  | Z24: =IF(ISBLANK(Y24),"",IF(VALUE(Y24)>89,1,VLOOKUP(VALUE(Y24),List2!$A$1:'List2'!$B$90,2))) ->  | AB24: =IF(ISBLANK(AA24),"",IF(VALUE(AA24)>89,1,VLOOKUP(VALUE(AA24),List2!$A$1:'List2'!$B$90,2))) ->  | AD24: =IF(ISBLANK(AC24),"",IF(VALUE(AC24)>89,1,VLOOKUP(VALUE(AC24),List2!$A$1:'List2'!$B$90,2))) ->  | AF24: =IF(ISBLANK(AE24),"",IF(VALUE(AE24)>89,1,VLOOKUP(VALUE(AE24),List2!$A$1:'List2'!$B$90,2))) ->  | AH24: =IF(ISBLANK(AG24),"",IF(VALUE(AG24)>89,1,VLOOKUP(VALUE(AG24),List2!$A$1:'List2'!$B$90,2))) ->  | AJ24: =IF(ISBLANK(AI24),"",IF(VALUE(AI24)>89,1,VLOOKUP(VALUE(AI24),List2!$A$1:'List2'!$B$90,2))) ->  | AL24: =IF(ISBLANK(AK24),"",IF(VALUE(AK24)>89,1,VLOOKUP(VALUE(AK24),List2!$A$1:'List2'!$B$90,2))) ->  | AN24: =IF(ISBLANK(AM24),"",IF(VALUE(AM24)>89,1,VLOOKUP(VALUE(AM24),List2!$A$1:'List2'!$B$90,2))) ->  | AP24: 310
A25: 23 | B25: Vaníček Miroslav | C25: 308 | D25: 308 | F25: =IF(ISBLANK(E25),"",IF(VALUE(E25)>89,1,VLOOKUP(VALUE(E25),List2!$A$1:'List2'!$B$90,2))) ->  | H25: =IF(ISBLANK(G25),"",IF(VALUE(G25)>89,1,VLOOKUP(VALUE(G25),List2!$A$1:'List2'!$B$90,2))) ->  | J25: =IF(ISBLANK(I25),"",IF(VALUE(I25)>89,1,VLOOKUP(VALUE(I25),List2!$A$1:'List2'!$B$90,2))) ->  | L25: =IF(ISBLANK(K25),"",IF(VALUE(K25)>89,1,VLOOKUP(VALUE(K25),List2!$A$1:'List2'!$B$90,2))) ->  | N25: =IF(ISBLANK(M25),"",IF(VALUE(M25)>89,1,VLOOKUP(VALUE(M25),List2!$A$1:'List2'!$B$90,2))) ->  | O25: 5 | P25: =IF(ISBLANK(O25),"",IF(VALUE(O25)>89,1,VLOOKUP(VALUE(O25),List2!$A$1:'List2'!$B$90,2))) -> 156 | Q25: 6 | R25: =IF(ISBLANK(Q25),"",IF(VALUE(Q25)>89,1,VLOOKUP(VALUE(Q25),List2!$A$1:'List2'!$B$90,2))) -> 152 | T25: =IF(ISBLANK(S25),"",IF(VALUE(S25)>89,1,VLOOKUP(VALUE(S25),List2!$A$1:'List2'!$B$90,2))) ->  | V25: =IF(ISBLANK(U25),"",IF(VALUE(U25)>89,1,VLOOKUP(VALUE(U25),List2!$A$1:'List2'!$B$90,2))) ->  | X25: =IF(ISBLANK(W25),"",IF(VALUE(W25)>89,1,VLOOKUP(VALUE(W25),List2!$A$1:'List2'!$B$90,2))) ->  | Z25: =IF(ISBLANK(Y25),"",IF(VALUE(Y25)>89,1,VLOOKUP(VALUE(Y25),List2!$A$1:'List2'!$B$90,2))) ->  | AB25: =IF(ISBLANK(AA25),"",IF(VALUE(AA25)>89,1,VLOOKUP(VALUE(AA25),List2!$A$1:'List2'!$B$90,2))) ->  | AD25: =IF(ISBLANK(AC25),"",IF(VALUE(AC25)>89,1,VLOOKUP(VALUE(AC25),List2!$A$1:'List2'!$B$90,2))) ->  | AF25: =IF(ISBLANK(AE25),"",IF(VALUE(AE25)>89,1,VLOOKUP(VALUE(AE25),List2!$A$1:'List2'!$B$90,2))) ->  | AH25: =IF(ISBLANK(AG25),"",IF(VALUE(AG25)>89,1,VLOOKUP(VALUE(AG25),List2!$A$1:'List2'!$B$90,2))) ->  | AJ25: =IF(ISBLANK(AI25),"",IF(VALUE(AI25)>89,1,VLOOKUP(VALUE(AI25),List2!$A$1:'List2'!$B$90,2))) ->  | AL25: =IF(ISBLANK(AK25),"",IF(VALUE(AK25)>89,1,VLOOKUP(VALUE(AK25),List2!$A$1:'List2'!$B$90,2))) ->  | AN25: =IF(ISBLANK(AM25),"",IF(VALUE(AM25)>89,1,VLOOKUP(VALUE(AM25),List2!$A$1:'List2'!$B$90,2))) ->  | AP25: 308
A26: 24 | B26: Vlkovský Vladimír | C26: 152 | D26: 152 | F26: =IF(ISBLANK(E26),"",IF(VALUE(E26)>89,1,VLOOKUP(VALUE(E26),List2!$A$1:'List2'!$B$90,2))) ->  | H26: =IF(ISBLANK(G26),"",IF(VALUE(G26)>89,1,VLOOKUP(VALUE(G26),List2!$A$1:'List2'!$B$90,2))) ->  | J26: =IF(ISBLANK(I26),"",IF(VALUE(I26)>89,1,VLOOKUP(VALUE(I26),List2!$A$1:'List2'!$B$90,2))) ->  | L26: =IF(ISBLANK(K26),"",IF(VALUE(K26)>89,1,VLOOKUP(VALUE(K26),List2!$A$1:'List2'!$B$90,2))) ->  | N26: =IF(ISBLANK(M26),"",IF(VALUE(M26)>89,1,VLOOKUP(VALUE(M26),List2!$A$1:'List2'!$B$90,2))) ->  | O26: 6 | P26: =IF(ISBLANK(O26),"",IF(VALUE(O26)>89,1,VLOOKUP(VALUE(O26),List2!$A$1:'List2'!$B$90,2))) -> 152 | R26: =IF(ISBLANK(Q26),"",IF(VALUE(Q26)>89,1,VLOOKUP(VALUE(Q26),List2!$A$1:'List2'!$B$90,2))) ->  | T26: =IF(ISBLANK(S26),"",IF(VALUE(S26)>89,1,VLOOKUP(VALUE(S26),List2!$A$1:'List2'!$B$90,2))) ->  | V26: =IF(ISBLANK(U26),"",IF(VALUE(U26)>89,1,VLOOKUP(VALUE(U26),List2!$A$1:'List2'!$B$90,2))) ->  | X26: =IF(ISBLANK(W26),"",IF(VALUE(W26)>89,1,VLOOKUP(VALUE(W26),List2!$A$1:'List2'!$B$90,2))) ->  | Z26: =IF(ISBLANK(Y26),"",IF(VALUE(Y26)>89,1,VLOOKUP(VALUE(Y26),List2!$A$1:'List2'!$B$90,2))) ->  | AB26: =IF(ISBLANK(AA26),"",IF(VALUE(AA26)>89,1,VLOOKUP(VALUE(AA26),List2!$A$1:'List2'!$B$90,2))) ->  | AD26: =IF(ISBLANK(AC26),"",IF(VALUE(AC26)>89,1,VLOOKUP(VALUE(AC26),List2!$A$1:'List2'!$B$90,2))) ->  | AF26: =IF(ISBLANK(AE26),"",IF(VALUE(AE26)>89,1,VLOOKUP(VALUE(AE26),List2!$A$1:'List2'!$B$90,2))) ->  | AH26: =IF(ISBLANK(AG26),"",IF(VALUE(AG26)>89,1,VLOOKUP(VALUE(AG26),List2!$A$1:'List2'!$B$90,2))) ->  | AJ26: =IF(ISBLANK(AI26),"",IF(VALUE(AI26)>89,1,VLOOKUP(VALUE(AI26),List2!$A$1:'List2'!$B$90,2))) ->  | AL26: =IF(ISBLANK(AK26),"",IF(VALUE(AK26)>89,1,VLOOKUP(VALUE(AK26),List2!$A$1:'List2'!$B$90,2))) ->  | AN26: =IF(ISBLANK(AM26),"",IF(VALUE(AM26)>89,1,VLOOKUP(VALUE(AM26),List2!$A$1:'List2'!$B$90,2))) ->  | AP26: 152
A27: 25 | B27: Samek Vlast. | C27: 136 | D27: 136 | F27: =IF(ISBLANK(E27),"",IF(VALUE(E27)>89,1,VLOOKUP(VALUE(E27),List2!$A$1:'List2'!$B$90,2))) ->  | H27: =IF(ISBLANK(G27),"",IF(VALUE(G27)>89,1,VLOOKUP(VALUE(G27),List2!$A$1:'List2'!$B$90,2))) ->  | J27: =IF(ISBLANK(I27),"",IF(VALUE(I27)>89,1,VLOOKUP(VALUE(I27),List2!$A$1:'List2'!$B$90,2))) ->  | L27: =IF(ISBLANK(K27),"",IF(VALUE(K27)>89,1,VLOOKUP(VALUE(K27),List2!$A$1:'List2'!$B$90,2))) ->  | N27: =IF(ISBLANK(M27),"",IF(VALUE(M27)>89,1,VLOOKUP(VALUE(M27),List2!$A$1:'List2'!$B$90,2))) ->  | O27: 10 | P27: =IF(ISBLANK(O27),"",IF(VALUE(O27)>89,1,VLOOKUP(VALUE(O27),List2!$A$1:'List2'!$B$90,2))) -> 136 | R27: =IF(ISBLANK(Q27),"",IF(VALUE(Q27)>89,1,VLOOKUP(VALUE(Q27),List2!$A$1:'List2'!$B$90,2))) ->  | T27: =IF(ISBLANK(S27),"",IF(VALUE(S27)>89,1,VLOOKUP(VALUE(S27),List2!$A$1:'List2'!$B$90,2))) ->  | V27: =IF(ISBLANK(U27),"",IF(VALUE(U27)>89,1,VLOOKUP(VALUE(U27),List2!$A$1:'List2'!$B$90,2))) ->  | X27: =IF(ISBLANK(W27),"",IF(VALUE(W27)>89,1,VLOOKUP(VALUE(W27),List2!$A$1:'List2'!$B$90,2))) ->  | Z27: =IF(ISBLANK(Y27),"",IF(VALUE(Y27)>89,1,VLOOKUP(VALUE(Y27),List2!$A$1:'List2'!$B$90,2))) ->  | AB27: =IF(ISBLANK(AA27),"",IF(VALUE(AA27)>89,1,VLOOKUP(VALUE(AA27),List2!$A$1:'List2'!$B$90,2))) ->  | AD27: =IF(ISBLANK(AC27),"",IF(VALUE(AC27)>89,1,VLOOKUP(VALUE(AC27),List2!$A$1:'List2'!$B$90,2))) ->  | AF27: =IF(ISBLANK(AE27),"",IF(VALUE(AE27)>89,1,VLOOKUP(VALUE(AE27),List2!$A$1:'List2'!$B$90,2))) ->  | AH27: =IF(ISBLANK(AG27),"",IF(VALUE(AG27)>89,1,VLOOKUP(VALUE(AG27),List2!$A$1:'List2'!$B$90,2))) ->  | AJ27: =IF(ISBLANK(AI27),"",IF(VALUE(AI27)>89,1,VLOOKUP(VALUE(AI27),List2!$A$1:'List2'!$B$90,2))) ->  | AL27: =IF(ISBLANK(AK27),"",IF(VALUE(AK27)>89,1,VLOOKUP(VALUE(AK27),List2!$A$1:'List2'!$B$90,2))) ->  | AN27: =IF(ISBLANK(AM27),"",IF(VALUE(AM27)>89,1,VLOOKUP(VALUE(AM27),List2!$A$1:'List2'!$B$90,2))) ->  | AP27: 136
A28: 26 | B28: Starý Milan | C28: 269 | D28: 269 | F28: =IF(ISBLANK(E28),"",IF(VALUE(E28)>89,1,VLOOKUP(VALUE(E28),List2!$A$1:'List2'!$B$90,2))) ->  | H28: =IF(ISBLANK(G28),"",IF(VALUE(G28)>89,1,VLOOKUP(VALUE(G28),List2!$A$1:'List2'!$B$90,2))) ->  | J28: =IF(ISBLANK(I28),"",IF(VALUE(I28)>89,1,VLOOKUP(VALUE(I28),List2!$A$1:'List2'!$B$90,2))) ->  | L28: =IF(ISBLANK(K28),"",IF(VALUE(K28)>89,1,VLOOKUP(VALUE(K28),List2!$A$1:'List2'!$B$90,2))) ->  | N28: =IF(ISBLANK(M28),"",IF(VALUE(M28)>89,1,VLOOKUP(VALUE(M28),List2!$A$1:'List2'!$B$90,2))) ->  | O28: 11 | P28: =IF(ISBLANK(O28),"",IF(VALUE(O28)>89,1,VLOOKUP(VALUE(O28),List2!$A$1:'List2'!$B$90,2))) -> 133 | Q28: 10 | R28: =IF(ISBLANK(Q28),"",IF(VALUE(Q28)>89,1,VLOOKUP(VALUE(Q28),List2!$A$1:'List2'!$B$90,2))) -> 136 | T28: =IF(ISBLANK(S28),"",IF(VALUE(S28)>89,1,VLOOKUP(VALUE(S28),List2!$A$1:'List2'!$B$90,2))) ->  | V28: =IF(ISBLANK(U28),"",IF(VALUE(U28)>89,1,VLOOKUP(VALUE(U28),List2!$A$1:'List2'!$B$90,2))) ->  | X28: =IF(ISBLANK(W28),"",IF(VALUE(W28)>89,1,VLOOKUP(VALUE(W28),List2!$A$1:'List2'!$B$90,2))) ->  | Z28: =IF(ISBLANK(Y28),"",IF(VALUE(Y28)>89,1,VLOOKUP(VALUE(Y28),List2!$A$1:'List2'!$B$90,2))) ->  | AB28: =IF(ISBLANK(AA28),"",IF(VALUE(AA28)>89,1,VLOOKUP(VALUE(AA28),List2!$A$1:'List2'!$B$90,2))) ->  | AD28: =IF(ISBLANK(AC28),"",IF(VALUE(AC28)>89,1,VLOOKUP(VALUE(AC28),List2!$A$1:'List2'!$B$90,2))) ->  | AF28: =IF(ISBLANK(AE28),"",IF(VALUE(AE28)>89,1,VLOOKUP(VALUE(AE28),List2!$A$1:'List2'!$B$90,2))) ->  | AH28: =IF(ISBLANK(AG28),"",IF(VALUE(AG28)>89,1,VLOOKUP(VALUE(AG28),List2!$A$1:'List2'!$B$90,2))) ->  | AJ28: =IF(ISBLANK(AI28),"",IF(VALUE(AI28)>89,1,VLOOKUP(VALUE(AI28),List2!$A$1:'List2'!$B$90,2))) ->  | AL28: =IF(ISBLANK(AK28),"",IF(VALUE(AK28)>89,1,VLOOKUP(VALUE(AK28),List2!$A$1:'List2'!$B$90,2))) ->  | AN28: =IF(ISBLANK(AM28),"",IF(VALUE(AM28)>89,1,VLOOKUP(VALUE(AM28),List2!$A$1:'List2'!$B$90,2))) ->  | AP28: 269
A29: 27 | B29: Vych Jan | C29: 180 | D29: 180 | F29: =IF(ISBLANK(E29),"",IF(VALUE(E29)>89,1,VLOOKUP(VALUE(E29),List2!$A$1:'List2'!$B$90,2))) ->  | H29: =IF(ISBLANK(G29),"",IF(VALUE(G29)>89,1,VLOOKUP(VALUE(G29),List2!$A$1:'List2'!$B$90,2))) ->  | J29: =IF(ISBLANK(I29),"",IF(VALUE(I29)>89,1,VLOOKUP(VALUE(I29),List2!$A$1:'List2'!$B$90,2))) ->  | L29: =IF(ISBLANK(K29),"",IF(VALUE(K29)>89,1,VLOOKUP(VALUE(K29),List2!$A$1:'List2'!$B$90,2))) ->  | N29: =IF(ISBLANK(M29),"",IF(VALUE(M29)>89,1,VLOOKUP(VALUE(M29),List2!$A$1:'List2'!$B$90,2))) ->  | O29: 2 | P29: =IF(ISBLANK(O29),"",IF(VALUE(O29)>89,1,VLOOKUP(VALUE(O29),List2!$A$1:'List2'!$B$90,2))) -> 180 | R29: =IF(ISBLANK(Q29),"",IF(VALUE(Q29)>89,1,VLOOKUP(VALUE(Q29),List2!$A$1:'List2'!$B$90,2))) ->  | T29: =IF(ISBLANK(S29),"",IF(VALUE(S29)>89,1,VLOOKUP(VALUE(S29),List2!$A$1:'List2'!$B$90,2))) ->  | V29: =IF(ISBLANK(U29),"",IF(VALUE(U29)>89,1,VLOOKUP(VALUE(U29),List2!$A$1:'List2'!$B$90,2))) ->  | X29: =IF(ISBLANK(W29),"",IF(VALUE(W29)>89,1,VLOOKUP(VALUE(W29),List2!$A$1:'List2'!$B$90,2))) ->  | Z29: =IF(ISBLANK(Y29),"",IF(VALUE(Y29)>89,1,VLOOKUP(VALUE(Y29),List2!$A$1:'List2'!$B$90,2))) ->  | AB29: =IF(ISBLANK(AA29),"",IF(VALUE(AA29)>89,1,VLOOKUP(VALUE(AA29),List2!$A$1:'List2'!$B$90,2))) ->  | AD29: =IF(ISBLANK(AC29),"",IF(VALUE(AC29)>89,1,VLOOKUP(VALUE(AC29),List2!$A$1:'List2'!$B$90,2))) ->  | AF29: =IF(ISBLANK(AE29),"",IF(VALUE(AE29)>89,1,VLOOKUP(VALUE(AE29),List2!$A$1:'List2'!$B$90,2))) ->  | AH29: =IF(ISBLANK(AG29),"",IF(VALUE(AG29)>89,1,VLOOKUP(VALUE(AG29),List2!$A$1:'List2'!$B$90,2))) ->  | AJ29: =IF(ISBLANK(AI29),"",IF(VALUE(AI29)>89,1,VLOOKUP(VALUE(AI29),List2!$A$1:'List2'!$B$90,2))) ->  | AL29: =IF(ISBLANK(AK29),"",IF(VALUE(AK29)>89,1,VLOOKUP(VALUE(AK29),List2!$A$1:'List2'!$B$90,2))) ->  | AN29: =IF(ISBLANK(AM29),"",IF(VALUE(AM29)>89,1,VLOOKUP(VALUE(AM29),List2!$A$1:'List2'!$B$90,2))) ->  | AP29: 180
A30: 28 | B30: Kuzl Jan | C30: 180 | D30: 180 | F30: =IF(ISBLANK(E30),"",IF(VALUE(E30)>89,1,VLOOKUP(VALUE(E30),List2!$A$1:'List2'!$B$90,2))) ->  | H30: =IF(ISBLANK(G30),"",IF(VALUE(G30)>89,1,VLOOKUP(VALUE(G30),List2!$A$1:'List2'!$B$90,2))) ->  | J30: =IF(ISBLANK(I30),"",IF(VALUE(I30)>89,1,VLOOKUP(VALUE(I30),List2!$A$1:'List2'!$B$90,2))) ->  | L30: =IF(ISBLANK(K30),"",IF(VALUE(K30)>89,1,VLOOKUP(VALUE(K30),List2!$A$1:'List2'!$B$90,2))) ->  | N30: =IF(ISBLANK(M30),"",IF(VALUE(M30)>89,1,VLOOKUP(VALUE(M30),List2!$A$1:'List2'!$B$90,2))) ->  | P30: =IF(ISBLANK(O30),"",IF(VALUE(O30)>89,1,VLOOKUP(VALUE(O30),List2!$A$1:'List2'!$B$90,2))) ->  | Q30: 2 | R30: =IF(ISBLANK(Q30),"",IF(VALUE(Q30)>89,1,VLOOKUP(VALUE(Q30),List2!$A$1:'List2'!$B$90,2))) -> 180 | T30: =IF(ISBLANK(S30),"",IF(VALUE(S30)>89,1,VLOOKUP(VALUE(S30),List2!$A$1:'List2'!$B$90,2))) ->  | V30: =IF(ISBLANK(U30),"",IF(VALUE(U30)>89,1,VLOOKUP(VALUE(U30),List2!$A$1:'List2'!$B$90,2))) ->  | X30: =IF(ISBLANK(W30),"",IF(VALUE(W30)>89,1,VLOOKUP(VALUE(W30),List2!$A$1:'List2'!$B$90,2))) ->  | Z30: =IF(ISBLANK(Y30),"",IF(VALUE(Y30)>89,1,VLOOKUP(VALUE(Y30),List2!$A$1:'List2'!$B$90,2))) ->  | AB30: =IF(ISBLANK(AA30),"",IF(VALUE(AA30)>89,1,VLOOKUP(VALUE(AA30),List2!$A$1:'List2'!$B$90,2))) ->  | AD30: =IF(ISBLANK(AC30),"",IF(VALUE(AC30)>89,1,VLOOKUP(VALUE(AC30),List2!$A$1:'List2'!$B$90,2))) ->  | AF30: =IF(ISBLANK(AE30),"",IF(VALUE(AE30)>89,1,VLOOKUP(VALUE(AE30),List2!$A$1:'List2'!$B$90,2))) ->  | AH30: =IF(ISBLANK(AG30),"",IF(VALUE(AG30)>89,1,VLOOKUP(VALUE(AG30),List2!$A$1:'List2'!$B$90,2))) ->  | AJ30: =IF(ISBLANK(AI30),"",IF(VALUE(AI30)>89,1,VLOOKUP(VALUE(AI30),List2!$A$1:'List2'!$B$90,2))) ->  | AL30: =IF(ISBLANK(AK30),"",IF(VALUE(AK30)>89,1,VLOOKUP(VALUE(AK30),List2!$A$1:'List2'!$B$90,2))) ->  | AN30: =IF(ISBLANK(AM30),"",IF(VALUE(AM30)>89,1,VLOOKUP(VALUE(AM30),List2!$A$1:'List2'!$B$90,2))) ->  | AP30: 180
A31: 29 | B31: Filip Miroslav | C31: 170 | D31: 170 | F31: =IF(ISBLANK(E31),"",IF(VALUE(E31)>89,1,VLOOKUP(VALUE(E31),List2!$A$1:'List2'!$B$90,2))) ->  | H31: =IF(ISBLANK(G31),"",IF(VALUE(G31)>89,1,VLOOKUP(VALUE(G31),List2!$A$1:'List2'!$B$90,2))) ->  | J31: =IF(ISBLANK(I31),"",IF(VALUE(I31)>89,1,VLOOKUP(VALUE(I31),List2!$A$1:'List2'!$B$90,2))) ->  | L31: =IF(ISBLANK(K31),"",IF(VALUE(K31)>89,1,VLOOKUP(VALUE(K31),List2!$A$1:'List2'!$B$90,2))) ->  | N31: =IF(ISBLANK(M31),"",IF(VALUE(M31)>89,1,VLOOKUP(VALUE(M31),List2!$A$1:'List2'!$B$90,2))) ->  | P31: =IF(ISBLANK(O31),"",IF(VALUE(O31)>89,1,VLOOKUP(VALUE(O31),List2!$A$1:'List2'!$B$90,2))) ->  | Q31: 3 | R31: =IF(ISBLANK(Q31),"",IF(VALUE(Q31)>89,1,VLOOKUP(VALUE(Q31),List2!$A$1:'List2'!$B$90,2))) -> 170 | T31: =IF(ISBLANK(S31),"",IF(VALUE(S31)>89,1,VLOOKUP(VALUE(S31),List2!$A$1:'List2'!$B$90,2))) ->  | V31: =IF(ISBLANK(U31),"",IF(VALUE(U31)>89,1,VLOOKUP(VALUE(U31),List2!$A$1:'List2'!$B$90,2))) ->  | X31: =IF(ISBLANK(W31),"",IF(VALUE(W31)>89,1,VLOOKUP(VALUE(W31),List2!$A$1:'List2'!$B$90,2))) ->  | Z31: =IF(ISBLANK(Y31),"",IF(VALUE(Y31)>89,1,VLOOKUP(VALUE(Y31),List2!$A$1:'List2'!$B$90,2))) ->  | AB31: =IF(ISBLANK(AA31),"",IF(VALUE(AA31)>89,1,VLOOKUP(VALUE(AA31),List2!$A$1:'List2'!$B$90,2))) ->  | AD31: =IF(ISBLANK(AC31),"",IF(VALUE(AC31)>89,1,VLOOKUP(VALUE(AC31),List2!$A$1:'List2'!$B$90,2))) ->  | AF31: =IF(ISBLANK(AE31),"",IF(VALUE(AE31)>89,1,VLOOKUP(VALUE(AE31),List2!$A$1:'List2'!$B$90,2))) ->  | AH31: =IF(ISBLANK(AG31),"",IF(VALUE(AG31)>89,1,VLOOKUP(VALUE(AG31),List2!$A$1:'List2'!$B$90,2))) ->  | AJ31: =IF(ISBLANK(AI31),"",IF(VALUE(AI31)>89,1,VLOOKUP(VALUE(AI31),List2!$A$1:'List2'!$B$90,2))) ->  | AL31: =IF(ISBLANK(AK31),"",IF(VALUE(AK31)>89,1,VLOOKUP(VALUE(AK31),List2!$A$1:'List2'!$B$90,2))) ->  | AN31: =IF(ISBLANK(AM31),"",IF(VALUE(AM31)>89,1,VLOOKUP(VALUE(AM31),List2!$A$1:'List2'!$B$90,2))) ->  | AP31: 170
A32: 30 | B32: Cejnar Petr | C32: 148 | D32: 148 | F32: =IF(ISBLANK(E32),"",IF(VALUE(E32)>89,1,VLOOKUP(VALUE(E32),List2!$A$1:'List2'!$B$90,2))) ->  | H32: =IF(ISBLANK(G32),"",IF(VALUE(G32)>89,1,VLOOKUP(VALUE(G32),List2!$A$1:'List2'!$B$90,2))) ->  | J32: =IF(ISBLANK(I32),"",IF(VALUE(I32)>89,1,VLOOKUP(VALUE(I32),List2!$A$1:'List2'!$B$90,2))) ->  | L32: =IF(ISBLANK(K32),"",IF(VALUE(K32)>89,1,VLOOKUP(VALUE(K32),List2!$A$1:'List2'!$B$90,2))) ->  | N32: =IF(ISBLANK(M32),"",IF(VALUE(M32)>89,1,VLOOKUP(VALUE(M32),List2!$A$1:'List2'!$B$90,2))) ->  | P32: =IF(ISBLANK(O32),"",IF(VALUE(O32)>89,1,VLOOKUP(VALUE(O32),List2!$A$1:'List2'!$B$90,2))) ->  | Q32: 7 | R32: =IF(ISBLANK(Q32),"",IF(VALUE(Q32)>89,1,VLOOKUP(VALUE(Q32),List2!$A$1:'List2'!$B$90,2))) -> 148 | T32: =IF(ISBLANK(S32),"",IF(VALUE(S32)>89,1,VLOOKUP(VALUE(S32),List2!$A$1:'List2'!$B$90,2))) ->  | V32: =IF(ISBLANK(U32),"",IF(VALUE(U32)>89,1,VLOOKUP(VALUE(U32),List2!$A$1:'List2'!$B$90,2))) ->  | X32: =IF(ISBLANK(W32),"",IF(VALUE(W32)>89,1,VLOOKUP(VALUE(W32),List2!$A$1:'List2'!$B$90,2))) ->  | Z32: =IF(ISBLANK(Y32),"",IF(VALUE(Y32)>89,1,VLOOKUP(VALUE(Y32),List2!$A$1:'List2'!$B$90,2))) ->  | AB32: =IF(ISBLANK(AA32),"",IF(VALUE(AA32)>89,1,VLOOKUP(VALUE(AA32),List2!$A$1:'List2'!$B$90,2))) ->  | AD32: =IF(ISBLANK(AC32),"",IF(VALUE(AC32)>89,1,VLOOKUP(VALUE(AC32),List2!$A$1:'List2'!$B$90,2))) ->  | AF32: =IF(ISBLANK(AE32),"",IF(VALUE(AE32)>89,1,VLOOKUP(VALUE(AE32),List2!$A$1:'List2'!$B$90,2))) ->  | AH32: =IF(ISBLANK(AG32),"",IF(VALUE(AG32)>89,1,VLOOKUP(VALUE(AG32),List2!$A$1:'List2'!$B$90,2))) ->  | AJ32: =IF(ISBLANK(AI32),"",IF(VALUE(AI32)>89,1,VLOOKUP(VALUE(AI32),List2!$A$1:'List2'!$B$90,2))) ->  | AL32: =IF(ISBLANK(AK32),"",IF(VALUE(AK32)>89,1,VLOOKUP(VALUE(AK32),List2!$A$1:'List2'!$B$90,2))) ->  | AN32: =IF(ISBLANK(AM32),"",IF(VALUE(AM32)>89,1,VLOOKUP(VALUE(AM32),List2!$A$1:'List2'!$B$90,2))) ->  | AP32: 148
A33: 31 | B33: BenkoMartin | C33: 144 | D33: 144 | F33: =IF(ISBLANK(E33),"",IF(VALUE(E33)>89,1,VLOOKUP(VALUE(E33),List2!$A$1:'List2'!$B$90,2))) ->  | H33: =IF(ISBLANK(G33),"",IF(VALUE(G33)>89,1,VLOOKUP(VALUE(G33),List2!$A$1:'List2'!$B$90,2))) ->  | J33: =IF(ISBLANK(I33),"",IF(VALUE(I33)>89,1,VLOOKUP(VALUE(I33),List2!$A$1:'List2'!$B$90,2))) ->  | L33: =IF(ISBLANK(K33),"",IF(VALUE(K33)>89,1,VLOOKUP(VALUE(K33),List2!$A$1:'List2'!$B$90,2))) ->  | N33: =IF(ISBLANK(M33),"",IF(VALUE(M33)>89,1,VLOOKUP(VALUE(M33),List2!$A$1:'List2'!$B$90,2))) ->  | P33: =IF(ISBLANK(O33),"",IF(VALUE(O33)>89,1,VLOOKUP(VALUE(O33),List2!$A$1:'List2'!$B$90,2))) ->  | Q33: 8 | R33: =IF(ISBLANK(Q33),"",IF(VALUE(Q33)>89,1,VLOOKUP(VALUE(Q33),List2!$A$1:'List2'!$B$90,2))) -> 144 | T33: =IF(ISBLANK(S33),"",IF(VALUE(S33)>89,1,VLOOKUP(VALUE(S33),List2!$A$1:'List2'!$B$90,2))) ->  | V33: =IF(ISBLANK(U33),"",IF(VALUE(U33)>89,1,VLOOKUP(VALUE(U33),List2!$A$1:'List2'!$B$90,2))) ->  | X33: =IF(ISBLANK(W33),"",IF(VALUE(W33)>89,1,VLOOKUP(VALUE(W33),List2!$A$1:'List2'!$B$90,2))) ->  | Z33: =IF(ISBLANK(Y33),"",IF(VALUE(Y33)>89,1,VLOOKUP(VALUE(Y33),List2!$A$1:'List2'!$B$90,2))) ->  | AB33: =IF(ISBLANK(AA33),"",IF(VALUE(AA33)>89,1,VLOOKUP(VALUE(AA33),List2!$A$1:'List2'!$B$90,2))) ->  | AD33: =IF(ISBLANK(AC33),"",IF(VALUE(AC33)>89,1,VLOOKUP(VALUE(AC33),List2!$A$1:'List2'!$B$90,2))) ->  | AF33: =IF(ISBLANK(AE33),"",IF(VALUE(AE33)>89,1,VLOOKUP(VALUE(AE33),List2!$A$1:'List2'!$B$90,2))) ->  | AH33: =IF(ISBLANK(AG33),"",IF(VALUE(AG33)>89,1,VLOOKUP(VALUE(AG33),List2!$A$1:'List2'!$B$90,2))) ->  | AJ33: =IF(ISBLANK(AI33),"",IF(VALUE(AI33)>89,1,VLOOKUP(VALUE(AI33),List2!$A$1:'List2'!$B$90,2))) ->  | AL33: =IF(ISBLANK(AK33),"",IF(VALUE(AK33)>89,1,VLOOKUP(VALUE(AK33),List2!$A$1:'List2'!$B$90,2))) ->  | AN33: =IF(ISBLANK(AM33),"",IF(VALUE(AM33)>89,1,VLOOKUP(VALUE(AM33),List2!$A$1:'List2'!$B$90,2))) ->  | AP33: 144
A34: 32 | B34: Skácelík Pavel | C34: 130 | D34: 130 | F34: =IF(ISBLANK(E34),"",IF(VALUE(E34)>89,1,VLOOKUP(VALUE(E34),List2!$A$1:'List2'!$B$90,2))) ->  | H34: =IF(ISBLANK(G34),"",IF(VALUE(G34)>89,1,VLOOKUP(VALUE(G34),List2!$A$1:'List2'!$B$90,2))) ->  | J34: =IF(ISBLANK(I34),"",IF(VALUE(I34)>89,1,VLOOKUP(VALUE(I34),List2!$A$1:'List2'!$B$90,2))) ->  | L34: =IF(ISBLANK(K34),"",IF(VALUE(K34)>89,1,VLOOKUP(VALUE(K34),List2!$A$1:'List2'!$B$90,2))) ->  | N34: =IF(ISBLANK(M34),"",IF(VALUE(M34)>89,1,VLOOKUP(VALUE(M34),List2!$A$1:'List2'!$B$90,2))) ->  | P34: =IF(ISBLANK(O34),"",IF(VALUE(O34)>89,1,VLOOKUP(VALUE(O34),List2!$A$1:'List2'!$B$90,2))) ->  | Q34: 12 | R34: =IF(ISBLANK(Q34),"",IF(VALUE(Q34)>89,1,VLOOKUP(VALUE(Q34),List2!$A$1:'List2'!$B$90,2))) -> 130 | T34: =IF(ISBLANK(S34),"",IF(VALUE(S34)>89,1,VLOOKUP(VALUE(S34),List2!$A$1:'List2'!$B$90,2))) ->  | V34: =IF(ISBLANK(U34),"",IF(VALUE(U34)>89,1,VLOOKUP(VALUE(U34),List2!$A$1:'List2'!$B$90,2))) ->  | X34: =IF(ISBLANK(W34),"",IF(VALUE(W34)>89,1,VLOOKUP(VALUE(W34),List2!$A$1:'List2'!$B$90,2))) ->  | Z34: =IF(ISBLANK(Y34),"",IF(VALUE(Y34)>89,1,VLOOKUP(VALUE(Y34),List2!$A$1:'List2'!$B$90,2))) ->  | AB34: =IF(ISBLANK(AA34),"",IF(VALUE(AA34)>89,1,VLOOKUP(VALUE(AA34),List2!$A$1:'List2'!$B$90,2))) ->  | AD34: =IF(ISBLANK(AC34),"",IF(VALUE(AC34)>89,1,VLOOKUP(VALUE(AC34),List2!$A$1:'List2'!$B$90,2))) ->  | AF34: =IF(ISBLANK(AE34),"",IF(VALUE(AE34)>89,1,VLOOKUP(VALUE(AE34),List2!$A$1:'List2'!$B$90,2))) ->  | AH34: =IF(ISBLANK(AG34),"",IF(VALUE(AG34)>89,1,VLOOKUP(VALUE(AG34),List2!$A$1:'List2'!$B$90,2))) ->  | AJ34: =IF(ISBLANK(AI34),"",IF(VALUE(AI34)>89,1,VLOOKUP(VALUE(AI34),List2!$A$1:'List2'!$B$90,2))) ->  | AL34: =IF(ISBLANK(AK34),"",IF(VALUE(AK34)>89,1,VLOOKUP(VALUE(AK34),List2!$A$1:'List2'!$B$90,2))) ->  | AN34: =IF(ISBLANK(AM34),"",IF(VALUE(AM34)>89,1,VLOOKUP(VALUE(AM34),List2!$A$1:'List2'!$B$90,2))) ->  | AP34: 130
A35: 33 | B35: Buzek Milan | C35: =IF(IFERROR(LARGE(F35:AN35,1),0)+IFERROR(LARGE(F35:AN35,2),0)+IFERROR(LARGE(F35:AN35,3),0)+IFERROR(LARGE(F35:AN35,4),0)+IFERROR(LARGE(F35:AN35,5),0)+IFERROR(LARGE(F35:AN35,6),0)+IFERROR(LARGE(F35:AN35,7),0)++IFERROR(LARGE(F35:AN35,8),0)=0,"",IFERROR(LARGE(F35:AN35,1),0)+IFERROR(LARGE(F35:AN35,2),0)+IFERROR(LARGE(F35:AN35,3),0)+IFERROR(LARGE(F35:AN35,4),0)+IFERROR(LARGE(F35:AN35,5),0)+IFERROR(LARGE(F35:AN35,6),0)+IFERROR(LARGE(F35:AN35,7),0)+IFERROR(LARGE(F35:AND35,8),0)) -> 127 | D35: =IF(SUM(F35,H35,J35,L35,N35,P35,R35,T35,V35,X35,Z35,AB35,AD35,AF35,AH35,AJ35,AL35,AN35)=0,"",SUM(F35,H35,J35,L35,N35,P35,R35,T35,V35,X35,Z35,AB35,AD35,AF35,AH35,AJ35,AL35,AN35)) -> 127 | F35: =IF(ISBLANK(E35),"",IF(VALUE(E35)>89,1,VLOOKUP(VALUE(E35),List2!$A$1:'List2'!$B$90,2))) ->  | H35: =IF(ISBLANK(G35),"",IF(VALUE(G35)>89,1,VLOOKUP(VALUE(G35),List2!$A$1:'List2'!$B$90,2))) ->  | J35: =IF(ISBLANK(I35),"",IF(VALUE(I35)>89,1,VLOOKUP(VALUE(I35),List2!$A$1:'List2'!$B$90,2))) ->  | L35: =IF(ISBLANK(K35),"",IF(VALUE(K35)>89,1,VLOOKUP(VALUE(K35),List2!$A$1:'List2'!$B$90,2))) ->  | N35: =IF(ISBLANK(M35),"",IF(VALUE(M35)>89,1,VLOOKUP(VALUE(M35),List2!$A$1:'List2'!$B$90,2))) ->  | P35: =IF(ISBLANK(O35),"",IF(VALUE(O35)>89,1,VLOOKUP(VALUE(O35),List2!$A$1:'List2'!$B$90,2))) ->  | Q35: 13 | R35: =IF(ISBLANK(Q35),"",IF(VALUE(Q35)>89,1,VLOOKUP(VALUE(Q35),List2!$A$1:'List2'!$B$90,2))) -> 127 | T35: =IF(ISBLANK(S35),"",IF(VALUE(S35)>89,1,VLOOKUP(VALUE(S35),List2!$A$1:'List2'!$B$90,2))) ->  | V35: =IF(ISBLANK(U35),"",IF(VALUE(U35)>89,1,VLOOKUP(VALUE(U35),List2!$A$1:'List2'!$B$90,2))) ->  | X35: =IF(ISBLANK(W35),"",IF(VALUE(W35)>89,1,VLOOKUP(VALUE(W35),List2!$A$1:'List2'!$B$90,2))) ->  | Z35: =IF(ISBLANK(Y35),"",IF(VALUE(Y35)>89,1,VLOOKUP(VALUE(Y35),List2!$A$1:'List2'!$B$90,2))) ->  | AB35: =IF(ISBLANK(AA35),"",IF(VALUE(AA35)>89,1,VLOOKUP(VALUE(AA35),List2!$A$1:'List2'!$B$90,2))) ->  | AD35: =IF(ISBLANK(AC35),"",IF(VALUE(AC35)>89,1,VLOOKUP(VALUE(AC35),List2!$A$1:'List2'!$B$90,2))) ->  | AF35: =IF(ISBLANK(AE35),"",IF(VALUE(AE35)>89,1,VLOOKUP(VALUE(AE35),List2!$A$1:'List2'!$B$90,2))) ->  | AH35: =IF(ISBLANK(AG35),"",IF(VALUE(AG35)>89,1,VLOOKUP(VALUE(AG35),List2!$A$1:'List2'!$B$90,2))) ->  | AJ35: =IF(ISBLANK(AI35),"",IF(VALUE(AI35)>89,1,VLOOKUP(VALUE(AI35),List2!$A$1:'List2'!$B$90,2))) ->  | AL35: =IF(ISBLANK(AK35),"",IF(VALUE(AK35)>89,1,VLOOKUP(VALUE(AK35),List2!$A$1:'List2'!$B$90,2))) ->  | AN35: =IF(ISBLANK(AM35),"",IF(VALUE(AM35)>89,1,VLOOKUP(VALUE(AM35),List2!$A$1:'List2'!$B$90,2))) ->  | AP35: =IFERROR(LARGE(F35:AN35,1),0)+IFERROR(LARGE(F35:AN35,2),0)+IFERROR(LARGE(F35:AN35,3),0)+IFERROR(LARGE(F35:AN35,4),0)+IFERROR(LARGE(F35:AN35,5),0)+IFERROR(LARGE(F35:AN35,6),0)+IFERROR(LARGE(F35:AN35,7),0)+IFERROR(LARGE(F35:AN35,8),0) -> 127
A36: 34 | B36: Pecháček Zdeněk | C36: 180 | D36: 180 | F36: =IF(ISBLANK(E36),"",IF(VALUE(E36)>89,1,VLOOKUP(VALUE(E36),List2!$A$1:'List2'!$B$90,2))) ->  | H36: =IF(ISBLANK(G36),"",IF(VALUE(G36)>89,1,VLOOKUP(VALUE(G36),List2!$A$1:'List2'!$B$90,2))) ->  | J36: =IF(ISBLANK(I36),"",IF(VALUE(I36)>89,1,VLOOKUP(VALUE(I36),List2!$A$1:'List2'!$B$90,2))) ->  | L36: =IF(ISBLANK(K36),"",IF(VALUE(K36)>89,1,VLOOKUP(VALUE(K36),List2!$A$1:'List2'!$B$90,2))) ->  | N36: =IF(ISBLANK(M36),"",IF(VALUE(M36)>89,1,VLOOKUP(VALUE(M36),List2!$A$1:'List2'!$B$90,2))) ->  | P36: =IF(ISBLANK(O36),"",IF(VALUE(O36)>89,1,VLOOKUP(VALUE(O36),List2!$A$1:'List2'!$B$90,2))) ->  | R36: =IF(ISBLANK(Q36),"",IF(VALUE(Q36)>89,1,VLOOKUP(VALUE(Q36),List2!$A$1:'List2'!$B$90,2))) ->  | S36: 2 | T36: =IF(ISBLANK(S36),"",IF(VALUE(S36)>89,1,VLOOKUP(VALUE(S36),List2!$A$1:'List2'!$B$90,2))) -> 180 | V36: =IF(ISBLANK(U36),"",IF(VALUE(U36)>89,1,VLOOKUP(VALUE(U36),List2!$A$1:'List2'!$B$90,2))) ->  | X36: =IF(ISBLANK(W36),"",IF(VALUE(W36)>89,1,VLOOKUP(VALUE(W36),List2!$A$1:'List2'!$B$90,2))) ->  | Z36: =IF(ISBLANK(Y36),"",IF(VALUE(Y36)>89,1,VLOOKUP(VALUE(Y36),List2!$A$1:'List2'!$B$90,2))) ->  | AB36: =IF(ISBLANK(AA36),"",IF(VALUE(AA36)>89,1,VLOOKUP(VALUE(AA36),List2!$A$1:'List2'!$B$90,2))) ->  | AD36: =IF(ISBLANK(AC36),"",IF(VALUE(AC36)>89,1,VLOOKUP(VALUE(AC36),List2!$A$1:'List2'!$B$90,2))) ->  | AF36: =IF(ISBLANK(AE36),"",IF(VALUE(AE36)>89,1,VLOOKUP(VALUE(AE36),List2!$A$1:'List2'!$B$90,2))) ->  | AH36: =IF(ISBLANK(AG36),"",IF(VALUE(AG36)>89,1,VLOOKUP(VALUE(AG36),List2!$A$1:'List2'!$B$90,2))) ->  | AJ36: =IF(ISBLANK(AI36),"",IF(VALUE(AI36)>89,1,VLOOKUP(VALUE(AI36),List2!$A$1:'List2'!$B$90,2))) ->  | AL36: =IF(ISBLANK(AK36),"",IF(VALUE(AK36)>89,1,VLOOKUP(VALUE(AK36),List2!$A$1:'List2'!$B$90,2))) ->  | AN36: =IF(ISBLANK(AM36),"",IF(VALUE(AM36)>89,1,VLOOKUP(VALUE(AM36),List2!$A$1:'List2'!$B$90,2))) ->  | AP36: 180
F37: =IF(ISBLANK(E37),"",IF(VALUE(E37)>89,1,VLOOKUP(VALUE(E37),List2!$A$1:'List2'!$B$90,2))) ->  | H37: =IF(ISBLANK(G37),"",IF(VALUE(G37)>89,1,VLOOKUP(VALUE(G37),List2!$A$1:'List2'!$B$90,2))) ->  | J37: =IF(ISBLANK(I37),"",IF(VALUE(I37)>89,1,VLOOKUP(VALUE(I37),List2!$A$1:'List2'!$B$90,2))) ->  | L37: =IF(ISBLANK(K37),"",IF(VALUE(K37)>89,1,VLOOKUP(VALUE(K37),List2!$A$1:'List2'!$B$90,2))) ->  | N37: =IF(ISBLANK(M37),"",IF(VALUE(M37)>89,1,VLOOKUP(VALUE(M37),List2!$A$1:'List2'!$B$90,2))) ->  | P37: =IF(ISBLANK(O37),"",IF(VALUE(O37)>89,1,VLOOKUP(VALUE(O37),List2!$A$1:'List2'!$B$90,2))) ->  | R37: =IF(ISBLANK(Q37),"",IF(VALUE(Q37)>89,1,VLOOKUP(VALUE(Q37),List2!$A$1:'List2'!$B$90,2))) ->  | T37: =IF(ISBLANK(S37),"",IF(VALUE(S37)>89,1,VLOOKUP(VALUE(S37),List2!$A$1:'List2'!$B$90,2))) ->  | V37: =IF(ISBLANK(U37),"",IF(VALUE(U37)>89,1,VLOOKUP(VALUE(U37),List2!$A$1:'List2'!$B$90,2))) ->  | X37: =IF(ISBLANK(W37),"",IF(VALUE(W37)>89,1,VLOOKUP(VALUE(W37),List2!$A$1:'List2'!$B$90,2))) ->  | Z37: =IF(ISBLANK(Y37),"",IF(VALUE(Y37)>89,1,VLOOKUP(VALUE(Y37),List2!$A$1:'List2'!$B$90,2))) ->  | AB37: =IF(ISBLANK(AA37),"",IF(VALUE(AA37)>89,1,VLOOKUP(VALUE(AA37),List2!$A$1:'List2'!$B$90,2))) ->  | AD37: =IF(ISBLANK(AC37),"",IF(VALUE(AC37)>89,1,VLOOKUP(VALUE(AC37),List2!$A$1:'List2'!$B$90,2))) ->  | AF37: =IF(ISBLANK(AE37),"",IF(VALUE(AE37)>89,1,VLOOKUP(VALUE(AE37),List2!$A$1:'List2'!$B$90,2))) ->  | AH37: =IF(ISBLANK(AG37),"",IF(VALUE(AG37)>89,1,VLOOKUP(VALUE(AG37),List2!$A$1:'List2'!$B$90,2))) ->  | AJ37: =IF(ISBLANK(AI37),"",IF(VALUE(AI37)>89,1,VLOOKUP(VALUE(AI37),List2!$A$1:'List2'!$B$90,2))) ->  | AL37: =IF(ISBLANK(AK37),"",IF(VALUE(AK37)>89,1,VLOOKUP(VALUE(AK37),List2!$A$1:'List2'!$B$90,2))) ->  | AN37: =IF(ISBLANK(AM37),"",IF(VALUE(AM37)>89,1,VLOOKUP(VALUE(AM37),List2!$A$1:'List2'!$B$90,2))) ->  | AP37: 0
F38: =IF(ISBLANK(E38),"",IF(VALUE(E38)>89,1,VLOOKUP(VALUE(E38),List2!$A$1:'List2'!$B$90,2))) ->  | H38: =IF(ISBLANK(G38),"",IF(VALUE(G38)>89,1,VLOOKUP(VALUE(G38),List2!$A$1:'List2'!$B$90,2))) ->  | J38: =IF(ISBLANK(I38),"",IF(VALUE(I38)>89,1,VLOOKUP(VALUE(I38),List2!$A$1:'List2'!$B$90,2))) ->  | L38: =IF(ISBLANK(K38),"",IF(VALUE(K38)>89,1,VLOOKUP(VALUE(K38),List2!$A$1:'List2'!$B$90,2))) ->  | N38: =IF(ISBLANK(M38),"",IF(VALUE(M38)>89,1,VLOOKUP(VALUE(M38),List2!$A$1:'List2'!$B$90,2))) ->  | P38: =IF(ISBLANK(O38),"",IF(VALUE(O38)>89,1,VLOOKUP(VALUE(O38),List2!$A$1:'List2'!$B$90,2))) ->  | R38: =IF(ISBLANK(Q38),"",IF(VALUE(Q38)>89,1,VLOOKUP(VALUE(Q38),List2!$A$1:'List2'!$B$90,2))) ->  | T38: =IF(ISBLANK(S38),"",IF(VALUE(S38)>89,1,VLOOKUP(VALUE(S38),List2!$A$1:'List2'!$B$90,2))) ->  | V38: =IF(ISBLANK(U38),"",IF(VALUE(U38)>89,1,VLOOKUP(VALUE(U38),List2!$A$1:'List2'!$B$90,2))) ->  | X38: =IF(ISBLANK(W38),"",IF(VALUE(W38)>89,1,VLOOKUP(VALUE(W38),List2!$A$1:'List2'!$B$90,2))) ->  | Z38: =IF(ISBLANK(Y38),"",IF(VALUE(Y38)>89,1,VLOOKUP(VALUE(Y38),List2!$A$1:'List2'!$B$90,2))) ->  | AB38: =IF(ISBLANK(AA38),"",IF(VALUE(AA38)>89,1,VLOOKUP(VALUE(AA38),List2!$A$1:'List2'!$B$90,2))) ->  | AD38: =IF(ISBLANK(AC38),"",IF(VALUE(AC38)>89,1,VLOOKUP(VALUE(AC38),List2!$A$1:'List2'!$B$90,2))) ->  | AF38: =IF(ISBLANK(AE38),"",IF(VALUE(AE38)>89,1,VLOOKUP(VALUE(AE38),List2!$A$1:'List2'!$B$90,2))) ->  | AH38: =IF(ISBLANK(AG38),"",IF(VALUE(AG38)>89,1,VLOOKUP(VALUE(AG38),List2!$A$1:'List2'!$B$90,2))) ->  | AJ38: =IF(ISBLANK(AI38),"",IF(VALUE(AI38)>89,1,VLOOKUP(VALUE(AI38),List2!$A$1:'List2'!$B$90,2))) ->  | AL38: =IF(ISBLANK(AK38),"",IF(VALUE(AK38)>89,1,VLOOKUP(VALUE(AK38),List2!$A$1:'List2'!$B$90,2))) ->  | AN38: =IF(ISBLANK(AM38),"",IF(VALUE(AM38)>89,1,VLOOKUP(VALUE(AM38),List2!$A$1:'List2'!$B$90,2))) ->  | AP38: 0
F39: =IF(ISBLANK(E39),"",IF(VALUE(E39)>89,1,VLOOKUP(VALUE(E39),List2!$A$1:'List2'!$B$90,2))) ->  | H39: =IF(ISBLANK(G39),"",IF(VALUE(G39)>89,1,VLOOKUP(VALUE(G39),List2!$A$1:'List2'!$B$90,2))) ->  | J39: =IF(ISBLANK(I39),"",IF(VALUE(I39)>89,1,VLOOKUP(VALUE(I39),List2!$A$1:'List2'!$B$90,2))) ->  | L39: =IF(ISBLANK(K39),"",IF(VALUE(K39)>89,1,VLOOKUP(VALUE(K39),List2!$A$1:'List2'!$B$90,2))) ->  | N39: =IF(ISBLANK(M39),"",IF(VALUE(M39)>89,1,VLOOKUP(VALUE(M39),List2!$A$1:'List2'!$B$90,2))) ->  | P39: =IF(ISBLANK(O39),"",IF(VALUE(O39)>89,1,VLOOKUP(VALUE(O39),List2!$A$1:'List2'!$B$90,2))) ->  | R39: =IF(ISBLANK(Q39),"",IF(VALUE(Q39)>89,1,VLOOKUP(VALUE(Q39),List2!$A$1:'List2'!$B$90,2))) ->  | T39: =IF(ISBLANK(S39),"",IF(VALUE(S39)>89,1,VLOOKUP(VALUE(S39),List2!$A$1:'List2'!$B$90,2))) ->  | V39: =IF(ISBLANK(U39),"",IF(VALUE(U39)>89,1,VLOOKUP(VALUE(U39),List2!$A$1:'List2'!$B$90,2))) ->  | X39: =IF(ISBLANK(W39),"",IF(VALUE(W39)>89,1,VLOOKUP(VALUE(W39),List2!$A$1:'List2'!$B$90,2))) ->  | Z39: =IF(ISBLANK(Y39),"",IF(VALUE(Y39)>89,1,VLOOKUP(VALUE(Y39),List2!$A$1:'List2'!$B$90,2))) ->  | AB39: =IF(ISBLANK(AA39),"",IF(VALUE(AA39)>89,1,VLOOKUP(VALUE(AA39),List2!$A$1:'List2'!$B$90,2))) ->  | AD39: =IF(ISBLANK(AC39),"",IF(VALUE(AC39)>89,1,VLOOKUP(VALUE(AC39),List2!$A$1:'List2'!$B$90,2))) ->  | AF39: =IF(ISBLANK(AE39),"",IF(VALUE(AE39)>89,1,VLOOKUP(VALUE(AE39),List2!$A$1:'List2'!$B$90,2))) ->  | AH39: =IF(ISBLANK(AG39),"",IF(VALUE(AG39)>89,1,VLOOKUP(VALUE(AG39),List2!$A$1:'List2'!$B$90,2))) ->  | AJ39: =IF(ISBLANK(AI39),"",IF(VALUE(AI39)>89,1,VLOOKUP(VALUE(AI39),List2!$A$1:'List2'!$B$90,2))) ->  | AL39: =IF(ISBLANK(AK39),"",IF(VALUE(AK39)>89,1,VLOOKUP(VALUE(AK39),List2!$A$1:'List2'!$B$90,2))) ->  | AN39: =IF(ISBLANK(AM39),"",IF(VALUE(AM39)>89,1,VLOOKUP(VALUE(AM39),List2!$A$1:'List2'!$B$90,2))) ->  | AP39: 0
F40: =IF(ISBLANK(E40),"",IF(VALUE(E40)>89,1,VLOOKUP(VALUE(E40),List2!$A$1:'List2'!$B$90,2))) ->  | H40: =IF(ISBLANK(G40),"",IF(VALUE(G40)>89,1,VLOOKUP(VALUE(G40),List2!$A$1:'List2'!$B$90,2))) ->  | J40: =IF(ISBLANK(I40),"",IF(VALUE(I40)>89,1,VLOOKUP(VALUE(I40),List2!$A$1:'List2'!$B$90,2))) ->  | L40: =IF(ISBLANK(K40),"",IF(VALUE(K40)>89,1,VLOOKUP(VALUE(K40),List2!$A$1:'List2'!$B$90,2))) ->  | N40: =IF(ISBLANK(M40),"",IF(VALUE(M40)>89,1,VLOOKUP(VALUE(M40),List2!$A$1:'List2'!$B$90,2))) ->  | P40: =IF(ISBLANK(O40),"",IF(VALUE(O40)>89,1,VLOOKUP(VALUE(O40),List2!$A$1:'List2'!$B$90,2))) ->  | R40: =IF(ISBLANK(Q40),"",IF(VALUE(Q40)>89,1,VLOOKUP(VALUE(Q40),List2!$A$1:'List2'!$B$90,2))) ->  | T40: =IF(ISBLANK(S40),"",IF(VALUE(S40)>89,1,VLOOKUP(VALUE(S40),List2!$A$1:'List2'!$B$90,2))) ->  | V40: =IF(ISBLANK(U40),"",IF(VALUE(U40)>89,1,VLOOKUP(VALUE(U40),List2!$A$1:'List2'!$B$90,2))) ->  | X40: =IF(ISBLANK(W40),"",IF(VALUE(W40)>89,1,VLOOKUP(VALUE(W40),List2!$A$1:'List2'!$B$90,2))) ->  | Z40: =IF(ISBLANK(Y40),"",IF(VALUE(Y40)>89,1,VLOOKUP(VALUE(Y40),List2!$A$1:'List2'!$B$90,2))) ->  | AB40: =IF(ISBLANK(AA40),"",IF(VALUE(AA40)>89,1,VLOOKUP(VALUE(AA40),List2!$A$1:'List2'!$B$90,2))) ->  | AD40: =IF(ISBLANK(AC40),"",IF(VALUE(AC40)>89,1,VLOOKUP(VALUE(AC40),List2!$A$1:'List2'!$B$90,2))) ->  | AF40: =IF(ISBLANK(AE40),"",IF(VALUE(AE40)>89,1,VLOOKUP(VALUE(AE40),List2!$A$1:'List2'!$B$90,2))) ->  | AH40: =IF(ISBLANK(AG40),"",IF(VALUE(AG40)>89,1,VLOOKUP(VALUE(AG40),List2!$A$1:'List2'!$B$90,2))) ->  | AJ40: =IF(ISBLANK(AI40),"",IF(VALUE(AI40)>89,1,VLOOKUP(VALUE(AI40),List2!$A$1:'List2'!$B$90,2))) ->  | AL40: =IF(ISBLANK(AK40),"",IF(VALUE(AK40)>89,1,VLOOKUP(VALUE(AK40),List2!$A$1:'List2'!$B$90,2))) ->  | AN40: =IF(ISBLANK(AM40),"",IF(VALUE(AM40)>89,1,VLOOKUP(VALUE(AM40),List2!$A$1:'List2'!$B$90,2))) ->  | AP40: 0
F41: =IF(ISBLANK(E41),"",IF(VALUE(E41)>89,1,VLOOKUP(VALUE(E41),List2!$A$1:'List2'!$B$90,2))) ->  | H41: =IF(ISBLANK(G41),"",IF(VALUE(G41)>89,1,VLOOKUP(VALUE(G41),List2!$A$1:'List2'!$B$90,2))) ->  | J41: =IF(ISBLANK(I41),"",IF(VALUE(I41)>89,1,VLOOKUP(VALUE(I41),List2!$A$1:'List2'!$B$90,2))) ->  | L41: =IF(ISBLANK(K41),"",IF(VALUE(K41)>89,1,VLOOKUP(VALUE(K41),List2!$A$1:'List2'!$B$90,2))) ->  | N41: =IF(ISBLANK(M41),"",IF(VALUE(M41)>89,1,VLOOKUP(VALUE(M41),List2!$A$1:'List2'!$B$90,2))) ->  | P41: =IF(ISBLANK(O41),"",IF(VALUE(O41)>89,1,VLOOKUP(VALUE(O41),List2!$A$1:'List2'!$B$90,2))) ->  | R41: =IF(ISBLANK(Q41),"",IF(VALUE(Q41)>89,1,VLOOKUP(VALUE(Q41),List2!$A$1:'List2'!$B$90,2))) ->  | T41: =IF(ISBLANK(S41),"",IF(VALUE(S41)>89,1,VLOOKUP(VALUE(S41),List2!$A$1:'List2'!$B$90,2))) ->  | V41: =IF(ISBLANK(U41),"",IF(VALUE(U41)>89,1,VLOOKUP(VALUE(U41),List2!$A$1:'List2'!$B$90,2))) ->  | X41: =IF(ISBLANK(W41),"",IF(VALUE(W41)>89,1,VLOOKUP(VALUE(W41),List2!$A$1:'List2'!$B$90,2))) ->  | Z41: =IF(ISBLANK(Y41),"",IF(VALUE(Y41)>89,1,VLOOKUP(VALUE(Y41),List2!$A$1:'List2'!$B$90,2))) ->  | AB41: =IF(ISBLANK(AA41),"",IF(VALUE(AA41)>89,1,VLOOKUP(VALUE(AA41),List2!$A$1:'List2'!$B$90,2))) ->  | AD41: =IF(ISBLANK(AC41),"",IF(VALUE(AC41)>89,1,VLOOKUP(VALUE(AC41),List2!$A$1:'List2'!$B$90,2))) ->  | AF41: =IF(ISBLANK(AE41),"",IF(VALUE(AE41)>89,1,VLOOKUP(VALUE(AE41),List2!$A$1:'List2'!$B$90,2))) ->  | AH41: =IF(ISBLANK(AG41),"",IF(VALUE(AG41)>89,1,VLOOKUP(VALUE(AG41),List2!$A$1:'List2'!$B$90,2))) ->  | AJ41: =IF(ISBLANK(AI41),"",IF(VALUE(AI41)>89,1,VLOOKUP(VALUE(AI41),List2!$A$1:'List2'!$B$90,2))) ->  | AL41: =IF(ISBLANK(AK41),"",IF(VALUE(AK41)>89,1,VLOOKUP(VALUE(AK41),List2!$A$1:'List2'!$B$90,2))) ->  | AN41: =IF(ISBLANK(AM41),"",IF(VALUE(AM41)>89,1,VLOOKUP(VALUE(AM41),List2!$A$1:'List2'!$B$90,2))) ->  | AP41: 0
F42: =IF(ISBLANK(E42),"",IF(VALUE(E42)>89,1,VLOOKUP(VALUE(E42),List2!$A$1:'List2'!$B$90,2))) ->  | H42: =IF(ISBLANK(G42),"",IF(VALUE(G42)>89,1,VLOOKUP(VALUE(G42),List2!$A$1:'List2'!$B$90,2))) ->  | J42: =IF(ISBLANK(I42),"",IF(VALUE(I42)>89,1,VLOOKUP(VALUE(I42),List2!$A$1:'List2'!$B$90,2))) ->  | L42: =IF(ISBLANK(K42),"",IF(VALUE(K42)>89,1,VLOOKUP(VALUE(K42),List2!$A$1:'List2'!$B$90,2))) ->  | N42: =IF(ISBLANK(M42),"",IF(VALUE(M42)>89,1,VLOOKUP(VALUE(M42),List2!$A$1:'List2'!$B$90,2))) ->  | P42: =IF(ISBLANK(O42),"",IF(VALUE(O42)>89,1,VLOOKUP(VALUE(O42),List2!$A$1:'List2'!$B$90,2))) ->  | R42: =IF(ISBLANK(Q42),"",IF(VALUE(Q42)>89,1,VLOOKUP(VALUE(Q42),List2!$A$1:'List2'!$B$90,2))) ->  | T42: =IF(ISBLANK(S42),"",IF(VALUE(S42)>89,1,VLOOKUP(VALUE(S42),List2!$A$1:'List2'!$B$90,2))) ->  | V42: =IF(ISBLANK(U42),"",IF(VALUE(U42)>89,1,VLOOKUP(VALUE(U42),List2!$A$1:'List2'!$B$90,2))) ->  | X42: =IF(ISBLANK(W42),"",IF(VALUE(W42)>89,1,VLOOKUP(VALUE(W42),List2!$A$1:'List2'!$B$90,2))) ->  | Z42: =IF(ISBLANK(Y42),"",IF(VALUE(Y42)>89,1,VLOOKUP(VALUE(Y42),List2!$A$1:'List2'!$B$90,2))) ->  | AB42: =IF(ISBLANK(AA42),"",IF(VALUE(AA42)>89,1,VLOOKUP(VALUE(AA42),List2!$A$1:'List2'!$B$90,2))) ->  | AD42: =IF(ISBLANK(AC42),"",IF(VALUE(AC42)>89,1,VLOOKUP(VALUE(AC42),List2!$A$1:'List2'!$B$90,2))) ->  | AF42: =IF(ISBLANK(AE42),"",IF(VALUE(AE42)>89,1,VLOOKUP(VALUE(AE42),List2!$A$1:'List2'!$B$90,2))) ->  | AH42: =IF(ISBLANK(AG42),"",IF(VALUE(AG42)>89,1,VLOOKUP(VALUE(AG42),List2!$A$1:'List2'!$B$90,2))) ->  | AJ42: =IF(ISBLANK(AI42),"",IF(VALUE(AI42)>89,1,VLOOKUP(VALUE(AI42),List2!$A$1:'List2'!$B$90,2))) ->  | AL42: =IF(ISBLANK(AK42),"",IF(VALUE(AK42)>89,1,VLOOKUP(VALUE(AK42),List2!$A$1:'List2'!$B$90,2))) ->  | AN42: =IF(ISBLANK(AM42),"",IF(VALUE(AM42)>89,1,VLOOKUP(VALUE(AM42),List2!$A$1:'List2'!$B$90,2))) ->  | AP42: 0
F43: =IF(ISBLANK(E43),"",IF(VALUE(E43)>89,1,VLOOKUP(VALUE(E43),List2!$A$1:'List2'!$B$90,2))) ->  | H43: =IF(ISBLANK(G43),"",IF(VALUE(G43)>89,1,VLOOKUP(VALUE(G43),List2!$A$1:'List2'!$B$90,2))) ->  | J43: =IF(ISBLANK(I43),"",IF(VALUE(I43)>89,1,VLOOKUP(VALUE(I43),List2!$A$1:'List2'!$B$90,2))) ->  | L43: =IF(ISBLANK(K43),"",IF(VALUE(K43)>89,1,VLOOKUP(VALUE(K43),List2!$A$1:'List2'!$B$90,2))) ->  | N43: =IF(ISBLANK(M43),"",IF(VALUE(M43)>89,1,VLOOKUP(VALUE(M43),List2!$A$1:'List2'!$B$90,2))) ->  | P43: =IF(ISBLANK(O43),"",IF(VALUE(O43)>89,1,VLOOKUP(VALUE(O43),List2!$A$1:'List2'!$B$90,2))) ->  | R43: =IF(ISBLANK(Q43),"",IF(VALUE(Q43)>89,1,VLOOKUP(VALUE(Q43),List2!$A$1:'List2'!$B$90,2))) ->  | T43: =IF(ISBLANK(S43),"",IF(VALUE(S43)>89,1,VLOOKUP(VALUE(S43),List2!$A$1:'List2'!$B$90,2))) ->  | V43: =IF(ISBLANK(U43),"",IF(VALUE(U43)>89,1,VLOOKUP(VALUE(U43),List2!$A$1:'List2'!$B$90,2))) ->  | X43: =IF(ISBLANK(W43),"",IF(VALUE(W43)>89,1,VLOOKUP(VALUE(W43),List2!$A$1:'List2'!$B$90,2))) ->  | Z43: =IF(ISBLANK(Y43),"",IF(VALUE(Y43)>89,1,VLOOKUP(VALUE(Y43),List2!$A$1:'List2'!$B$90,2))) ->  | AB43: =IF(ISBLANK(AA43),"",IF(VALUE(AA43)>89,1,VLOOKUP(VALUE(AA43),List2!$A$1:'List2'!$B$90,2))) ->  | AD43: =IF(ISBLANK(AC43),"",IF(VALUE(AC43)>89,1,VLOOKUP(VALUE(AC43),List2!$A$1:'List2'!$B$90,2))) ->  | AF43: =IF(ISBLANK(AE43),"",IF(VALUE(AE43)>89,1,VLOOKUP(VALUE(AE43),List2!$A$1:'List2'!$B$90,2))) ->  | AH43: =IF(ISBLANK(AG43),"",IF(VALUE(AG43)>89,1,VLOOKUP(VALUE(AG43),List2!$A$1:'List2'!$B$90,2))) ->  | AJ43: =IF(ISBLANK(AI43),"",IF(VALUE(AI43)>89,1,VLOOKUP(VALUE(AI43),List2!$A$1:'List2'!$B$90,2))) ->  | AL43: =IF(ISBLANK(AK43),"",IF(VALUE(AK43)>89,1,VLOOKUP(VALUE(AK43),List2!$A$1:'List2'!$B$90,2))) ->  | AN43: =IF(ISBLANK(AM43),"",IF(VALUE(AM43)>89,1,VLOOKUP(VALUE(AM43),List2!$A$1:'List2'!$B$90,2))) ->  | AP43: 0
F44: =IF(ISBLANK(E44),"",IF(VALUE(E44)>89,1,VLOOKUP(VALUE(E44),List2!$A$1:'List2'!$B$90,2))) ->  | H44: =IF(ISBLANK(G44),"",IF(VALUE(G44)>89,1,VLOOKUP(VALUE(G44),List2!$A$1:'List2'!$B$90,2))) ->  | J44: =IF(ISBLANK(I44),"",IF(VALUE(I44)>89,1,VLOOKUP(VALUE(I44),List2!$A$1:'List2'!$B$90,2))) ->  | L44: =IF(ISBLANK(K44),"",IF(VALUE(K44)>89,1,VLOOKUP(VALUE(K44),List2!$A$1:'List2'!$B$90,2))) ->  | N44: =IF(ISBLANK(M44),"",IF(VALUE(M44)>89,1,VLOOKUP(VALUE(M44),List2!$A$1:'List2'!$B$90,2))) ->  | P44: =IF(ISBLANK(O44),"",IF(VALUE(O44)>89,1,VLOOKUP(VALUE(O44),List2!$A$1:'List2'!$B$90,2))) ->  | R44: =IF(ISBLANK(Q44),"",IF(VALUE(Q44)>89,1,VLOOKUP(VALUE(Q44),List2!$A$1:'List2'!$B$90,2))) ->  | T44: =IF(ISBLANK(S44),"",IF(VALUE(S44)>89,1,VLOOKUP(VALUE(S44),List2!$A$1:'List2'!$B$90,2))) ->  | V44: =IF(ISBLANK(U44),"",IF(VALUE(U44)>89,1,VLOOKUP(VALUE(U44),List2!$A$1:'List2'!$B$90,2))) ->  | X44: =IF(ISBLANK(W44),"",IF(VALUE(W44)>89,1,VLOOKUP(VALUE(W44),List2!$A$1:'List2'!$B$90,2))) ->  | Z44: =IF(ISBLANK(Y44),"",IF(VALUE(Y44)>89,1,VLOOKUP(VALUE(Y44),List2!$A$1:'List2'!$B$90,2))) ->  | AB44: =IF(ISBLANK(AA44),"",IF(VALUE(AA44)>89,1,VLOOKUP(VALUE(AA44),List2!$A$1:'List2'!$B$90,2))) ->  | AD44: =IF(ISBLANK(AC44),"",IF(VALUE(AC44)>89,1,VLOOKUP(VALUE(AC44),List2!$A$1:'List2'!$B$90,2))) ->  | AF44: =IF(ISBLANK(AE44),"",IF(VALUE(AE44)>89,1,VLOOKUP(VALUE(AE44),List2!$A$1:'List2'!$B$90,2))) ->  | AH44: =IF(ISBLANK(AG44),"",IF(VALUE(AG44)>89,1,VLOOKUP(VALUE(AG44),List2!$A$1:'List2'!$B$90,2))) ->  | AJ44: =IF(ISBLANK(AI44),"",IF(VALUE(AI44)>89,1,VLOOKUP(VALUE(AI44),List2!$A$1:'List2'!$B$90,2))) ->  | AL44: =IF(ISBLANK(AK44),"",IF(VALUE(AK44)>89,1,VLOOKUP(VALUE(AK44),List2!$A$1:'List2'!$B$90,2))) ->  | AN44: =IF(ISBLANK(AM44),"",IF(VALUE(AM44)>89,1,VLOOKUP(VALUE(AM44),List2!$A$1:'List2'!$B$90,2))) ->  | AP44: 0
F45: =IF(ISBLANK(E45),"",IF(VALUE(E45)>89,1,VLOOKUP(VALUE(E45),List2!$A$1:'List2'!$B$90,2))) ->  | H45: =IF(ISBLANK(G45),"",IF(VALUE(G45)>89,1,VLOOKUP(VALUE(G45),List2!$A$1:'List2'!$B$90,2))) ->  | J45: =IF(ISBLANK(I45),"",IF(VALUE(I45)>89,1,VLOOKUP(VALUE(I45),List2!$A$1:'List2'!$B$90,2))) ->  | L45: =IF(ISBLANK(K45),"",IF(VALUE(K45)>89,1,VLOOKUP(VALUE(K45),List2!$A$1:'List2'!$B$90,2))) ->  | N45: =IF(ISBLANK(M45),"",IF(VALUE(M45)>89,1,VLOOKUP(VALUE(M45),List2!$A$1:'List2'!$B$90,2))) ->  | P45: =IF(ISBLANK(O45),"",IF(VALUE(O45)>89,1,VLOOKUP(VALUE(O45),List2!$A$1:'List2'!$B$90,2))) ->  | R45: =IF(ISBLANK(Q45),"",IF(VALUE(Q45)>89,1,VLOOKUP(VALUE(Q45),List2!$A$1:'List2'!$B$90,2))) ->  | T45: =IF(ISBLANK(S45),"",IF(VALUE(S45)>89,1,VLOOKUP(VALUE(S45),List2!$A$1:'List2'!$B$90,2))) ->  | V45: =IF(ISBLANK(U45),"",IF(VALUE(U45)>89,1,VLOOKUP(VALUE(U45),List2!$A$1:'List2'!$B$90,2))) ->  | X45: =IF(ISBLANK(W45),"",IF(VALUE(W45)>89,1,VLOOKUP(VALUE(W45),List2!$A$1:'List2'!$B$90,2))) ->  | Z45: =IF(ISBLANK(Y45),"",IF(VALUE(Y45)>89,1,VLOOKUP(VALUE(Y45),List2!$A$1:'List2'!$B$90,2))) ->  | AB45: =IF(ISBLANK(AA45),"",IF(VALUE(AA45)>89,1,VLOOKUP(VALUE(AA45),List2!$A$1:'List2'!$B$90,2))) ->  | AD45: =IF(ISBLANK(AC45),"",IF(VALUE(AC45)>89,1,VLOOKUP(VALUE(AC45),List2!$A$1:'List2'!$B$90,2))) ->  | AF45: =IF(ISBLANK(AE45),"",IF(VALUE(AE45)>89,1,VLOOKUP(VALUE(AE45),List2!$A$1:'List2'!$B$90,2))) ->  | AH45: =IF(ISBLANK(AG45),"",IF(VALUE(AG45)>89,1,VLOOKUP(VALUE(AG45),List2!$A$1:'List2'!$B$90,2))) ->  | AJ45: =IF(ISBLANK(AI45),"",IF(VALUE(AI45)>89,1,VLOOKUP(VALUE(AI45),List2!$A$1:'List2'!$B$90,2))) ->  | AL45: =IF(ISBLANK(AK45),"",IF(VALUE(AK45)>89,1,VLOOKUP(VALUE(AK45),List2!$A$1:'List2'!$B$90,2))) ->  | AN45: =IF(ISBLANK(AM45),"",IF(VALUE(AM45)>89,1,VLOOKUP(VALUE(AM45),List2!$A$1:'List2'!$B$90,2))) ->  | AP45: 0
F46: =IF(ISBLANK(E46),"",IF(VALUE(E46)>89,1,VLOOKUP(VALUE(E46),List2!$A$1:'List2'!$B$90,2))) ->  | H46: =IF(ISBLANK(G46),"",IF(VALUE(G46)>89,1,VLOOKUP(VALUE(G46),List2!$A$1:'List2'!$B$90,2))) ->  | J46: =IF(ISBLANK(I46),"",IF(VALUE(I46)>89,1,VLOOKUP(VALUE(I46),List2!$A$1:'List2'!$B$90,2))) ->  | L46: =IF(ISBLANK(K46),"",IF(VALUE(K46)>89,1,VLOOKUP(VALUE(K46),List2!$A$1:'List2'!$B$90,2))) ->  | N46: =IF(ISBLANK(M46),"",IF(VALUE(M46)>89,1,VLOOKUP(VALUE(M46),List2!$A$1:'List2'!$B$90,2))) ->  | P46: =IF(ISBLANK(O46),"",IF(VALUE(O46)>89,1,VLOOKUP(VALUE(O46),List2!$A$1:'List2'!$B$90,2))) ->  | R46: =IF(ISBLANK(Q46),"",IF(VALUE(Q46)>89,1,VLOOKUP(VALUE(Q46),List2!$A$1:'List2'!$B$90,2))) ->  | T46: =IF(ISBLANK(S46),"",IF(VALUE(S46)>89,1,VLOOKUP(VALUE(S46),List2!$A$1:'List2'!$B$90,2))) ->  | V46: =IF(ISBLANK(U46),"",IF(VALUE(U46)>89,1,VLOOKUP(VALUE(U46),List2!$A$1:'List2'!$B$90,2))) ->  | X46: =IF(ISBLANK(W46),"",IF(VALUE(W46)>89,1,VLOOKUP(VALUE(W46),List2!$A$1:'List2'!$B$90,2))) ->  | Z46: =IF(ISBLANK(Y46),"",IF(VALUE(Y46)>89,1,VLOOKUP(VALUE(Y46),List2!$A$1:'List2'!$B$90,2))) ->  | AB46: =IF(ISBLANK(AA46),"",IF(VALUE(AA46)>89,1,VLOOKUP(VALUE(AA46),List2!$A$1:'List2'!$B$90,2))) ->  | AD46: =IF(ISBLANK(AC46),"",IF(VALUE(AC46)>89,1,VLOOKUP(VALUE(AC46),List2!$A$1:'List2'!$B$90,2))) ->  | AF46: =IF(ISBLANK(AE46),"",IF(VALUE(AE46)>89,1,VLOOKUP(VALUE(AE46),List2!$A$1:'List2'!$B$90,2))) ->  | AH46: =IF(ISBLANK(AG46),"",IF(VALUE(AG46)>89,1,VLOOKUP(VALUE(AG46),List2!$A$1:'List2'!$B$90,2))) ->  | AJ46: =IF(ISBLANK(AI46),"",IF(VALUE(AI46)>89,1,VLOOKUP(VALUE(AI46),List2!$A$1:'List2'!$B$90,2))) ->  | AL46: =IF(ISBLANK(AK46),"",IF(VALUE(AK46)>89,1,VLOOKUP(VALUE(AK46),List2!$A$1:'List2'!$B$90,2))) ->  | AN46: =IF(ISBLANK(AM46),"",IF(VALUE(AM46)>89,1,VLOOKUP(VALUE(AM46),List2!$A$1:'List2'!$B$90,2))) ->  | AP46: 0
F47: =IF(ISBLANK(E47),"",IF(VALUE(E47)>89,1,VLOOKUP(VALUE(E47),List2!$A$1:'List2'!$B$90,2))) ->  | H47: =IF(ISBLANK(G47),"",IF(VALUE(G47)>89,1,VLOOKUP(VALUE(G47),List2!$A$1:'List2'!$B$90,2))) ->  | J47: =IF(ISBLANK(I47),"",IF(VALUE(I47)>89,1,VLOOKUP(VALUE(I47),List2!$A$1:'List2'!$B$90,2))) ->  | L47: =IF(ISBLANK(K47),"",IF(VALUE(K47)>89,1,VLOOKUP(VALUE(K47),List2!$A$1:'List2'!$B$90,2))) ->  | N47: =IF(ISBLANK(M47),"",IF(VALUE(M47)>89,1,VLOOKUP(VALUE(M47),List2!$A$1:'List2'!$B$90,2))) ->  | P47: =IF(ISBLANK(O47),"",IF(VALUE(O47)>89,1,VLOOKUP(VALUE(O47),List2!$A$1:'List2'!$B$90,2))) ->  | R47: =IF(ISBLANK(Q47),"",IF(VALUE(Q47)>89,1,VLOOKUP(VALUE(Q47),List2!$A$1:'List2'!$B$90,2))) ->  | T47: =IF(ISBLANK(S47),"",IF(VALUE(S47)>89,1,VLOOKUP(VALUE(S47),List2!$A$1:'List2'!$B$90,2))) ->  | V47: =IF(ISBLANK(U47),"",IF(VALUE(U47)>89,1,VLOOKUP(VALUE(U47),List2!$A$1:'List2'!$B$90,2))) ->  | X47: =IF(ISBLANK(W47),"",IF(VALUE(W47)>89,1,VLOOKUP(VALUE(W47),List2!$A$1:'List2'!$B$90,2))) ->  | Z47: =IF(ISBLANK(Y47),"",IF(VALUE(Y47)>89,1,VLOOKUP(VALUE(Y47),List2!$A$1:'List2'!$B$90,2))) ->  | AB47: =IF(ISBLANK(AA47),"",IF(VALUE(AA47)>89,1,VLOOKUP(VALUE(AA47),List2!$A$1:'List2'!$B$90,2))) ->  | AD47: =IF(ISBLANK(AC47),"",IF(VALUE(AC47)>89,1,VLOOKUP(VALUE(AC47),List2!$A$1:'List2'!$B$90,2))) ->  | AF47: =IF(ISBLANK(AE47),"",IF(VALUE(AE47)>89,1,VLOOKUP(VALUE(AE47),List2!$A$1:'List2'!$B$90,2))) ->  | AH47: =IF(ISBLANK(AG47),"",IF(VALUE(AG47)>89,1,VLOOKUP(VALUE(AG47),List2!$A$1:'List2'!$B$90,2))) ->  | AJ47: =IF(ISBLANK(AI47),"",IF(VALUE(AI47)>89,1,VLOOKUP(VALUE(AI47),List2!$A$1:'List2'!$B$90,2))) ->  | AL47: =IF(ISBLANK(AK47),"",IF(VALUE(AK47)>89,1,VLOOKUP(VALUE(AK47),List2!$A$1:'List2'!$B$90,2))) ->  | AN47: =IF(ISBLANK(AM47),"",IF(VALUE(AM47)>89,1,VLOOKUP(VALUE(AM47),List2!$A$1:'List2'!$B$90,2))) ->  | AP47: 0
F48: =IF(ISBLANK(E48),"",IF(VALUE(E48)>89,1,VLOOKUP(VALUE(E48),List2!$A$1:'List2'!$B$90,2))) ->  | H48: =IF(ISBLANK(G48),"",IF(VALUE(G48)>89,1,VLOOKUP(VALUE(G48),List2!$A$1:'List2'!$B$90,2))) ->  | J48: =IF(ISBLANK(I48),"",IF(VALUE(I48)>89,1,VLOOKUP(VALUE(I48),List2!$A$1:'List2'!$B$90,2))) ->  | L48: =IF(ISBLANK(K48),"",IF(VALUE(K48)>89,1,VLOOKUP(VALUE(K48),List2!$A$1:'List2'!$B$90,2))) ->  | N48: =IF(ISBLANK(M48),"",IF(VALUE(M48)>89,1,VLOOKUP(VALUE(M48),List2!$A$1:'List2'!$B$90,2))) ->  | P48: =IF(ISBLANK(O48),"",IF(VALUE(O48)>89,1,VLOOKUP(VALUE(O48),List2!$A$1:'List2'!$B$90,2))) ->  | R48: =IF(ISBLANK(Q48),"",IF(VALUE(Q48)>89,1,VLOOKUP(VALUE(Q48),List2!$A$1:'List2'!$B$90,2))) ->  | T48: =IF(ISBLANK(S48),"",IF(VALUE(S48)>89,1,VLOOKUP(VALUE(S48),List2!$A$1:'List2'!$B$90,2))) ->  | V48: =IF(ISBLANK(U48),"",IF(VALUE(U48)>89,1,VLOOKUP(VALUE(U48),List2!$A$1:'List2'!$B$90,2))) ->  | X48: =IF(ISBLANK(W48),"",IF(VALUE(W48)>89,1,VLOOKUP(VALUE(W48),List2!$A$1:'List2'!$B$90,2))) ->  | Z48: =IF(ISBLANK(Y48),"",IF(VALUE(Y48)>89,1,VLOOKUP(VALUE(Y48),List2!$A$1:'List2'!$B$90,2))) ->  | AB48: =IF(ISBLANK(AA48),"",IF(VALUE(AA48)>89,1,VLOOKUP(VALUE(AA48),List2!$A$1:'List2'!$B$90,2))) ->  | AD48: =IF(ISBLANK(AC48),"",IF(VALUE(AC48)>89,1,VLOOKUP(VALUE(AC48),List2!$A$1:'List2'!$B$90,2))) ->  | AF48: =IF(ISBLANK(AE48),"",IF(VALUE(AE48)>89,1,VLOOKUP(VALUE(AE48),List2!$A$1:'List2'!$B$90,2))) ->  | AH48: =IF(ISBLANK(AG48),"",IF(VALUE(AG48)>89,1,VLOOKUP(VALUE(AG48),List2!$A$1:'List2'!$B$90,2))) ->  | AJ48: =IF(ISBLANK(AI48),"",IF(VALUE(AI48)>89,1,VLOOKUP(VALUE(AI48),List2!$A$1:'List2'!$B$90,2))) ->  | AL48: =IF(ISBLANK(AK48),"",IF(VALUE(AK48)>89,1,VLOOKUP(VALUE(AK48),List2!$A$1:'List2'!$B$90,2))) ->  | AN48: =IF(ISBLANK(AM48),"",IF(VALUE(AM48)>89,1,VLOOKUP(VALUE(AM48),List2!$A$1:'List2'!$B$90,2))) ->  | AP48: 0
F49: =IF(ISBLANK(E49),"",IF(VALUE(E49)>89,1,VLOOKUP(VALUE(E49),List2!$A$1:'List2'!$B$90,2))) ->  | H49: =IF(ISBLANK(G49),"",IF(VALUE(G49)>89,1,VLOOKUP(VALUE(G49),List2!$A$1:'List2'!$B$90,2))) ->  | J49: =IF(ISBLANK(I49),"",IF(VALUE(I49)>89,1,VLOOKUP(VALUE(I49),List2!$A$1:'List2'!$B$90,2))) ->  | L49: =IF(ISBLANK(K49),"",IF(VALUE(K49)>89,1,VLOOKUP(VALUE(K49),List2!$A$1:'List2'!$B$90,2))) ->  | N49: =IF(ISBLANK(M49),"",IF(VALUE(M49)>89,1,VLOOKUP(VALUE(M49),List2!$A$1:'List2'!$B$90,2))) ->  | P49: =IF(ISBLANK(O49),"",IF(VALUE(O49)>89,1,VLOOKUP(VALUE(O49),List2!$A$1:'List2'!$B$90,2))) ->  | R49: =IF(ISBLANK(Q49),"",IF(VALUE(Q49)>89,1,VLOOKUP(VALUE(Q49),List2!$A$1:'List2'!$B$90,2))) ->  | T49: =IF(ISBLANK(S49),"",IF(VALUE(S49)>89,1,VLOOKUP(VALUE(S49),List2!$A$1:'List2'!$B$90,2))) ->  | V49: =IF(ISBLANK(U49),"",IF(VALUE(U49)>89,1,VLOOKUP(VALUE(U49),List2!$A$1:'List2'!$B$90,2))) ->  | X49: =IF(ISBLANK(W49),"",IF(VALUE(W49)>89,1,VLOOKUP(VALUE(W49),List2!$A$1:'List2'!$B$90,2))) ->  | Z49: =IF(ISBLANK(Y49),"",IF(VALUE(Y49)>89,1,VLOOKUP(VALUE(Y49),List2!$A$1:'List2'!$B$90,2))) ->  | AB49: =IF(ISBLANK(AA49),"",IF(VALUE(AA49)>89,1,VLOOKUP(VALUE(AA49),List2!$A$1:'List2'!$B$90,2))) ->  | AD49: =IF(ISBLANK(AC49),"",IF(VALUE(AC49)>89,1,VLOOKUP(VALUE(AC49),List2!$A$1:'List2'!$B$90,2))) ->  | AF49: =IF(ISBLANK(AE49),"",IF(VALUE(AE49)>89,1,VLOOKUP(VALUE(AE49),List2!$A$1:'List2'!$B$90,2))) ->  | AH49: =IF(ISBLANK(AG49),"",IF(VALUE(AG49)>89,1,VLOOKUP(VALUE(AG49),List2!$A$1:'List2'!$B$90,2))) ->  | AJ49: =IF(ISBLANK(AI49),"",IF(VALUE(AI49)>89,1,VLOOKUP(VALUE(AI49),List2!$A$1:'List2'!$B$90,2))) ->  | AL49: =IF(ISBLANK(AK49),"",IF(VALUE(AK49)>89,1,VLOOKUP(VALUE(AK49),List2!$A$1:'List2'!$B$90,2))) ->  | AN49: =IF(ISBLANK(AM49),"",IF(VALUE(AM49)>89,1,VLOOKUP(VALUE(AM49),List2!$A$1:'List2'!$B$90,2))) ->  | AP49: 0
F50: =IF(ISBLANK(E50),"",IF(VALUE(E50)>89,1,VLOOKUP(VALUE(E50),List2!$A$1:'List2'!$B$90,2))) ->  | H50: =IF(ISBLANK(G50),"",IF(VALUE(G50)>89,1,VLOOKUP(VALUE(G50),List2!$A$1:'List2'!$B$90,2))) ->  | J50: =IF(ISBLANK(I50),"",IF(VALUE(I50)>89,1,VLOOKUP(VALUE(I50),List2!$A$1:'List2'!$B$90,2))) ->  | L50: =IF(ISBLANK(K50),"",IF(VALUE(K50)>89,1,VLOOKUP(VALUE(K50),List2!$A$1:'List2'!$B$90,2))) ->  | N50: =IF(ISBLANK(M50),"",IF(VALUE(M50)>89,1,VLOOKUP(VALUE(M50),List2!$A$1:'List2'!$B$90,2))) ->  | P50: =IF(ISBLANK(O50),"",IF(VALUE(O50)>89,1,VLOOKUP(VALUE(O50),List2!$A$1:'List2'!$B$90,2))) ->  | R50: =IF(ISBLANK(Q50),"",IF(VALUE(Q50)>89,1,VLOOKUP(VALUE(Q50),List2!$A$1:'List2'!$B$90,2))) ->  | T50: =IF(ISBLANK(S50),"",IF(VALUE(S50)>89,1,VLOOKUP(VALUE(S50),List2!$A$1:'List2'!$B$90,2))) ->  | V50: =IF(ISBLANK(U50),"",IF(VALUE(U50)>89,1,VLOOKUP(VALUE(U50),List2!$A$1:'List2'!$B$90,2))) ->  | X50: =IF(ISBLANK(W50),"",IF(VALUE(W50)>89,1,VLOOKUP(VALUE(W50),List2!$A$1:'List2'!$B$90,2))) ->  | Z50: =IF(ISBLANK(Y50),"",IF(VALUE(Y50)>89,1,VLOOKUP(VALUE(Y50),List2!$A$1:'List2'!$B$90,2))) ->  | AB50: =IF(ISBLANK(AA50),"",IF(VALUE(AA50)>89,1,VLOOKUP(VALUE(AA50),List2!$A$1:'List2'!$B$90,2))) ->  | AD50: =IF(ISBLANK(AC50),"",IF(VALUE(AC50)>89,1,VLOOKUP(VALUE(AC50),List2!$A$1:'List2'!$B$90,2))) ->  | AF50: =IF(ISBLANK(AE50),"",IF(VALUE(AE50)>89,1,VLOOKUP(VALUE(AE50),List2!$A$1:'List2'!$B$90,2))) ->  | AH50: =IF(ISBLANK(AG50),"",IF(VALUE(AG50)>89,1,VLOOKUP(VALUE(AG50),List2!$A$1:'List2'!$B$90,2))) ->  | AJ50: =IF(ISBLANK(AI50),"",IF(VALUE(AI50)>89,1,VLOOKUP(VALUE(AI50),List2!$A$1:'List2'!$B$90,2))) ->  | AL50: =IF(ISBLANK(AK50),"",IF(VALUE(AK50)>89,1,VLOOKUP(VALUE(AK50),List2!$A$1:'List2'!$B$90,2))) ->  | AN50: =IF(ISBLANK(AM50),"",IF(VALUE(AM50)>89,1,VLOOKUP(VALUE(AM50),List2!$A$1:'List2'!$B$90,2))) ->  | AP50: 0
F51: =IF(ISBLANK(E51),"",IF(VALUE(E51)>89,1,VLOOKUP(VALUE(E51),List2!$A$1:'List2'!$B$90,2))) ->  | H51: =IF(ISBLANK(G51),"",IF(VALUE(G51)>89,1,VLOOKUP(VALUE(G51),List2!$A$1:'List2'!$B$90,2))) ->  | J51: =IF(ISBLANK(I51),"",IF(VALUE(I51)>89,1,VLOOKUP(VALUE(I51),List2!$A$1:'List2'!$B$90,2))) ->  | L51: =IF(ISBLANK(K51),"",IF(VALUE(K51)>89,1,VLOOKUP(VALUE(K51),List2!$A$1:'List2'!$B$90,2))) ->  | N51: =IF(ISBLANK(M51),"",IF(VALUE(M51)>89,1,VLOOKUP(VALUE(M51),List2!$A$1:'List2'!$B$90,2))) ->  | P51: =IF(ISBLANK(O51),"",IF(VALUE(O51)>89,1,VLOOKUP(VALUE(O51),List2!$A$1:'List2'!$B$90,2))) ->  | R51: =IF(ISBLANK(Q51),"",IF(VALUE(Q51)>89,1,VLOOKUP(VALUE(Q51),List2!$A$1:'List2'!$B$90,2))) ->  | T51: =IF(ISBLANK(S51),"",IF(VALUE(S51)>89,1,VLOOKUP(VALUE(S51),List2!$A$1:'List2'!$B$90,2))) ->  | V51: =IF(ISBLANK(U51),"",IF(VALUE(U51)>89,1,VLOOKUP(VALUE(U51),List2!$A$1:'List2'!$B$90,2))) ->  | X51: =IF(ISBLANK(W51),"",IF(VALUE(W51)>89,1,VLOOKUP(VALUE(W51),List2!$A$1:'List2'!$B$90,2))) ->  | Z51: =IF(ISBLANK(Y51),"",IF(VALUE(Y51)>89,1,VLOOKUP(VALUE(Y51),List2!$A$1:'List2'!$B$90,2))) ->  | AB51: =IF(ISBLANK(AA51),"",IF(VALUE(AA51)>89,1,VLOOKUP(VALUE(AA51),List2!$A$1:'List2'!$B$90,2))) ->  | AD51: =IF(ISBLANK(AC51),"",IF(VALUE(AC51)>89,1,VLOOKUP(VALUE(AC51),List2!$A$1:'List2'!$B$90,2))) ->  | AF51: =IF(ISBLANK(AE51),"",IF(VALUE(AE51)>89,1,VLOOKUP(VALUE(AE51),List2!$A$1:'List2'!$B$90,2))) ->  | AH51: =IF(ISBLANK(AG51),"",IF(VALUE(AG51)>89,1,VLOOKUP(VALUE(AG51),List2!$A$1:'List2'!$B$90,2))) ->  | AJ51: =IF(ISBLANK(AI51),"",IF(VALUE(AI51)>89,1,VLOOKUP(VALUE(AI51),List2!$A$1:'List2'!$B$90,2))) ->  | AL51: =IF(ISBLANK(AK51),"",IF(VALUE(AK51)>89,1,VLOOKUP(VALUE(AK51),List2!$A$1:'List2'!$B$90,2))) ->  | AN51: =IF(ISBLANK(AM51),"",IF(VALUE(AM51)>89,1,VLOOKUP(VALUE(AM51),List2!$A$1:'List2'!$B$90,2))) ->  | AP51: 0
F52: =IF(ISBLANK(E52),"",IF(VALUE(E52)>89,1,VLOOKUP(VALUE(E52),List2!$A$1:'List2'!$B$90,2))) ->  | H52: =IF(ISBLANK(G52),"",IF(VALUE(G52)>89,1,VLOOKUP(VALUE(G52),List2!$A$1:'List2'!$B$90,2))) ->  | J52: =IF(ISBLANK(I52),"",IF(VALUE(I52)>89,1,VLOOKUP(VALUE(I52),List2!$A$1:'List2'!$B$90,2))) ->  | L52: =IF(ISBLANK(K52),"",IF(VALUE(K52)>89,1,VLOOKUP(VALUE(K52),List2!$A$1:'List2'!$B$90,2))) ->  | N52: =IF(ISBLANK(M52),"",IF(VALUE(M52)>89,1,VLOOKUP(VALUE(M52),List2!$A$1:'List2'!$B$90,2))) ->  | P52: =IF(ISBLANK(O52),"",IF(VALUE(O52)>89,1,VLOOKUP(VALUE(O52),List2!$A$1:'List2'!$B$90,2))) ->  | R52: =IF(ISBLANK(Q52),"",IF(VALUE(Q52)>89,1,VLOOKUP(VALUE(Q52),List2!$A$1:'List2'!$B$90,2))) ->  | T52: =IF(ISBLANK(S52),"",IF(VALUE(S52)>89,1,VLOOKUP(VALUE(S52),List2!$A$1:'List2'!$B$90,2))) ->  | V52: =IF(ISBLANK(U52),"",IF(VALUE(U52)>89,1,VLOOKUP(VALUE(U52),List2!$A$1:'List2'!$B$90,2))) ->  | X52: =IF(ISBLANK(W52),"",IF(VALUE(W52)>89,1,VLOOKUP(VALUE(W52),List2!$A$1:'List2'!$B$90,2))) ->  | Z52: =IF(ISBLANK(Y52),"",IF(VALUE(Y52)>89,1,VLOOKUP(VALUE(Y52),List2!$A$1:'List2'!$B$90,2))) ->  | AB52: =IF(ISBLANK(AA52),"",IF(VALUE(AA52)>89,1,VLOOKUP(VALUE(AA52),List2!$A$1:'List2'!$B$90,2))) ->  | AD52: =IF(ISBLANK(AC52),"",IF(VALUE(AC52)>89,1,VLOOKUP(VALUE(AC52),List2!$A$1:'List2'!$B$90,2))) ->  | AF52: =IF(ISBLANK(AE52),"",IF(VALUE(AE52)>89,1,VLOOKUP(VALUE(AE52),List2!$A$1:'List2'!$B$90,2))) ->  | AH52: =IF(ISBLANK(AG52),"",IF(VALUE(AG52)>89,1,VLOOKUP(VALUE(AG52),List2!$A$1:'List2'!$B$90,2))) ->  | AJ52: =IF(ISBLANK(AI52),"",IF(VALUE(AI52)>89,1,VLOOKUP(VALUE(AI52),List2!$A$1:'List2'!$B$90,2))) ->  | AL52: =IF(ISBLANK(AK52),"",IF(VALUE(AK52)>89,1,VLOOKUP(VALUE(AK52),List2!$A$1:'List2'!$B$90,2))) ->  | AN52: =IF(ISBLANK(AM52),"",IF(VALUE(AM52)>89,1,VLOOKUP(VALUE(AM52),List2!$A$1:'List2'!$B$90,2))) ->  | AP52: 0
F53: =IF(ISBLANK(E53),"",IF(VALUE(E53)>89,1,VLOOKUP(VALUE(E53),List2!$A$1:'List2'!$B$90,2))) ->  | H53: =IF(ISBLANK(G53),"",IF(VALUE(G53)>89,1,VLOOKUP(VALUE(G53),List2!$A$1:'List2'!$B$90,2))) ->  | J53: =IF(ISBLANK(I53),"",IF(VALUE(I53)>89,1,VLOOKUP(VALUE(I53),List2!$A$1:'List2'!$B$90,2))) ->  | L53: =IF(ISBLANK(K53),"",IF(VALUE(K53)>89,1,VLOOKUP(VALUE(K53),List2!$A$1:'List2'!$B$90,2))) ->  | N53: =IF(ISBLANK(M53),"",IF(VALUE(M53)>89,1,VLOOKUP(VALUE(M53),List2!$A$1:'List2'!$B$90,2))) ->  | P53: =IF(ISBLANK(O53),"",IF(VALUE(O53)>89,1,VLOOKUP(VALUE(O53),List2!$A$1:'List2'!$B$90,2))) ->  | R53: =IF(ISBLANK(Q53),"",IF(VALUE(Q53)>89,1,VLOOKUP(VALUE(Q53),List2!$A$1:'List2'!$B$90,2))) ->  | T53: =IF(ISBLANK(S53),"",IF(VALUE(S53)>89,1,VLOOKUP(VALUE(S53),List2!$A$1:'List2'!$B$90,2))) ->  | V53: =IF(ISBLANK(U53),"",IF(VALUE(U53)>89,1,VLOOKUP(VALUE(U53),List2!$A$1:'List2'!$B$90,2))) ->  | X53: =IF(ISBLANK(W53),"",IF(VALUE(W53)>89,1,VLOOKUP(VALUE(W53),List2!$A$1:'List2'!$B$90,2))) ->  | Z53: =IF(ISBLANK(Y53),"",IF(VALUE(Y53)>89,1,VLOOKUP(VALUE(Y53),List2!$A$1:'List2'!$B$90,2))) ->  | AB53: =IF(ISBLANK(AA53),"",IF(VALUE(AA53)>89,1,VLOOKUP(VALUE(AA53),List2!$A$1:'List2'!$B$90,2))) ->  | AD53: =IF(ISBLANK(AC53),"",IF(VALUE(AC53)>89,1,VLOOKUP(VALUE(AC53),List2!$A$1:'List2'!$B$90,2))) ->  | AF53: =IF(ISBLANK(AE53),"",IF(VALUE(AE53)>89,1,VLOOKUP(VALUE(AE53),List2!$A$1:'List2'!$B$90,2))) ->  | AH53: =IF(ISBLANK(AG53),"",IF(VALUE(AG53)>89,1,VLOOKUP(VALUE(AG53),List2!$A$1:'List2'!$B$90,2))) ->  | AJ53: =IF(ISBLANK(AI53),"",IF(VALUE(AI53)>89,1,VLOOKUP(VALUE(AI53),List2!$A$1:'List2'!$B$90,2))) ->  | AL53: =IF(ISBLANK(AK53),"",IF(VALUE(AK53)>89,1,VLOOKUP(VALUE(AK53),List2!$A$1:'List2'!$B$90,2))) ->  | AN53: =IF(ISBLANK(AM53),"",IF(VALUE(AM53)>89,1,VLOOKUP(VALUE(AM53),List2!$A$1:'List2'!$B$90,2))) ->  | AP53: 0
F54: =IF(ISBLANK(E54),"",IF(VALUE(E54)>89,1,VLOOKUP(VALUE(E54),List2!$A$1:'List2'!$B$90,2))) ->  | H54: =IF(ISBLANK(G54),"",IF(VALUE(G54)>89,1,VLOOKUP(VALUE(G54),List2!$A$1:'List2'!$B$90,2))) ->  | J54: =IF(ISBLANK(I54),"",IF(VALUE(I54)>89,1,VLOOKUP(VALUE(I54),List2!$A$1:'List2'!$B$90,2))) ->  | L54: =IF(ISBLANK(K54),"",IF(VALUE(K54)>89,1,VLOOKUP(VALUE(K54),List2!$A$1:'List2'!$B$90,2))) ->  | N54: =IF(ISBLANK(M54),"",IF(VALUE(M54)>89,1,VLOOKUP(VALUE(M54),List2!$A$1:'List2'!$B$90,2))) ->  | P54: =IF(ISBLANK(O54),"",IF(VALUE(O54)>89,1,VLOOKUP(VALUE(O54),List2!$A$1:'List2'!$B$90,2))) ->  | R54: =IF(ISBLANK(Q54),"",IF(VALUE(Q54)>89,1,VLOOKUP(VALUE(Q54),List2!$A$1:'List2'!$B$90,2))) ->  | T54: =IF(ISBLANK(S54),"",IF(VALUE(S54)>89,1,VLOOKUP(VALUE(S54),List2!$A$1:'List2'!$B$90,2))) ->  | V54: =IF(ISBLANK(U54),"",IF(VALUE(U54)>89,1,VLOOKUP(VALUE(U54),List2!$A$1:'List2'!$B$90,2))) ->  | X54: =IF(ISBLANK(W54),"",IF(VALUE(W54)>89,1,VLOOKUP(VALUE(W54),List2!$A$1:'List2'!$B$90,2))) ->  | Z54: =IF(ISBLANK(Y54),"",IF(VALUE(Y54)>89,1,VLOOKUP(VALUE(Y54),List2!$A$1:'List2'!$B$90,2))) ->  | AB54: =IF(ISBLANK(AA54),"",IF(VALUE(AA54)>89,1,VLOOKUP(VALUE(AA54),List2!$A$1:'List2'!$B$90,2))) ->  | AD54: =IF(ISBLANK(AC54),"",IF(VALUE(AC54)>89,1,VLOOKUP(VALUE(AC54),List2!$A$1:'List2'!$B$90,2))) ->  | AF54: =IF(ISBLANK(AE54),"",IF(VALUE(AE54)>89,1,VLOOKUP(VALUE(AE54),List2!$A$1:'List2'!$B$90,2))) ->  | AH54: =IF(ISBLANK(AG54),"",IF(VALUE(AG54)>89,1,VLOOKUP(VALUE(AG54),List2!$A$1:'List2'!$B$90,2))) ->  | AJ54: =IF(ISBLANK(AI54),"",IF(VALUE(AI54)>89,1,VLOOKUP(VALUE(AI54),List2!$A$1:'List2'!$B$90,2))) ->  | AL54: =IF(ISBLANK(AK54),"",IF(VALUE(AK54)>89,1,VLOOKUP(VALUE(AK54),List2!$A$1:'List2'!$B$90,2))) ->  | AN54: =IF(ISBLANK(AM54),"",IF(VALUE(AM54)>89,1,VLOOKUP(VALUE(AM54),List2!$A$1:'List2'!$B$90,2))) ->  | AP54: 0
F55: =IF(ISBLANK(E55),"",IF(VALUE(E55)>89,1,VLOOKUP(VALUE(E55),List2!$A$1:'List2'!$B$90,2))) ->  | H55: =IF(ISBLANK(G55),"",IF(VALUE(G55)>89,1,VLOOKUP(VALUE(G55),List2!$A$1:'List2'!$B$90,2))) ->  | J55: =IF(ISBLANK(I55),"",IF(VALUE(I55)>89,1,VLOOKUP(VALUE(I55),List2!$A$1:'List2'!$B$90,2))) ->  | L55: =IF(ISBLANK(K55),"",IF(VALUE(K55)>89,1,VLOOKUP(VALUE(K55),List2!$A$1:'List2'!$B$90,2))) ->  | N55: =IF(ISBLANK(M55),"",IF(VALUE(M55)>89,1,VLOOKUP(VALUE(M55),List2!$A$1:'List2'!$B$90,2))) ->  | P55: =IF(ISBLANK(O55),"",IF(VALUE(O55)>89,1,VLOOKUP(VALUE(O55),List2!$A$1:'List2'!$B$90,2))) ->  | R55: =IF(ISBLANK(Q55),"",IF(VALUE(Q55)>89,1,VLOOKUP(VALUE(Q55),List2!$A$1:'List2'!$B$90,2))) ->  | T55: =IF(ISBLANK(S55),"",IF(VALUE(S55)>89,1,VLOOKUP(VALUE(S55),List2!$A$1:'List2'!$B$90,2))) ->  | V55: =IF(ISBLANK(U55),"",IF(VALUE(U55)>89,1,VLOOKUP(VALUE(U55),List2!$A$1:'List2'!$B$90,2))) ->  | X55: =IF(ISBLANK(W55),"",IF(VALUE(W55)>89,1,VLOOKUP(VALUE(W55),List2!$A$1:'List2'!$B$90,2))) ->  | Z55: =IF(ISBLANK(Y55),"",IF(VALUE(Y55)>89,1,VLOOKUP(VALUE(Y55),List2!$A$1:'List2'!$B$90,2))) ->  | AB55: =IF(ISBLANK(AA55),"",IF(VALUE(AA55)>89,1,VLOOKUP(VALUE(AA55),List2!$A$1:'List2'!$B$90,2))) ->  | AD55: =IF(ISBLANK(AC55),"",IF(VALUE(AC55)>89,1,VLOOKUP(VALUE(AC55),List2!$A$1:'List2'!$B$90,2))) ->  | AF55: =IF(ISBLANK(AE55),"",IF(VALUE(AE55)>89,1,VLOOKUP(VALUE(AE55),List2!$A$1:'List2'!$B$90,2))) ->  | AH55: =IF(ISBLANK(AG55),"",IF(VALUE(AG55)>89,1,VLOOKUP(VALUE(AG55),List2!$A$1:'List2'!$B$90,2))) ->  | AJ55: =IF(ISBLANK(AI55),"",IF(VALUE(AI55)>89,1,VLOOKUP(VALUE(AI55),List2!$A$1:'List2'!$B$90,2))) ->  | AL55: =IF(ISBLANK(AK55),"",IF(VALUE(AK55)>89,1,VLOOKUP(VALUE(AK55),List2!$A$1:'List2'!$B$90,2))) ->  | AN55: =IF(ISBLANK(AM55),"",IF(VALUE(AM55)>89,1,VLOOKUP(VALUE(AM55),List2!$A$1:'List2'!$B$90,2))) ->  | AP55: 0
F56: =IF(ISBLANK(E56),"",IF(VALUE(E56)>89,1,VLOOKUP(VALUE(E56),List2!$A$1:'List2'!$B$90,2))) ->  | H56: =IF(ISBLANK(G56),"",IF(VALUE(G56)>89,1,VLOOKUP(VALUE(G56),List2!$A$1:'List2'!$B$90,2))) ->  | J56: =IF(ISBLANK(I56),"",IF(VALUE(I56)>89,1,VLOOKUP(VALUE(I56),List2!$A$1:'List2'!$B$90,2))) ->  | L56: =IF(ISBLANK(K56),"",IF(VALUE(K56)>89,1,VLOOKUP(VALUE(K56),List2!$A$1:'List2'!$B$90,2))) ->  | N56: =IF(ISBLANK(M56),"",IF(VALUE(M56)>89,1,VLOOKUP(VALUE(M56),List2!$A$1:'List2'!$B$90,2))) ->  | P56: =IF(ISBLANK(O56),"",IF(VALUE(O56)>89,1,VLOOKUP(VALUE(O56),List2!$A$1:'List2'!$B$90,2))) ->  | R56: =IF(ISBLANK(Q56),"",IF(VALUE(Q56)>89,1,VLOOKUP(VALUE(Q56),List2!$A$1:'List2'!$B$90,2))) ->  | T56: =IF(ISBLANK(S56),"",IF(VALUE(S56)>89,1,VLOOKUP(VALUE(S56),List2!$A$1:'List2'!$B$90,2))) ->  | V56: =IF(ISBLANK(U56),"",IF(VALUE(U56)>89,1,VLOOKUP(VALUE(U56),List2!$A$1:'List2'!$B$90,2))) ->  | X56: =IF(ISBLANK(W56),"",IF(VALUE(W56)>89,1,VLOOKUP(VALUE(W56),List2!$A$1:'List2'!$B$90,2))) ->  | Z56: =IF(ISBLANK(Y56),"",IF(VALUE(Y56)>89,1,VLOOKUP(VALUE(Y56),List2!$A$1:'List2'!$B$90,2))) ->  | AB56: =IF(ISBLANK(AA56),"",IF(VALUE(AA56)>89,1,VLOOKUP(VALUE(AA56),List2!$A$1:'List2'!$B$90,2))) ->  | AD56: =IF(ISBLANK(AC56),"",IF(VALUE(AC56)>89,1,VLOOKUP(VALUE(AC56),List2!$A$1:'List2'!$B$90,2))) ->  | AF56: =IF(ISBLANK(AE56),"",IF(VALUE(AE56)>89,1,VLOOKUP(VALUE(AE56),List2!$A$1:'List2'!$B$90,2))) ->  | AH56: =IF(ISBLANK(AG56),"",IF(VALUE(AG56)>89,1,VLOOKUP(VALUE(AG56),List2!$A$1:'List2'!$B$90,2))) ->  | AJ56: =IF(ISBLANK(AI56),"",IF(VALUE(AI56)>89,1,VLOOKUP(VALUE(AI56),List2!$A$1:'List2'!$B$90,2))) ->  | AL56: =IF(ISBLANK(AK56),"",IF(VALUE(AK56)>89,1,VLOOKUP(VALUE(AK56),List2!$A$1:'List2'!$B$90,2))) ->  | AN56: =IF(ISBLANK(AM56),"",IF(VALUE(AM56)>89,1,VLOOKUP(VALUE(AM56),List2!$A$1:'List2'!$B$90,2))) ->  | AP56: 0
F57: =IF(ISBLANK(E57),"",IF(VALUE(E57)>89,1,VLOOKUP(VALUE(E57),List2!$A$1:'List2'!$B$90,2))) ->  | H57: =IF(ISBLANK(G57),"",IF(VALUE(G57)>89,1,VLOOKUP(VALUE(G57),List2!$A$1:'List2'!$B$90,2))) ->  | J57: =IF(ISBLANK(I57),"",IF(VALUE(I57)>89,1,VLOOKUP(VALUE(I57),List2!$A$1:'List2'!$B$90,2))) ->  | L57: =IF(ISBLANK(K57),"",IF(VALUE(K57)>89,1,VLOOKUP(VALUE(K57),List2!$A$1:'List2'!$B$90,2))) ->  | N57: =IF(ISBLANK(M57),"",IF(VALUE(M57)>89,1,VLOOKUP(VALUE(M57),List2!$A$1:'List2'!$B$90,2))) ->  | P57: =IF(ISBLANK(O57),"",IF(VALUE(O57)>89,1,VLOOKUP(VALUE(O57),List2!$A$1:'List2'!$B$90,2))) ->  | R57: =IF(ISBLANK(Q57),"",IF(VALUE(Q57)>89,1,VLOOKUP(VALUE(Q57),List2!$A$1:'List2'!$B$90,2))) ->  | T57: =IF(ISBLANK(S57),"",IF(VALUE(S57)>89,1,VLOOKUP(VALUE(S57),List2!$A$1:'List2'!$B$90,2))) ->  | V57: =IF(ISBLANK(U57),"",IF(VALUE(U57)>89,1,VLOOKUP(VALUE(U57),List2!$A$1:'List2'!$B$90,2))) ->  | X57: =IF(ISBLANK(W57),"",IF(VALUE(W57)>89,1,VLOOKUP(VALUE(W57),List2!$A$1:'List2'!$B$90,2))) ->  | Z57: =IF(ISBLANK(Y57),"",IF(VALUE(Y57)>89,1,VLOOKUP(VALUE(Y57),List2!$A$1:'List2'!$B$90,2))) ->  | AB57: =IF(ISBLANK(AA57),"",IF(VALUE(AA57)>89,1,VLOOKUP(VALUE(AA57),List2!$A$1:'List2'!$B$90,2))) ->  | AD57: =IF(ISBLANK(AC57),"",IF(VALUE(AC57)>89,1,VLOOKUP(VALUE(AC57),List2!$A$1:'List2'!$B$90,2))) ->  | AF57: =IF(ISBLANK(AE57),"",IF(VALUE(AE57)>89,1,VLOOKUP(VALUE(AE57),List2!$A$1:'List2'!$B$90,2))) ->  | AH57: =IF(ISBLANK(AG57),"",IF(VALUE(AG57)>89,1,VLOOKUP(VALUE(AG57),List2!$A$1:'List2'!$B$90,2))) ->  | AJ57: =IF(ISBLANK(AI57),"",IF(VALUE(AI57)>89,1,VLOOKUP(VALUE(AI57),List2!$A$1:'List2'!$B$90,2))) ->  | AL57: =IF(ISBLANK(AK57),"",IF(VALUE(AK57)>89,1,VLOOKUP(VALUE(AK57),List2!$A$1:'List2'!$B$90,2))) ->  | AN57: =IF(ISBLANK(AM57),"",IF(VALUE(AM57)>89,1,VLOOKUP(VALUE(AM57),List2!$A$1:'List2'!$B$90,2))) ->  | AP57: 0
F58: =IF(ISBLANK(E58),"",IF(VALUE(E58)>89,1,VLOOKUP(VALUE(E58),List2!$A$1:'List2'!$B$90,2))) ->  | H58: =IF(ISBLANK(G58),"",IF(VALUE(G58)>89,1,VLOOKUP(VALUE(G58),List2!$A$1:'List2'!$B$90,2))) ->  | J58: =IF(ISBLANK(I58),"",IF(VALUE(I58)>89,1,VLOOKUP(VALUE(I58),List2!$A$1:'List2'!$B$90,2))) ->  | L58: =IF(ISBLANK(K58),"",IF(VALUE(K58)>89,1,VLOOKUP(VALUE(K58),List2!$A$1:'List2'!$B$90,2))) ->  | N58: =IF(ISBLANK(M58),"",IF(VALUE(M58)>89,1,VLOOKUP(VALUE(M58),List2!$A$1:'List2'!$B$90,2))) ->  | P58: =IF(ISBLANK(O58),"",IF(VALUE(O58)>89,1,VLOOKUP(VALUE(O58),List2!$A$1:'List2'!$B$90,2))) ->  | R58: =IF(ISBLANK(Q58),"",IF(VALUE(Q58)>89,1,VLOOKUP(VALUE(Q58),List2!$A$1:'List2'!$B$90,2))) ->  | T58: =IF(ISBLANK(S58),"",IF(VALUE(S58)>89,1,VLOOKUP(VALUE(S58),List2!$A$1:'List2'!$B$90,2))) ->  | V58: =IF(ISBLANK(U58),"",IF(VALUE(U58)>89,1,VLOOKUP(VALUE(U58),List2!$A$1:'List2'!$B$90,2))) ->  | X58: =IF(ISBLANK(W58),"",IF(VALUE(W58)>89,1,VLOOKUP(VALUE(W58),List2!$A$1:'List2'!$B$90,2))) ->  | Z58: =IF(ISBLANK(Y58),"",IF(VALUE(Y58)>89,1,VLOOKUP(VALUE(Y58),List2!$A$1:'List2'!$B$90,2))) ->  | AB58: =IF(ISBLANK(AA58),"",IF(VALUE(AA58)>89,1,VLOOKUP(VALUE(AA58),List2!$A$1:'List2'!$B$90,2))) ->  | AD58: =IF(ISBLANK(AC58),"",IF(VALUE(AC58)>89,1,VLOOKUP(VALUE(AC58),List2!$A$1:'List2'!$B$90,2))) ->  | AF58: =IF(ISBLANK(AE58),"",IF(VALUE(AE58)>89,1,VLOOKUP(VALUE(AE58),List2!$A$1:'List2'!$B$90,2))) ->  | AH58: =IF(ISBLANK(AG58),"",IF(VALUE(AG58)>89,1,VLOOKUP(VALUE(AG58),List2!$A$1:'List2'!$B$90,2))) ->  | AJ58: =IF(ISBLANK(AI58),"",IF(VALUE(AI58)>89,1,VLOOKUP(VALUE(AI58),List2!$A$1:'List2'!$B$90,2))) ->  | AL58: =IF(ISBLANK(AK58),"",IF(VALUE(AK58)>89,1,VLOOKUP(VALUE(AK58),List2!$A$1:'List2'!$B$90,2))) ->  | AN58: =IF(ISBLANK(AM58),"",IF(VALUE(AM58)>89,1,VLOOKUP(VALUE(AM58),List2!$A$1:'List2'!$B$90,2))) ->  | AP58: 0
F59: =IF(ISBLANK(E59),"",IF(VALUE(E59)>89,1,VLOOKUP(VALUE(E59),List2!$A$1:'List2'!$B$90,2))) ->  | H59: =IF(ISBLANK(G59),"",IF(VALUE(G59)>89,1,VLOOKUP(VALUE(G59),List2!$A$1:'List2'!$B$90,2))) ->  | J59: =IF(ISBLANK(I59),"",IF(VALUE(I59)>89,1,VLOOKUP(VALUE(I59),List2!$A$1:'List2'!$B$90,2))) ->  | L59: =IF(ISBLANK(K59),"",IF(VALUE(K59)>89,1,VLOOKUP(VALUE(K59),List2!$A$1:'List2'!$B$90,2))) ->  | N59: =IF(ISBLANK(M59),"",IF(VALUE(M59)>89,1,VLOOKUP(VALUE(M59),List2!$A$1:'List2'!$B$90,2))) ->  | P59: =IF(ISBLANK(O59),"",IF(VALUE(O59)>89,1,VLOOKUP(VALUE(O59),List2!$A$1:'List2'!$B$90,2))) ->  | R59: =IF(ISBLANK(Q59),"",IF(VALUE(Q59)>89,1,VLOOKUP(VALUE(Q59),List2!$A$1:'List2'!$B$90,2))) ->  | T59: =IF(ISBLANK(S59),"",IF(VALUE(S59)>89,1,VLOOKUP(VALUE(S59),List2!$A$1:'List2'!$B$90,2))) ->  | V59: =IF(ISBLANK(U59),"",IF(VALUE(U59)>89,1,VLOOKUP(VALUE(U59),List2!$A$1:'List2'!$B$90,2))) ->  | X59: =IF(ISBLANK(W59),"",IF(VALUE(W59)>89,1,VLOOKUP(VALUE(W59),List2!$A$1:'List2'!$B$90,2))) ->  | Z59: =IF(ISBLANK(Y59),"",IF(VALUE(Y59)>89,1,VLOOKUP(VALUE(Y59),List2!$A$1:'List2'!$B$90,2))) ->  | AB59: =IF(ISBLANK(AA59),"",IF(VALUE(AA59)>89,1,VLOOKUP(VALUE(AA59),List2!$A$1:'List2'!$B$90,2))) ->  | AD59: =IF(ISBLANK(AC59),"",IF(VALUE(AC59)>89,1,VLOOKUP(VALUE(AC59),List2!$A$1:'List2'!$B$90,2))) ->  | AF59: =IF(ISBLANK(AE59),"",IF(VALUE(AE59)>89,1,VLOOKUP(VALUE(AE59),List2!$A$1:'List2'!$B$90,2))) ->  | AH59: =IF(ISBLANK(AG59),"",IF(VALUE(AG59)>89,1,VLOOKUP(VALUE(AG59),List2!$A$1:'List2'!$B$90,2))) ->  | AJ59: =IF(ISBLANK(AI59),"",IF(VALUE(AI59)>89,1,VLOOKUP(VALUE(AI59),List2!$A$1:'List2'!$B$90,2))) ->  | AL59: =IF(ISBLANK(AK59),"",IF(VALUE(AK59)>89,1,VLOOKUP(VALUE(AK59),List2!$A$1:'List2'!$B$90,2))) ->  | AN59: =IF(ISBLANK(AM59),"",IF(VALUE(AM59)>89,1,VLOOKUP(VALUE(AM59),List2!$A$1:'List2'!$B$90,2))) ->  | AP59: 0
F60: =IF(ISBLANK(E60),"",IF(VALUE(E60)>89,1,VLOOKUP(VALUE(E60),List2!$A$1:'List2'!$B$90,2))) ->  | H60: =IF(ISBLANK(G60),"",IF(VALUE(G60)>89,1,VLOOKUP(VALUE(G60),List2!$A$1:'List2'!$B$90,2))) ->  | J60: =IF(ISBLANK(I60),"",IF(VALUE(I60)>89,1,VLOOKUP(VALUE(I60),List2!$A$1:'List2'!$B$90,2))) ->  | L60: =IF(ISBLANK(K60),"",IF(VALUE(K60)>89,1,VLOOKUP(VALUE(K60),List2!$A$1:'List2'!$B$90,2))) ->  | N60: =IF(ISBLANK(M60),"",IF(VALUE(M60)>89,1,VLOOKUP(VALUE(M60),List2!$A$1:'List2'!$B$90,2))) ->  | P60: =IF(ISBLANK(O60),"",IF(VALUE(O60)>89,1,VLOOKUP(VALUE(O60),List2!$A$1:'List2'!$B$90,2))) ->  | R60: =IF(ISBLANK(Q60),"",IF(VALUE(Q60)>89,1,VLOOKUP(VALUE(Q60),List2!$A$1:'List2'!$B$90,2))) ->  | T60: =IF(ISBLANK(S60),"",IF(VALUE(S60)>89,1,VLOOKUP(VALUE(S60),List2!$A$1:'List2'!$B$90,2))) ->  | V60: =IF(ISBLANK(U60),"",IF(VALUE(U60)>89,1,VLOOKUP(VALUE(U60),List2!$A$1:'List2'!$B$90,2))) ->  | X60: =IF(ISBLANK(W60),"",IF(VALUE(W60)>89,1,VLOOKUP(VALUE(W60),List2!$A$1:'List2'!$B$90,2))) ->  | Z60: =IF(ISBLANK(Y60),"",IF(VALUE(Y60)>89,1,VLOOKUP(VALUE(Y60),List2!$A$1:'List2'!$B$90,2))) ->  | AB60: =IF(ISBLANK(AA60),"",IF(VALUE(AA60)>89,1,VLOOKUP(VALUE(AA60),List2!$A$1:'List2'!$B$90,2))) ->  | AD60: =IF(ISBLANK(AC60),"",IF(VALUE(AC60)>89,1,VLOOKUP(VALUE(AC60),List2!$A$1:'List2'!$B$90,2))) ->  | AF60: =IF(ISBLANK(AE60),"",IF(VALUE(AE60)>89,1,VLOOKUP(VALUE(AE60),List2!$A$1:'List2'!$B$90,2))) ->  | AH60: =IF(ISBLANK(AG60),"",IF(VALUE(AG60)>89,1,VLOOKUP(VALUE(AG60),List2!$A$1:'List2'!$B$90,2))) ->  | AJ60: =IF(ISBLANK(AI60),"",IF(VALUE(AI60)>89,1,VLOOKUP(VALUE(AI60),List2!$A$1:'List2'!$B$90,2))) ->  | AL60: =IF(ISBLANK(AK60),"",IF(VALUE(AK60)>89,1,VLOOKUP(VALUE(AK60),List2!$A$1:'List2'!$B$90,2))) ->  | AN60: =IF(ISBLANK(AM60),"",IF(VALUE(AM60)>89,1,VLOOKUP(VALUE(AM60),List2!$A$1:'List2'!$B$90,2))) ->  | AP60: 0
F61: =IF(ISBLANK(E61),"",IF(VALUE(E61)>89,1,VLOOKUP(VALUE(E61),List2!$A$1:'List2'!$B$90,2))) ->  | H61: =IF(ISBLANK(G61),"",IF(VALUE(G61)>89,1,VLOOKUP(VALUE(G61),List2!$A$1:'List2'!$B$90,2))) ->  | J61: =IF(ISBLANK(I61),"",IF(VALUE(I61)>89,1,VLOOKUP(VALUE(I61),List2!$A$1:'List2'!$B$90,2))) ->  | L61: =IF(ISBLANK(K61),"",IF(VALUE(K61)>89,1,VLOOKUP(VALUE(K61),List2!$A$1:'List2'!$B$90,2))) ->  | N61: =IF(ISBLANK(M61),"",IF(VALUE(M61)>89,1,VLOOKUP(VALUE(M61),List2!$A$1:'List2'!$B$90,2))) ->  | P61: =IF(ISBLANK(O61),"",IF(VALUE(O61)>89,1,VLOOKUP(VALUE(O61),List2!$A$1:'List2'!$B$90,2))) ->  | R61: =IF(ISBLANK(Q61),"",IF(VALUE(Q61)>89,1,VLOOKUP(VALUE(Q61),List2!$A$1:'List2'!$B$90,2))) ->  | T61: =IF(ISBLANK(S61),"",IF(VALUE(S61)>89,1,VLOOKUP(VALUE(S61),List2!$A$1:'List2'!$B$90,2))) ->  | V61: =IF(ISBLANK(U61),"",IF(VALUE(U61)>89,1,VLOOKUP(VALUE(U61),List2!$A$1:'List2'!$B$90,2))) ->  | X61: =IF(ISBLANK(W61),"",IF(VALUE(W61)>89,1,VLOOKUP(VALUE(W61),List2!$A$1:'List2'!$B$90,2))) ->  | Z61: =IF(ISBLANK(Y61),"",IF(VALUE(Y61)>89,1,VLOOKUP(VALUE(Y61),List2!$A$1:'List2'!$B$90,2))) ->  | AB61: =IF(ISBLANK(AA61),"",IF(VALUE(AA61)>89,1,VLOOKUP(VALUE(AA61),List2!$A$1:'List2'!$B$90,2))) ->  | AD61: =IF(ISBLANK(AC61),"",IF(VALUE(AC61)>89,1,VLOOKUP(VALUE(AC61),List2!$A$1:'List2'!$B$90,2))) ->  | AF61: =IF(ISBLANK(AE61),"",IF(VALUE(AE61)>89,1,VLOOKUP(VALUE(AE61),List2!$A$1:'List2'!$B$90,2))) ->  | AH61: =IF(ISBLANK(AG61),"",IF(VALUE(AG61)>89,1,VLOOKUP(VALUE(AG61),List2!$A$1:'List2'!$B$90,2))) ->  | AJ61: =IF(ISBLANK(AI61),"",IF(VALUE(AI61)>89,1,VLOOKUP(VALUE(AI61),List2!$A$1:'List2'!$B$90,2))) ->  | AL61: =IF(ISBLANK(AK61),"",IF(VALUE(AK61)>89,1,VLOOKUP(VALUE(AK61),List2!$A$1:'List2'!$B$90,2))) ->  | AN61: =IF(ISBLANK(AM61),"",IF(VALUE(AM61)>89,1,VLOOKUP(VALUE(AM61),List2!$A$1:'List2'!$B$90,2))) ->  | AP61: 0
F62: =IF(ISBLANK(E62),"",IF(VALUE(E62)>89,1,VLOOKUP(VALUE(E62),List2!$A$1:'List2'!$B$90,2))) ->  | H62: =IF(ISBLANK(G62),"",IF(VALUE(G62)>89,1,VLOOKUP(VALUE(G62),List2!$A$1:'List2'!$B$90,2))) ->  | J62: =IF(ISBLANK(I62),"",IF(VALUE(I62)>89,1,VLOOKUP(VALUE(I62),List2!$A$1:'List2'!$B$90,2))) ->  | L62: =IF(ISBLANK(K62),"",IF(VALUE(K62)>89,1,VLOOKUP(VALUE(K62),List2!$A$1:'List2'!$B$90,2))) ->  | N62: =IF(ISBLANK(M62),"",IF(VALUE(M62)>89,1,VLOOKUP(VALUE(M62),List2!$A$1:'List2'!$B$90,2))) ->  | P62: =IF(ISBLANK(O62),"",IF(VALUE(O62)>89,1,VLOOKUP(VALUE(O62),List2!$A$1:'List2'!$B$90,2))) ->  | R62: =IF(ISBLANK(Q62),"",IF(VALUE(Q62)>89,1,VLOOKUP(VALUE(Q62),List2!$A$1:'List2'!$B$90,2))) ->  | T62: =IF(ISBLANK(S62),"",IF(VALUE(S62)>89,1,VLOOKUP(VALUE(S62),List2!$A$1:'List2'!$B$90,2))) ->  | V62: =IF(ISBLANK(U62),"",IF(VALUE(U62)>89,1,VLOOKUP(VALUE(U62),List2!$A$1:'List2'!$B$90,2))) ->  | X62: =IF(ISBLANK(W62),"",IF(VALUE(W62)>89,1,VLOOKUP(VALUE(W62),List2!$A$1:'List2'!$B$90,2))) ->  | Z62: =IF(ISBLANK(Y62),"",IF(VALUE(Y62)>89,1,VLOOKUP(VALUE(Y62),List2!$A$1:'List2'!$B$90,2))) ->  | AB62: =IF(ISBLANK(AA62),"",IF(VALUE(AA62)>89,1,VLOOKUP(VALUE(AA62),List2!$A$1:'List2'!$B$90,2))) ->  | AD62: =IF(ISBLANK(AC62),"",IF(VALUE(AC62)>89,1,VLOOKUP(VALUE(AC62),List2!$A$1:'List2'!$B$90,2))) ->  | AF62: =IF(ISBLANK(AE62),"",IF(VALUE(AE62)>89,1,VLOOKUP(VALUE(AE62),List2!$A$1:'List2'!$B$90,2))) ->  | AH62: =IF(ISBLANK(AG62),"",IF(VALUE(AG62)>89,1,VLOOKUP(VALUE(AG62),List2!$A$1:'List2'!$B$90,2))) ->  | AJ62: =IF(ISBLANK(AI62),"",IF(VALUE(AI62)>89,1,VLOOKUP(VALUE(AI62),List2!$A$1:'List2'!$B$90,2))) ->  | AL62: =IF(ISBLANK(AK62),"",IF(VALUE(AK62)>89,1,VLOOKUP(VALUE(AK62),List2!$A$1:'List2'!$B$90,2))) ->  | AN62: =IF(ISBLANK(AM62),"",IF(VALUE(AM62)>89,1,VLOOKUP(VALUE(AM62),List2!$A$1:'List2'!$B$90,2))) ->  | AP62: 0
F63: =IF(ISBLANK(E63),"",IF(VALUE(E63)>89,1,VLOOKUP(VALUE(E63),List2!$A$1:'List2'!$B$90,2))) ->  | H63: =IF(ISBLANK(G63),"",IF(VALUE(G63)>89,1,VLOOKUP(VALUE(G63),List2!$A$1:'List2'!$B$90,2))) ->  | J63: =IF(ISBLANK(I63),"",IF(VALUE(I63)>89,1,VLOOKUP(VALUE(I63),List2!$A$1:'List2'!$B$90,2))) ->  | L63: =IF(ISBLANK(K63),"",IF(VALUE(K63)>89,1,VLOOKUP(VALUE(K63),List2!$A$1:'List2'!$B$90,2))) ->  | N63: =IF(ISBLANK(M63),"",IF(VALUE(M63)>89,1,VLOOKUP(VALUE(M63),List2!$A$1:'List2'!$B$90,2))) ->  | P63: =IF(ISBLANK(O63),"",IF(VALUE(O63)>89,1,VLOOKUP(VALUE(O63),List2!$A$1:'List2'!$B$90,2))) ->  | R63: =IF(ISBLANK(Q63),"",IF(VALUE(Q63)>89,1,VLOOKUP(VALUE(Q63),List2!$A$1:'List2'!$B$90,2))) ->  | T63: =IF(ISBLANK(S63),"",IF(VALUE(S63)>89,1,VLOOKUP(VALUE(S63),List2!$A$1:'List2'!$B$90,2))) ->  | V63: =IF(ISBLANK(U63),"",IF(VALUE(U63)>89,1,VLOOKUP(VALUE(U63),List2!$A$1:'List2'!$B$90,2))) ->  | X63: =IF(ISBLANK(W63),"",IF(VALUE(W63)>89,1,VLOOKUP(VALUE(W63),List2!$A$1:'List2'!$B$90,2))) ->  | Z63: =IF(ISBLANK(Y63),"",IF(VALUE(Y63)>89,1,VLOOKUP(VALUE(Y63),List2!$A$1:'List2'!$B$90,2))) ->  | AB63: =IF(ISBLANK(AA63),"",IF(VALUE(AA63)>89,1,VLOOKUP(VALUE(AA63),List2!$A$1:'List2'!$B$90,2))) ->  | AD63: =IF(ISBLANK(AC63),"",IF(VALUE(AC63)>89,1,VLOOKUP(VALUE(AC63),List2!$A$1:'List2'!$B$90,2))) ->  | AF63: =IF(ISBLANK(AE63),"",IF(VALUE(AE63)>89,1,VLOOKUP(VALUE(AE63),List2!$A$1:'List2'!$B$90,2))) ->  | AH63: =IF(ISBLANK(AG63),"",IF(VALUE(AG63)>89,1,VLOOKUP(VALUE(AG63),List2!$A$1:'List2'!$B$90,2))) ->  | AJ63: =IF(ISBLANK(AI63),"",IF(VALUE(AI63)>89,1,VLOOKUP(VALUE(AI63),List2!$A$1:'List2'!$B$90,2))) ->  | AL63: =IF(ISBLANK(AK63),"",IF(VALUE(AK63)>89,1,VLOOKUP(VALUE(AK63),List2!$A$1:'List2'!$B$90,2))) ->  | AN63: =IF(ISBLANK(AM63),"",IF(VALUE(AM63)>89,1,VLOOKUP(VALUE(AM63),List2!$A$1:'List2'!$B$90,2))) ->  | AP63: 0
F64: =IF(ISBLANK(E64),"",IF(VALUE(E64)>89,1,VLOOKUP(VALUE(E64),List2!$A$1:'List2'!$B$90,2))) ->  | H64: =IF(ISBLANK(G64),"",IF(VALUE(G64)>89,1,VLOOKUP(VALUE(G64),List2!$A$1:'List2'!$B$90,2))) ->  | J64: =IF(ISBLANK(I64),"",IF(VALUE(I64)>89,1,VLOOKUP(VALUE(I64),List2!$A$1:'List2'!$B$90,2))) ->  | L64: =IF(ISBLANK(K64),"",IF(VALUE(K64)>89,1,VLOOKUP(VALUE(K64),List2!$A$1:'List2'!$B$90,2))) ->  | N64: =IF(ISBLANK(M64),"",IF(VALUE(M64)>89,1,VLOOKUP(VALUE(M64),List2!$A$1:'List2'!$B$90,2))) ->  | P64: =IF(ISBLANK(O64),"",IF(VALUE(O64)>89,1,VLOOKUP(VALUE(O64),List2!$A$1:'List2'!$B$90,2))) ->  | R64: =IF(ISBLANK(Q64),"",IF(VALUE(Q64)>89,1,VLOOKUP(VALUE(Q64),List2!$A$1:'List2'!$B$90,2))) ->  | T64: =IF(ISBLANK(S64),"",IF(VALUE(S64)>89,1,VLOOKUP(VALUE(S64),List2!$A$1:'List2'!$B$90,2))) ->  | V64: =IF(ISBLANK(U64),"",IF(VALUE(U64)>89,1,VLOOKUP(VALUE(U64),List2!$A$1:'List2'!$B$90,2))) ->  | X64: =IF(ISBLANK(W64),"",IF(VALUE(W64)>89,1,VLOOKUP(VALUE(W64),List2!$A$1:'List2'!$B$90,2))) ->  | Z64: =IF(ISBLANK(Y64),"",IF(VALUE(Y64)>89,1,VLOOKUP(VALUE(Y64),List2!$A$1:'List2'!$B$90,2))) ->  | AB64: =IF(ISBLANK(AA64),"",IF(VALUE(AA64)>89,1,VLOOKUP(VALUE(AA64),List2!$A$1:'List2'!$B$90,2))) ->  | AD64: =IF(ISBLANK(AC64),"",IF(VALUE(AC64)>89,1,VLOOKUP(VALUE(AC64),List2!$A$1:'List2'!$B$90,2))) ->  | AF64: =IF(ISBLANK(AE64),"",IF(VALUE(AE64)>89,1,VLOOKUP(VALUE(AE64),List2!$A$1:'List2'!$B$90,2))) ->  | AH64: =IF(ISBLANK(AG64),"",IF(VALUE(AG64)>89,1,VLOOKUP(VALUE(AG64),List2!$A$1:'List2'!$B$90,2))) ->  | AJ64: =IF(ISBLANK(AI64),"",IF(VALUE(AI64)>89,1,VLOOKUP(VALUE(AI64),List2!$A$1:'List2'!$B$90,2))) ->  | AL64: =IF(ISBLANK(AK64),"",IF(VALUE(AK64)>89,1,VLOOKUP(VALUE(AK64),List2!$A$1:'List2'!$B$90,2))) ->  | AN64: =IF(ISBLANK(AM64),"",IF(VALUE(AM64)>89,1,VLOOKUP(VALUE(AM64),List2!$A$1:'List2'!$B$90,2))) ->  | AP64: 0
F65: =IF(ISBLANK(E65),"",IF(VALUE(E65)>89,1,VLOOKUP(VALUE(E65),List2!$A$1:'List2'!$B$90,2))) ->  | H65: =IF(ISBLANK(G65),"",IF(VALUE(G65)>89,1,VLOOKUP(VALUE(G65),List2!$A$1:'List2'!$B$90,2))) ->  | J65: =IF(ISBLANK(I65),"",IF(VALUE(I65)>89,1,VLOOKUP(VALUE(I65),List2!$A$1:'List2'!$B$90,2))) ->  | L65: =IF(ISBLANK(K65),"",IF(VALUE(K65)>89,1,VLOOKUP(VALUE(K65),List2!$A$1:'List2'!$B$90,2))) ->  | N65: =IF(ISBLANK(M65),"",IF(VALUE(M65)>89,1,VLOOKUP(VALUE(M65),List2!$A$1:'List2'!$B$90,2))) ->  | P65: =IF(ISBLANK(O65),"",IF(VALUE(O65)>89,1,VLOOKUP(VALUE(O65),List2!$A$1:'List2'!$B$90,2))) ->  | R65: =IF(ISBLANK(Q65),"",IF(VALUE(Q65)>89,1,VLOOKUP(VALUE(Q65),List2!$A$1:'List2'!$B$90,2))) ->  | T65: =IF(ISBLANK(S65),"",IF(VALUE(S65)>89,1,VLOOKUP(VALUE(S65),List2!$A$1:'List2'!$B$90,2))) ->  | V65: =IF(ISBLANK(U65),"",IF(VALUE(U65)>89,1,VLOOKUP(VALUE(U65),List2!$A$1:'List2'!$B$90,2))) ->  | X65: =IF(ISBLANK(W65),"",IF(VALUE(W65)>89,1,VLOOKUP(VALUE(W65),List2!$A$1:'List2'!$B$90,2))) ->  | Z65: =IF(ISBLANK(Y65),"",IF(VALUE(Y65)>89,1,VLOOKUP(VALUE(Y65),List2!$A$1:'List2'!$B$90,2))) ->  | AB65: =IF(ISBLANK(AA65),"",IF(VALUE(AA65)>89,1,VLOOKUP(VALUE(AA65),List2!$A$1:'List2'!$B$90,2))) ->  | AD65: =IF(ISBLANK(AC65),"",IF(VALUE(AC65)>89,1,VLOOKUP(VALUE(AC65),List2!$A$1:'List2'!$B$90,2))) ->  | AF65: =IF(ISBLANK(AE65),"",IF(VALUE(AE65)>89,1,VLOOKUP(VALUE(AE65),List2!$A$1:'List2'!$B$90,2))) ->  | AH65: =IF(ISBLANK(AG65),"",IF(VALUE(AG65)>89,1,VLOOKUP(VALUE(AG65),List2!$A$1:'List2'!$B$90,2))) ->  | AJ65: =IF(ISBLANK(AI65),"",IF(VALUE(AI65)>89,1,VLOOKUP(VALUE(AI65),List2!$A$1:'List2'!$B$90,2))) ->  | AL65: =IF(ISBLANK(AK65),"",IF(VALUE(AK65)>89,1,VLOOKUP(VALUE(AK65),List2!$A$1:'List2'!$B$90,2))) ->  | AN65: =IF(ISBLANK(AM65),"",IF(VALUE(AM65)>89,1,VLOOKUP(VALUE(AM65),List2!$A$1:'List2'!$B$90,2))) ->  | AP65: 0
F66: =IF(ISBLANK(E66),"",IF(VALUE(E66)>89,1,VLOOKUP(VALUE(E66),List2!$A$1:'List2'!$B$90,2))) ->  | H66: =IF(ISBLANK(G66),"",IF(VALUE(G66)>89,1,VLOOKUP(VALUE(G66),List2!$A$1:'List2'!$B$90,2))) ->  | J66: =IF(ISBLANK(I66),"",IF(VALUE(I66)>89,1,VLOOKUP(VALUE(I66),List2!$A$1:'List2'!$B$90,2))) ->  | L66: =IF(ISBLANK(K66),"",IF(VALUE(K66)>89,1,VLOOKUP(VALUE(K66),List2!$A$1:'List2'!$B$90,2))) ->  | N66: =IF(ISBLANK(M66),"",IF(VALUE(M66)>89,1,VLOOKUP(VALUE(M66),List2!$A$1:'List2'!$B$90,2))) ->  | P66: =IF(ISBLANK(O66),"",IF(VALUE(O66)>89,1,VLOOKUP(VALUE(O66),List2!$A$1:'List2'!$B$90,2))) ->  | R66: =IF(ISBLANK(Q66),"",IF(VALUE(Q66)>89,1,VLOOKUP(VALUE(Q66),List2!$A$1:'List2'!$B$90,2))) ->  | T66: =IF(ISBLANK(S66),"",IF(VALUE(S66)>89,1,VLOOKUP(VALUE(S66),List2!$A$1:'List2'!$B$90,2))) ->  | V66: =IF(ISBLANK(U66),"",IF(VALUE(U66)>89,1,VLOOKUP(VALUE(U66),List2!$A$1:'List2'!$B$90,2))) ->  | X66: =IF(ISBLANK(W66),"",IF(VALUE(W66)>89,1,VLOOKUP(VALUE(W66),List2!$A$1:'List2'!$B$90,2))) ->  | Z66: =IF(ISBLANK(Y66),"",IF(VALUE(Y66)>89,1,VLOOKUP(VALUE(Y66),List2!$A$1:'List2'!$B$90,2))) ->  | AB66: =IF(ISBLANK(AA66),"",IF(VALUE(AA66)>89,1,VLOOKUP(VALUE(AA66),List2!$A$1:'List2'!$B$90,2))) ->  | AD66: =IF(ISBLANK(AC66),"",IF(VALUE(AC66)>89,1,VLOOKUP(VALUE(AC66),List2!$A$1:'List2'!$B$90,2))) ->  | AF66: =IF(ISBLANK(AE66),"",IF(VALUE(AE66)>89,1,VLOOKUP(VALUE(AE66),List2!$A$1:'List2'!$B$90,2))) ->  | AH66: =IF(ISBLANK(AG66),"",IF(VALUE(AG66)>89,1,VLOOKUP(VALUE(AG66),List2!$A$1:'List2'!$B$90,2))) ->  | AJ66: =IF(ISBLANK(AI66),"",IF(VALUE(AI66)>89,1,VLOOKUP(VALUE(AI66),List2!$A$1:'List2'!$B$90,2))) ->  | AL66: =IF(ISBLANK(AK66),"",IF(VALUE(AK66)>89,1,VLOOKUP(VALUE(AK66),List2!$A$1:'List2'!$B$90,2))) ->  | AN66: =IF(ISBLANK(AM66),"",IF(VALUE(AM66)>89,1,VLOOKUP(VALUE(AM66),List2!$A$1:'List2'!$B$90,2))) ->  | AP66: 0
C67: =IF(IFERROR(LARGE(F67:AN67,1),0)+IFERROR(LARGE(F67:AN67,2),0)+IFERROR(LARGE(F67:AN67,3),0)+IFERROR(LARGE(F67:AN67,4),0)+IFERROR(LARGE(F67:AN67,5),0)+IFERROR(LARGE(F67:AN67,6),0)+IFERROR(LARGE(F67:AN67,7),0)++IFERROR(LARGE(F67:AN67,8),0)=0,"",IFERROR(LARGE(F67:AN67,1),0)+IFERROR(LARGE(F67:AN67,2),0)+IFERROR(LARGE(F67:AN67,3),0)+IFERROR(LARGE(F67:AN67,4),0)+IFERROR(LARGE(F67:AN67,5),0)+IFERROR(LARGE(F67:AN67,6),0)+IFERROR(LARGE(F67:AN67,7),0)+IFERROR(LARGE(F67:AND67,8),0)) ->  | D67: =IF(SUM(F67,H67,J67,L67,N67,P67,R67,T67,V67,X67,Z67,AB67,AD67,AF67,AH67,AJ67,AL67,AN67)=0,"",SUM(F67,H67,J67,L67,N67,P67,R67,T67,V67,X67,Z67,AB67,AD67,AF67,AH67,AJ67,AL67,AN67)) ->  | F67: =IF(ISBLANK(E67),"",IF(VALUE(E67)>89,1,VLOOKUP(VALUE(E67),List2!$A$1:'List2'!$B$90,2))) ->  | H67: =IF(ISBLANK(G67),"",IF(VALUE(G67)>89,1,VLOOKUP(VALUE(G67),List2!$A$1:'List2'!$B$90,2))) ->  | J67: =IF(ISBLANK(I67),"",IF(VALUE(I67)>89,1,VLOOKUP(VALUE(I67),List2!$A$1:'List2'!$B$90,2))) ->  | L67: =IF(ISBLANK(K67),"",IF(VALUE(K67)>89,1,VLOOKUP(VALUE(K67),List2!$A$1:'List2'!$B$90,2))) ->  | N67: =IF(ISBLANK(M67),"",IF(VALUE(M67)>89,1,VLOOKUP(VALUE(M67),List2!$A$1:'List2'!$B$90,2))) ->  | P67: =IF(ISBLANK(O67),"",IF(VALUE(O67)>89,1,VLOOKUP(VALUE(O67),List2!$A$1:'List2'!$B$90,2))) ->  | R67: =IF(ISBLANK(Q67),"",IF(VALUE(Q67)>89,1,VLOOKUP(VALUE(Q67),List2!$A$1:'List2'!$B$90,2))) ->  | T67: =IF(ISBLANK(S67),"",IF(VALUE(S67)>89,1,VLOOKUP(VALUE(S67),List2!$A$1:'List2'!$B$90,2))) ->  | V67: =IF(ISBLANK(U67),"",IF(VALUE(U67)>89,1,VLOOKUP(VALUE(U67),List2!$A$1:'List2'!$B$90,2))) ->  | X67: =IF(ISBLANK(W67),"",IF(VALUE(W67)>89,1,VLOOKUP(VALUE(W67),List2!$A$1:'List2'!$B$90,2))) ->  | Z67: =IF(ISBLANK(Y67),"",IF(VALUE(Y67)>89,1,VLOOKUP(VALUE(Y67),List2!$A$1:'List2'!$B$90,2))) ->  | AB67: =IF(ISBLANK(AA67),"",IF(VALUE(AA67)>89,1,VLOOKUP(VALUE(AA67),List2!$A$1:'List2'!$B$90,2))) ->  | AD67: =IF(ISBLANK(AC67),"",IF(VALUE(AC67)>89,1,VLOOKUP(VALUE(AC67),List2!$A$1:'List2'!$B$90,2))) ->  | AF67: =IF(ISBLANK(AE67),"",IF(VALUE(AE67)>89,1,VLOOKUP(VALUE(AE67),List2!$A$1:'List2'!$B$90,2))) ->  | AH67: =IF(ISBLANK(AG67),"",IF(VALUE(AG67)>89,1,VLOOKUP(VALUE(AG67),List2!$A$1:'List2'!$B$90,2))) ->  | AJ67: =IF(ISBLANK(AI67),"",IF(VALUE(AI67)>89,1,VLOOKUP(VALUE(AI67),List2!$A$1:'List2'!$B$90,2))) ->  | AL67: =IF(ISBLANK(AK67),"",IF(VALUE(AK67)>89,1,VLOOKUP(VALUE(AK67),List2!$A$1:'List2'!$B$90,2))) ->  | AN67: =IF(ISBLANK(AM67),"",IF(VALUE(AM67)>89,1,VLOOKUP(VALUE(AM67),List2!$A$1:'List2'!$B$90,2))) ->  | AP67: =IFERROR(LARGE(F67:AN67,1),0)+IFERROR(LARGE(F67:AN67,2),0)+IFERROR(LARGE(F67:AN67,3),0)+IFERROR(LARGE(F67:AN67,4),0)+IFERROR(LARGE(F67:AN67,5),0)+IFERROR(LARGE(F67:AN67,6),0)+IFERROR(LARGE(F67:AN67,7),0)+IFERROR(LARGE(F67:AN67,8),0) -> 0
F68: =IF(ISBLANK(E68),"",IF(VALUE(E68)>89,1,VLOOKUP(VALUE(E68),List2!$A$1:'List2'!$B$90,2))) ->  | H68: =IF(ISBLANK(G68),"",IF(VALUE(G68)>89,1,VLOOKUP(VALUE(G68),List2!$A$1:'List2'!$B$90,2))) ->  | J68: =IF(ISBLANK(I68),"",IF(VALUE(I68)>89,1,VLOOKUP(VALUE(I68),List2!$A$1:'List2'!$B$90,2))) ->  | L68: =IF(ISBLANK(K68),"",IF(VALUE(K68)>89,1,VLOOKUP(VALUE(K68),List2!$A$1:'List2'!$B$90,2))) ->  | N68: =IF(ISBLANK(M68),"",IF(VALUE(M68)>89,1,VLOOKUP(VALUE(M68),List2!$A$1:'List2'!$B$90,2))) ->  | P68: =IF(ISBLANK(O68),"",IF(VALUE(O68)>89,1,VLOOKUP(VALUE(O68),List2!$A$1:'List2'!$B$90,2))) ->  | R68: =IF(ISBLANK(Q68),"",IF(VALUE(Q68)>89,1,VLOOKUP(VALUE(Q68),List2!$A$1:'List2'!$B$90,2))) ->  | T68: =IF(ISBLANK(S68),"",IF(VALUE(S68)>89,1,VLOOKUP(VALUE(S68),List2!$A$1:'List2'!$B$90,2))) ->  | V68: =IF(ISBLANK(U68),"",IF(VALUE(U68)>89,1,VLOOKUP(VALUE(U68),List2!$A$1:'List2'!$B$90,2))) ->  | X68: =IF(ISBLANK(W68),"",IF(VALUE(W68)>89,1,VLOOKUP(VALUE(W68),List2!$A$1:'List2'!$B$90,2))) ->  | Z68: =IF(ISBLANK(Y68),"",IF(VALUE(Y68)>89,1,VLOOKUP(VALUE(Y68),List2!$A$1:'List2'!$B$90,2))) ->  | AB68: =IF(ISBLANK(AA68),"",IF(VALUE(AA68)>89,1,VLOOKUP(VALUE(AA68),List2!$A$1:'List2'!$B$90,2))) ->  | AD68: =IF(ISBLANK(AC68),"",IF(VALUE(AC68)>89,1,VLOOKUP(VALUE(AC68),List2!$A$1:'List2'!$B$90,2))) ->  | AF68: =IF(ISBLANK(AE68),"",IF(VALUE(AE68)>89,1,VLOOKUP(VALUE(AE68),List2!$A$1:'List2'!$B$90,2))) ->  | AH68: =IF(ISBLANK(AG68),"",IF(VALUE(AG68)>89,1,VLOOKUP(VALUE(AG68),List2!$A$1:'List2'!$B$90,2))) ->  | AJ68: =IF(ISBLANK(AI68),"",IF(VALUE(AI68)>89,1,VLOOKUP(VALUE(AI68),List2!$A$1:'List2'!$B$90,2))) ->  | AL68: =IF(ISBLANK(AK68),"",IF(VALUE(AK68)>89,1,VLOOKUP(VALUE(AK68),List2!$A$1:'List2'!$B$90,2))) ->  | AN68: =IF(ISBLANK(AM68),"",IF(VALUE(AM68)>89,1,VLOOKUP(VALUE(AM68),List2!$A$1:'List2'!$B$90,2))) ->  | AP68: 0
A69: =IF(OR(ISBLANK(B69),A68=""),"",A68+1) ->  | F69: =IF(ISBLANK(E69),"",IF(VALUE(E69)>89,1,VLOOKUP(VALUE(E69),List2!$A$1:'List2'!$B$90,2))) ->  | H69: =IF(ISBLANK(G69),"",IF(VALUE(G69)>89,1,VLOOKUP(VALUE(G69),List2!$A$1:'List2'!$B$90,2))) ->  | J69: =IF(ISBLANK(I69),"",IF(VALUE(I69)>89,1,VLOOKUP(VALUE(I69),List2!$A$1:'List2'!$B$90,2))) ->  | L69: =IF(ISBLANK(K69),"",IF(VALUE(K69)>89,1,VLOOKUP(VALUE(K69),List2!$A$1:'List2'!$B$90,2))) ->  | N69: =IF(ISBLANK(M69),"",IF(VALUE(M69)>89,1,VLOOKUP(VALUE(M69),List2!$A$1:'List2'!$B$90,2))) ->  | P69: =IF(ISBLANK(O69),"",IF(VALUE(O69)>89,1,VLOOKUP(VALUE(O69),List2!$A$1:'List2'!$B$90,2))) ->  | R69: =IF(ISBLANK(Q69),"",IF(VALUE(Q69)>89,1,VLOOKUP(VALUE(Q69),List2!$A$1:'List2'!$B$90,2))) ->  | T69: =IF(ISBLANK(S69),"",IF(VALUE(S69)>89,1,VLOOKUP(VALUE(S69),List2!$A$1:'List2'!$B$90,2))) ->  | V69: =IF(ISBLANK(U69),"",IF(VALUE(U69)>89,1,VLOOKUP(VALUE(U69),List2!$A$1:'List2'!$B$90,2))) ->  | X69: =IF(ISBLANK(W69),"",IF(VALUE(W69)>89,1,VLOOKUP(VALUE(W69),List2!$A$1:'List2'!$B$90,2))) ->  | Z69: =IF(ISBLANK(Y69),"",IF(VALUE(Y69)>89,1,VLOOKUP(VALUE(Y69),List2!$A$1:'List2'!$B$90,2))) ->  | AB69: =IF(ISBLANK(AA69),"",IF(VALUE(AA69)>89,1,VLOOKUP(VALUE(AA69),List2!$A$1:'List2'!$B$90,2))) ->  | AD69: =IF(ISBLANK(AC69),"",IF(VALUE(AC69)>89,1,VLOOKUP(VALUE(AC69),List2!$A$1:'List2'!$B$90,2))) ->  | AF69: =IF(ISBLANK(AE69),"",IF(VALUE(AE69)>89,1,VLOOKUP(VALUE(AE69),List2!$A$1:'List2'!$B$90,2))) ->  | AH69: =IF(ISBLANK(AG69),"",IF(VALUE(AG69)>89,1,VLOOKUP(VALUE(AG69),List2!$A$1:'List2'!$B$90,2))) ->  | AJ69: =IF(ISBLANK(AI69),"",IF(VALUE(AI69)>89,1,VLOOKUP(VALUE(AI69),List2!$A$1:'List2'!$B$90,2))) ->  | AL69: =IF(ISBLANK(AK69),"",IF(VALUE(AK69)>89,1,VLOOKUP(VALUE(AK69),List2!$A$1:'List2'!$B$90,2))) ->  | AN69: =IF(ISBLANK(AM69),"",IF(VALUE(AM69)>89,1,VLOOKUP(VALUE(AM69),List2!$A$1:'List2'!$B$90,2))) ->  | AP69: 0
F70: =IF(ISBLANK(E70),"",IF(VALUE(E70)>89,1,VLOOKUP(VALUE(E70),List2!$A$1:'List2'!$B$90,2))) ->  | H70: =IF(ISBLANK(G70),"",IF(VALUE(G70)>89,1,VLOOKUP(VALUE(G70),List2!$A$1:'List2'!$B$90,2))) ->  | J70: =IF(ISBLANK(I70),"",IF(VALUE(I70)>89,1,VLOOKUP(VALUE(I70),List2!$A$1:'List2'!$B$90,2))) ->  | L70: =IF(ISBLANK(K70),"",IF(VALUE(K70)>89,1,VLOOKUP(VALUE(K70),List2!$A$1:'List2'!$B$90,2))) ->  | N70: =IF(ISBLANK(M70),"",IF(VALUE(M70)>89,1,VLOOKUP(VALUE(M70),List2!$A$1:'List2'!$B$90,2))) ->  | P70: =IF(ISBLANK(O70),"",IF(VALUE(O70)>89,1,VLOOKUP(VALUE(O70),List2!$A$1:'List2'!$B$90,2))) ->  | R70: =IF(ISBLANK(Q70),"",IF(VALUE(Q70)>89,1,VLOOKUP(VALUE(Q70),List2!$A$1:'List2'!$B$90,2))) ->  | T70: =IF(ISBLANK(S70),"",IF(VALUE(S70)>89,1,VLOOKUP(VALUE(S70),List2!$A$1:'List2'!$B$90,2))) ->  | V70: =IF(ISBLANK(U70),"",IF(VALUE(U70)>89,1,VLOOKUP(VALUE(U70),List2!$A$1:'List2'!$B$90,2))) ->  | X70: =IF(ISBLANK(W70),"",IF(VALUE(W70)>89,1,VLOOKUP(VALUE(W70),List2!$A$1:'List2'!$B$90,2))) ->  | Z70: =IF(ISBLANK(Y70),"",IF(VALUE(Y70)>89,1,VLOOKUP(VALUE(Y70),List2!$A$1:'List2'!$B$90,2))) ->  | AB70: =IF(ISBLANK(AA70),"",IF(VALUE(AA70)>89,1,VLOOKUP(VALUE(AA70),List2!$A$1:'List2'!$B$90,2))) ->  | AD70: =IF(ISBLANK(AC70),"",IF(VALUE(AC70)>89,1,VLOOKUP(VALUE(AC70),List2!$A$1:'List2'!$B$90,2))) ->  | AF70: =IF(ISBLANK(AE70),"",IF(VALUE(AE70)>89,1,VLOOKUP(VALUE(AE70),List2!$A$1:'List2'!$B$90,2))) ->  | AH70: =IF(ISBLANK(AG70),"",IF(VALUE(AG70)>89,1,VLOOKUP(VALUE(AG70),List2!$A$1:'List2'!$B$90,2))) ->  | AJ70: =IF(ISBLANK(AI70),"",IF(VALUE(AI70)>89,1,VLOOKUP(VALUE(AI70),List2!$A$1:'List2'!$B$90,2))) ->  | AL70: =IF(ISBLANK(AK70),"",IF(VALUE(AK70)>89,1,VLOOKUP(VALUE(AK70),List2!$A$1:'List2'!$B$90,2))) ->  | AN70: =IF(ISBLANK(AM70),"",IF(VALUE(AM70)>89,1,VLOOKUP(VALUE(AM70),List2!$A$1:'List2'!$B$90,2))) ->  | AP70: 0
F71: =IF(ISBLANK(E71),"",IF(VALUE(E71)>89,1,VLOOKUP(VALUE(E71),List2!$A$1:'List2'!$B$90,2))) ->  | H71: =IF(ISBLANK(G71),"",IF(VALUE(G71)>89,1,VLOOKUP(VALUE(G71),List2!$A$1:'List2'!$B$90,2))) ->  | J71: =IF(ISBLANK(I71),"",IF(VALUE(I71)>89,1,VLOOKUP(VALUE(I71),List2!$A$1:'List2'!$B$90,2))) ->  | L71: =IF(ISBLANK(K71),"",IF(VALUE(K71)>89,1,VLOOKUP(VALUE(K71),List2!$A$1:'List2'!$B$90,2))) ->  | N71: =IF(ISBLANK(M71),"",IF(VALUE(M71)>89,1,VLOOKUP(VALUE(M71),List2!$A$1:'List2'!$B$90,2))) ->  | P71: =IF(ISBLANK(O71),"",IF(VALUE(O71)>89,1,VLOOKUP(VALUE(O71),List2!$A$1:'List2'!$B$90,2))) ->  | R71: =IF(ISBLANK(Q71),"",IF(VALUE(Q71)>89,1,VLOOKUP(VALUE(Q71),List2!$A$1:'List2'!$B$90,2))) ->  | T71: =IF(ISBLANK(S71),"",IF(VALUE(S71)>89,1,VLOOKUP(VALUE(S71),List2!$A$1:'List2'!$B$90,2))) ->  | V71: =IF(ISBLANK(U71),"",IF(VALUE(U71)>89,1,VLOOKUP(VALUE(U71),List2!$A$1:'List2'!$B$90,2))) ->  | X71: =IF(ISBLANK(W71),"",IF(VALUE(W71)>89,1,VLOOKUP(VALUE(W71),List2!$A$1:'List2'!$B$90,2))) ->  | Z71: =IF(ISBLANK(Y71),"",IF(VALUE(Y71)>89,1,VLOOKUP(VALUE(Y71),List2!$A$1:'List2'!$B$90,2))) ->  | AB71: =IF(ISBLANK(AA71),"",IF(VALUE(AA71)>89,1,VLOOKUP(VALUE(AA71),List2!$A$1:'List2'!$B$90,2))) ->  | AD71: =IF(ISBLANK(AC71),"",IF(VALUE(AC71)>89,1,VLOOKUP(VALUE(AC71),List2!$A$1:'List2'!$B$90,2))) ->  | AF71: =IF(ISBLANK(AE71),"",IF(VALUE(AE71)>89,1,VLOOKUP(VALUE(AE71),List2!$A$1:'List2'!$B$90,2))) ->  | AH71: =IF(ISBLANK(AG71),"",IF(VALUE(AG71)>89,1,VLOOKUP(VALUE(AG71),List2!$A$1:'List2'!$B$90,2))) ->  | AJ71: =IF(ISBLANK(AI71),"",IF(VALUE(AI71)>89,1,VLOOKUP(VALUE(AI71),List2!$A$1:'List2'!$B$90,2))) ->  | AL71: =IF(ISBLANK(AK71),"",IF(VALUE(AK71)>89,1,VLOOKUP(VALUE(AK71),List2!$A$1:'List2'!$B$90,2))) ->  | AN71: =IF(ISBLANK(AM71),"",IF(VALUE(AM71)>89,1,VLOOKUP(VALUE(AM71),List2!$A$1:'List2'!$B$90,2))) ->  | AP71: 0
F72: =IF(ISBLANK(E72),"",IF(VALUE(E72)>89,1,VLOOKUP(VALUE(E72),List2!$A$1:'List2'!$B$90,2))) ->  | H72: =IF(ISBLANK(G72),"",IF(VALUE(G72)>89,1,VLOOKUP(VALUE(G72),List2!$A$1:'List2'!$B$90,2))) ->  | J72: =IF(ISBLANK(I72),"",IF(VALUE(I72)>89,1,VLOOKUP(VALUE(I72),List2!$A$1:'List2'!$B$90,2))) ->  | L72: =IF(ISBLANK(K72),"",IF(VALUE(K72)>89,1,VLOOKUP(VALUE(K72),List2!$A$1:'List2'!$B$90,2))) ->  | N72: =IF(ISBLANK(M72),"",IF(VALUE(M72)>89,1,VLOOKUP(VALUE(M72),List2!$A$1:'List2'!$B$90,2))) ->  | P72: =IF(ISBLANK(O72),"",IF(VALUE(O72)>89,1,VLOOKUP(VALUE(O72),List2!$A$1:'List2'!$B$90,2))) ->  | R72: =IF(ISBLANK(Q72),"",IF(VALUE(Q72)>89,1,VLOOKUP(VALUE(Q72),List2!$A$1:'List2'!$B$90,2))) ->  | T72: =IF(ISBLANK(S72),"",IF(VALUE(S72)>89,1,VLOOKUP(VALUE(S72),List2!$A$1:'List2'!$B$90,2))) ->  | V72: =IF(ISBLANK(U72),"",IF(VALUE(U72)>89,1,VLOOKUP(VALUE(U72),List2!$A$1:'List2'!$B$90,2))) ->  | X72: =IF(ISBLANK(W72),"",IF(VALUE(W72)>89,1,VLOOKUP(VALUE(W72),List2!$A$1:'List2'!$B$90,2))) ->  | Z72: =IF(ISBLANK(Y72),"",IF(VALUE(Y72)>89,1,VLOOKUP(VALUE(Y72),List2!$A$1:'List2'!$B$90,2))) ->  | AB72: =IF(ISBLANK(AA72),"",IF(VALUE(AA72)>89,1,VLOOKUP(VALUE(AA72),List2!$A$1:'List2'!$B$90,2))) ->  | AD72: =IF(ISBLANK(AC72),"",IF(VALUE(AC72)>89,1,VLOOKUP(VALUE(AC72),List2!$A$1:'List2'!$B$90,2))) ->  | AF72: =IF(ISBLANK(AE72),"",IF(VALUE(AE72)>89,1,VLOOKUP(VALUE(AE72),List2!$A$1:'List2'!$B$90,2))) ->  | AH72: =IF(ISBLANK(AG72),"",IF(VALUE(AG72)>89,1,VLOOKUP(VALUE(AG72),List2!$A$1:'List2'!$B$90,2))) ->  | AJ72: =IF(ISBLANK(AI72),"",IF(VALUE(AI72)>89,1,VLOOKUP(VALUE(AI72),List2!$A$1:'List2'!$B$90,2))) ->  | AL72: =IF(ISBLANK(AK72),"",IF(VALUE(AK72)>89,1,VLOOKUP(VALUE(AK72),List2!$A$1:'List2'!$B$90,2))) ->  | AN72: =IF(ISBLANK(AM72),"",IF(VALUE(AM72)>89,1,VLOOKUP(VALUE(AM72),List2!$A$1:'List2'!$B$90,2))) ->  | AP72: 0
F73: =IF(ISBLANK(E73),"",IF(VALUE(E73)>89,1,VLOOKUP(VALUE(E73),List2!$A$1:'List2'!$B$90,2))) ->  | H73: =IF(ISBLANK(G73),"",IF(VALUE(G73)>89,1,VLOOKUP(VALUE(G73),List2!$A$1:'List2'!$B$90,2))) ->  | J73: =IF(ISBLANK(I73),"",IF(VALUE(I73)>89,1,VLOOKUP(VALUE(I73),List2!$A$1:'List2'!$B$90,2))) ->  | L73: =IF(ISBLANK(K73),"",IF(VALUE(K73)>89,1,VLOOKUP(VALUE(K73),List2!$A$1:'List2'!$B$90,2))) ->  | N73: =IF(ISBLANK(M73),"",IF(VALUE(M73)>89,1,VLOOKUP(VALUE(M73),List2!$A$1:'List2'!$B$90,2))) ->  | P73: =IF(ISBLANK(O73),"",IF(VALUE(O73)>89,1,VLOOKUP(VALUE(O73),List2!$A$1:'List2'!$B$90,2))) ->  | R73: =IF(ISBLANK(Q73),"",IF(VALUE(Q73)>89,1,VLOOKUP(VALUE(Q73),List2!$A$1:'List2'!$B$90,2))) ->  | T73: =IF(ISBLANK(S73),"",IF(VALUE(S73)>89,1,VLOOKUP(VALUE(S73),List2!$A$1:'List2'!$B$90,2))) ->  | V73: =IF(ISBLANK(U73),"",IF(VALUE(U73)>89,1,VLOOKUP(VALUE(U73),List2!$A$1:'List2'!$B$90,2))) ->  | X73: =IF(ISBLANK(W73),"",IF(VALUE(W73)>89,1,VLOOKUP(VALUE(W73),List2!$A$1:'List2'!$B$90,2))) ->  | Z73: =IF(ISBLANK(Y73),"",IF(VALUE(Y73)>89,1,VLOOKUP(VALUE(Y73),List2!$A$1:'List2'!$B$90,2))) ->  | AB73: =IF(ISBLANK(AA73),"",IF(VALUE(AA73)>89,1,VLOOKUP(VALUE(AA73),List2!$A$1:'List2'!$B$90,2))) ->  | AD73: =IF(ISBLANK(AC73),"",IF(VALUE(AC73)>89,1,VLOOKUP(VALUE(AC73),List2!$A$1:'List2'!$B$90,2))) ->  | AF73: =IF(ISBLANK(AE73),"",IF(VALUE(AE73)>89,1,VLOOKUP(VALUE(AE73),List2!$A$1:'List2'!$B$90,2))) ->  | AH73: =IF(ISBLANK(AG73),"",IF(VALUE(AG73)>89,1,VLOOKUP(VALUE(AG73),List2!$A$1:'List2'!$B$90,2))) ->  | AJ73: =IF(ISBLANK(AI73),"",IF(VALUE(AI73)>89,1,VLOOKUP(VALUE(AI73),List2!$A$1:'List2'!$B$90,2))) ->  | AL73: =IF(ISBLANK(AK73),"",IF(VALUE(AK73)>89,1,VLOOKUP(VALUE(AK73),List2!$A$1:'List2'!$B$90,2))) ->  | AN73: =IF(ISBLANK(AM73),"",IF(VALUE(AM73)>89,1,VLOOKUP(VALUE(AM73),List2!$A$1:'List2'!$B$90,2))) ->  | AP73: 0
F74: =IF(ISBLANK(E74),"",IF(VALUE(E74)>89,1,VLOOKUP(VALUE(E74),List2!$A$1:'List2'!$B$90,2))) ->  | H74: =IF(ISBLANK(G74),"",IF(VALUE(G74)>89,1,VLOOKUP(VALUE(G74),List2!$A$1:'List2'!$B$90,2))) ->  | J74: =IF(ISBLANK(I74),"",IF(VALUE(I74)>89,1,VLOOKUP(VALUE(I74),List2!$A$1:'List2'!$B$90,2))) ->  | L74: =IF(ISBLANK(K74),"",IF(VALUE(K74)>89,1,VLOOKUP(VALUE(K74),List2!$A$1:'List2'!$B$90,2))) ->  | N74: =IF(ISBLANK(M74),"",IF(VALUE(M74)>89,1,VLOOKUP(VALUE(M74),List2!$A$1:'List2'!$B$90,2))) ->  | P74: =IF(ISBLANK(O74),"",IF(VALUE(O74)>89,1,VLOOKUP(VALUE(O74),List2!$A$1:'List2'!$B$90,2))) ->  | R74: =IF(ISBLANK(Q74),"",IF(VALUE(Q74)>89,1,VLOOKUP(VALUE(Q74),List2!$A$1:'List2'!$B$90,2))) ->  | T74: =IF(ISBLANK(S74),"",IF(VALUE(S74)>89,1,VLOOKUP(VALUE(S74),List2!$A$1:'List2'!$B$90,2))) ->  | V74: =IF(ISBLANK(U74),"",IF(VALUE(U74)>89,1,VLOOKUP(VALUE(U74),List2!$A$1:'List2'!$B$90,2))) ->  | X74: =IF(ISBLANK(W74),"",IF(VALUE(W74)>89,1,VLOOKUP(VALUE(W74),List2!$A$1:'List2'!$B$90,2))) ->  | Z74: =IF(ISBLANK(Y74),"",IF(VALUE(Y74)>89,1,VLOOKUP(VALUE(Y74),List2!$A$1:'List2'!$B$90,2))) ->  | AB74: =IF(ISBLANK(AA74),"",IF(VALUE(AA74)>89,1,VLOOKUP(VALUE(AA74),List2!$A$1:'List2'!$B$90,2))) ->  | AD74: =IF(ISBLANK(AC74),"",IF(VALUE(AC74)>89,1,VLOOKUP(VALUE(AC74),List2!$A$1:'List2'!$B$90,2))) ->  | AF74: =IF(ISBLANK(AE74),"",IF(VALUE(AE74)>89,1,VLOOKUP(VALUE(AE74),List2!$A$1:'List2'!$B$90,2))) ->  | AH74: =IF(ISBLANK(AG74),"",IF(VALUE(AG74)>89,1,VLOOKUP(VALUE(AG74),List2!$A$1:'List2'!$B$90,2))) ->  | AJ74: =IF(ISBLANK(AI74),"",IF(VALUE(AI74)>89,1,VLOOKUP(VALUE(AI74),List2!$A$1:'List2'!$B$90,2))) ->  | AL74: =IF(ISBLANK(AK74),"",IF(VALUE(AK74)>89,1,VLOOKUP(VALUE(AK74),List2!$A$1:'List2'!$B$90,2))) ->  | AN74: =IF(ISBLANK(AM74),"",IF(VALUE(AM74)>89,1,VLOOKUP(VALUE(AM74),List2!$A$1:'List2'!$B$90,2))) ->  | AP74: 0
F75: =IF(ISBLANK(E75),"",IF(VALUE(E75)>89,1,VLOOKUP(VALUE(E75),List2!$A$1:'List2'!$B$90,2))) ->  | H75: =IF(ISBLANK(G75),"",IF(VALUE(G75)>89,1,VLOOKUP(VALUE(G75),List2!$A$1:'List2'!$B$90,2))) ->  | J75: =IF(ISBLANK(I75),"",IF(VALUE(I75)>89,1,VLOOKUP(VALUE(I75),List2!$A$1:'List2'!$B$90,2))) ->  | L75: =IF(ISBLANK(K75),"",IF(VALUE(K75)>89,1,VLOOKUP(VALUE(K75),List2!$A$1:'List2'!$B$90,2))) ->  | N75: =IF(ISBLANK(M75),"",IF(VALUE(M75)>89,1,VLOOKUP(VALUE(M75),List2!$A$1:'List2'!$B$90,2))) ->  | P75: =IF(ISBLANK(O75),"",IF(VALUE(O75)>89,1,VLOOKUP(VALUE(O75),List2!$A$1:'List2'!$B$90,2))) ->  | R75: =IF(ISBLANK(Q75),"",IF(VALUE(Q75)>89,1,VLOOKUP(VALUE(Q75),List2!$A$1:'List2'!$B$90,2))) ->  | T75: =IF(ISBLANK(S75),"",IF(VALUE(S75)>89,1,VLOOKUP(VALUE(S75),List2!$A$1:'List2'!$B$90,2))) ->  | V75: =IF(ISBLANK(U75),"",IF(VALUE(U75)>89,1,VLOOKUP(VALUE(U75),List2!$A$1:'List2'!$B$90,2))) ->  | X75: =IF(ISBLANK(W75),"",IF(VALUE(W75)>89,1,VLOOKUP(VALUE(W75),List2!$A$1:'List2'!$B$90,2))) ->  | Z75: =IF(ISBLANK(Y75),"",IF(VALUE(Y75)>89,1,VLOOKUP(VALUE(Y75),List2!$A$1:'List2'!$B$90,2))) ->  | AB75: =IF(ISBLANK(AA75),"",IF(VALUE(AA75)>89,1,VLOOKUP(VALUE(AA75),List2!$A$1:'List2'!$B$90,2))) ->  | AD75: =IF(ISBLANK(AC75),"",IF(VALUE(AC75)>89,1,VLOOKUP(VALUE(AC75),List2!$A$1:'List2'!$B$90,2))) ->  | AF75: =IF(ISBLANK(AE75),"",IF(VALUE(AE75)>89,1,VLOOKUP(VALUE(AE75),List2!$A$1:'List2'!$B$90,2))) ->  | AH75: =IF(ISBLANK(AG75),"",IF(VALUE(AG75)>89,1,VLOOKUP(VALUE(AG75),List2!$A$1:'List2'!$B$90,2))) ->  | AJ75: =IF(ISBLANK(AI75),"",IF(VALUE(AI75)>89,1,VLOOKUP(VALUE(AI75),List2!$A$1:'List2'!$B$90,2))) ->  | AL75: =IF(ISBLANK(AK75),"",IF(VALUE(AK75)>89,1,VLOOKUP(VALUE(AK75),List2!$A$1:'List2'!$B$90,2))) ->  | AN75: =IF(ISBLANK(AM75),"",IF(VALUE(AM75)>89,1,VLOOKUP(VALUE(AM75),List2!$A$1:'List2'!$B$90,2))) ->  | AP75: 0
F76: =IF(ISBLANK(E76),"",IF(VALUE(E76)>89,1,VLOOKUP(VALUE(E76),List2!$A$1:'List2'!$B$90,2))) ->  | H76: =IF(ISBLANK(G76),"",IF(VALUE(G76)>89,1,VLOOKUP(VALUE(G76),List2!$A$1:'List2'!$B$90,2))) ->  | J76: =IF(ISBLANK(I76),"",IF(VALUE(I76)>89,1,VLOOKUP(VALUE(I76),List2!$A$1:'List2'!$B$90,2))) ->  | L76: =IF(ISBLANK(K76),"",IF(VALUE(K76)>89,1,VLOOKUP(VALUE(K76),List2!$A$1:'List2'!$B$90,2))) ->  | N76: =IF(ISBLANK(M76),"",IF(VALUE(M76)>89,1,VLOOKUP(VALUE(M76),List2!$A$1:'List2'!$B$90,2))) ->  | P76: =IF(ISBLANK(O76),"",IF(VALUE(O76)>89,1,VLOOKUP(VALUE(O76),List2!$A$1:'List2'!$B$90,2))) ->  | R76: =IF(ISBLANK(Q76),"",IF(VALUE(Q76)>89,1,VLOOKUP(VALUE(Q76),List2!$A$1:'List2'!$B$90,2))) ->  | T76: =IF(ISBLANK(S76),"",IF(VALUE(S76)>89,1,VLOOKUP(VALUE(S76),List2!$A$1:'List2'!$B$90,2))) ->  | V76: =IF(ISBLANK(U76),"",IF(VALUE(U76)>89,1,VLOOKUP(VALUE(U76),List2!$A$1:'List2'!$B$90,2))) ->  | X76: =IF(ISBLANK(W76),"",IF(VALUE(W76)>89,1,VLOOKUP(VALUE(W76),List2!$A$1:'List2'!$B$90,2))) ->  | Z76: =IF(ISBLANK(Y76),"",IF(VALUE(Y76)>89,1,VLOOKUP(VALUE(Y76),List2!$A$1:'List2'!$B$90,2))) ->  | AB76: =IF(ISBLANK(AA76),"",IF(VALUE(AA76)>89,1,VLOOKUP(VALUE(AA76),List2!$A$1:'List2'!$B$90,2))) ->  | AD76: =IF(ISBLANK(AC76),"",IF(VALUE(AC76)>89,1,VLOOKUP(VALUE(AC76),List2!$A$1:'List2'!$B$90,2))) ->  | AF76: =IF(ISBLANK(AE76),"",IF(VALUE(AE76)>89,1,VLOOKUP(VALUE(AE76),List2!$A$1:'List2'!$B$90,2))) ->  | AH76: =IF(ISBLANK(AG76),"",IF(VALUE(AG76)>89,1,VLOOKUP(VALUE(AG76),List2!$A$1:'List2'!$B$90,2))) ->  | AJ76: =IF(ISBLANK(AI76),"",IF(VALUE(AI76)>89,1,VLOOKUP(VALUE(AI76),List2!$A$1:'List2'!$B$90,2))) ->  | AL76: =IF(ISBLANK(AK76),"",IF(VALUE(AK76)>89,1,VLOOKUP(VALUE(AK76),List2!$A$1:'List2'!$B$90,2))) ->  | AN76: =IF(ISBLANK(AM76),"",IF(VALUE(AM76)>89,1,VLOOKUP(VALUE(AM76),List2!$A$1:'List2'!$B$90,2))) ->  | AP76: 0
F77: =IF(ISBLANK(E77),"",IF(VALUE(E77)>89,1,VLOOKUP(VALUE(E77),List2!$A$1:'List2'!$B$90,2))) ->  | H77: =IF(ISBLANK(G77),"",IF(VALUE(G77)>89,1,VLOOKUP(VALUE(G77),List2!$A$1:'List2'!$B$90,2))) ->  | J77: =IF(ISBLANK(I77),"",IF(VALUE(I77)>89,1,VLOOKUP(VALUE(I77),List2!$A$1:'List2'!$B$90,2))) ->  | L77: =IF(ISBLANK(K77),"",IF(VALUE(K77)>89,1,VLOOKUP(VALUE(K77),List2!$A$1:'List2'!$B$90,2))) ->  | N77: =IF(ISBLANK(M77),"",IF(VALUE(M77)>89,1,VLOOKUP(VALUE(M77),List2!$A$1:'List2'!$B$90,2))) ->  | P77: =IF(ISBLANK(O77),"",IF(VALUE(O77)>89,1,VLOOKUP(VALUE(O77),List2!$A$1:'List2'!$B$90,2))) ->  | R77: =IF(ISBLANK(Q77),"",IF(VALUE(Q77)>89,1,VLOOKUP(VALUE(Q77),List2!$A$1:'List2'!$B$90,2))) ->  | T77: =IF(ISBLANK(S77),"",IF(VALUE(S77)>89,1,VLOOKUP(VALUE(S77),List2!$A$1:'List2'!$B$90,2))) ->  | V77: =IF(ISBLANK(U77),"",IF(VALUE(U77)>89,1,VLOOKUP(VALUE(U77),List2!$A$1:'List2'!$B$90,2))) ->  | X77: =IF(ISBLANK(W77),"",IF(VALUE(W77)>89,1,VLOOKUP(VALUE(W77),List2!$A$1:'List2'!$B$90,2))) ->  | Z77: =IF(ISBLANK(Y77),"",IF(VALUE(Y77)>89,1,VLOOKUP(VALUE(Y77),List2!$A$1:'List2'!$B$90,2))) ->  | AB77: =IF(ISBLANK(AA77),"",IF(VALUE(AA77)>89,1,VLOOKUP(VALUE(AA77),List2!$A$1:'List2'!$B$90,2))) ->  | AD77: =IF(ISBLANK(AC77),"",IF(VALUE(AC77)>89,1,VLOOKUP(VALUE(AC77),List2!$A$1:'List2'!$B$90,2))) ->  | AF77: =IF(ISBLANK(AE77),"",IF(VALUE(AE77)>89,1,VLOOKUP(VALUE(AE77),List2!$A$1:'List2'!$B$90,2))) ->  | AH77: =IF(ISBLANK(AG77),"",IF(VALUE(AG77)>89,1,VLOOKUP(VALUE(AG77),List2!$A$1:'List2'!$B$90,2))) ->  | AJ77: =IF(ISBLANK(AI77),"",IF(VALUE(AI77)>89,1,VLOOKUP(VALUE(AI77),List2!$A$1:'List2'!$B$90,2))) ->  | AL77: =IF(ISBLANK(AK77),"",IF(VALUE(AK77)>89,1,VLOOKUP(VALUE(AK77),List2!$A$1:'List2'!$B$90,2))) ->  | AN77: =IF(ISBLANK(AM77),"",IF(VALUE(AM77)>89,1,VLOOKUP(VALUE(AM77),List2!$A$1:'List2'!$B$90,2))) ->  | AP77: 0
F78: =IF(ISBLANK(E78),"",IF(VALUE(E78)>89,1,VLOOKUP(VALUE(E78),List2!$A$1:'List2'!$B$90,2))) ->  | H78: =IF(ISBLANK(G78),"",IF(VALUE(G78)>89,1,VLOOKUP(VALUE(G78),List2!$A$1:'List2'!$B$90,2))) ->  | J78: =IF(ISBLANK(I78),"",IF(VALUE(I78)>89,1,VLOOKUP(VALUE(I78),List2!$A$1:'List2'!$B$90,2))) ->  | L78: =IF(ISBLANK(K78),"",IF(VALUE(K78)>89,1,VLOOKUP(VALUE(K78),List2!$A$1:'List2'!$B$90,2))) ->  | N78: =IF(ISBLANK(M78),"",IF(VALUE(M78)>89,1,VLOOKUP(VALUE(M78),List2!$A$1:'List2'!$B$90,2))) ->  | P78: =IF(ISBLANK(O78),"",IF(VALUE(O78)>89,1,VLOOKUP(VALUE(O78),List2!$A$1:'List2'!$B$90,2))) ->  | R78: =IF(ISBLANK(Q78),"",IF(VALUE(Q78)>89,1,VLOOKUP(VALUE(Q78),List2!$A$1:'List2'!$B$90,2))) ->  | T78: =IF(ISBLANK(S78),"",IF(VALUE(S78)>89,1,VLOOKUP(VALUE(S78),List2!$A$1:'List2'!$B$90,2))) ->  | V78: =IF(ISBLANK(U78),"",IF(VALUE(U78)>89,1,VLOOKUP(VALUE(U78),List2!$A$1:'List2'!$B$90,2))) ->  | X78: =IF(ISBLANK(W78),"",IF(VALUE(W78)>89,1,VLOOKUP(VALUE(W78),List2!$A$1:'List2'!$B$90,2))) ->  | Z78: =IF(ISBLANK(Y78),"",IF(VALUE(Y78)>89,1,VLOOKUP(VALUE(Y78),List2!$A$1:'List2'!$B$90,2))) ->  | AB78: =IF(ISBLANK(AA78),"",IF(VALUE(AA78)>89,1,VLOOKUP(VALUE(AA78),List2!$A$1:'List2'!$B$90,2))) ->  | AD78: =IF(ISBLANK(AC78),"",IF(VALUE(AC78)>89,1,VLOOKUP(VALUE(AC78),List2!$A$1:'List2'!$B$90,2))) ->  | AF78: =IF(ISBLANK(AE78),"",IF(VALUE(AE78)>89,1,VLOOKUP(VALUE(AE78),List2!$A$1:'List2'!$B$90,2))) ->  | AH78: =IF(ISBLANK(AG78),"",IF(VALUE(AG78)>89,1,VLOOKUP(VALUE(AG78),List2!$A$1:'List2'!$B$90,2))) ->  | AJ78: =IF(ISBLANK(AI78),"",IF(VALUE(AI78)>89,1,VLOOKUP(VALUE(AI78),List2!$A$1:'List2'!$B$90,2))) ->  | AL78: =IF(ISBLANK(AK78),"",IF(VALUE(AK78)>89,1,VLOOKUP(VALUE(AK78),List2!$A$1:'List2'!$B$90,2))) ->  | AN78: =IF(ISBLANK(AM78),"",IF(VALUE(AM78)>89,1,VLOOKUP(VALUE(AM78),List2!$A$1:'List2'!$B$90,2))) ->  | AP78: 0
F79: =IF(ISBLANK(E79),"",IF(VALUE(E79)>89,1,VLOOKUP(VALUE(E79),List2!$A$1:'List2'!$B$90,2))) ->  | H79: =IF(ISBLANK(G79),"",IF(VALUE(G79)>89,1,VLOOKUP(VALUE(G79),List2!$A$1:'List2'!$B$90,2))) ->  | J79: =IF(ISBLANK(I79),"",IF(VALUE(I79)>89,1,VLOOKUP(VALUE(I79),List2!$A$1:'List2'!$B$90,2))) ->  | L79: =IF(ISBLANK(K79),"",IF(VALUE(K79)>89,1,VLOOKUP(VALUE(K79),List2!$A$1:'List2'!$B$90,2))) ->  | N79: =IF(ISBLANK(M79),"",IF(VALUE(M79)>89,1,VLOOKUP(VALUE(M79),List2!$A$1:'List2'!$B$90,2))) ->  | P79: =IF(ISBLANK(O79),"",IF(VALUE(O79)>89,1,VLOOKUP(VALUE(O79),List2!$A$1:'List2'!$B$90,2))) ->  | R79: =IF(ISBLANK(Q79),"",IF(VALUE(Q79)>89,1,VLOOKUP(VALUE(Q79),List2!$A$1:'List2'!$B$90,2))) ->  | T79: =IF(ISBLANK(S79),"",IF(VALUE(S79)>89,1,VLOOKUP(VALUE(S79),List2!$A$1:'List2'!$B$90,2))) ->  | V79: =IF(ISBLANK(U79),"",IF(VALUE(U79)>89,1,VLOOKUP(VALUE(U79),List2!$A$1:'List2'!$B$90,2))) ->  | X79: =IF(ISBLANK(W79),"",IF(VALUE(W79)>89,1,VLOOKUP(VALUE(W79),List2!$A$1:'List2'!$B$90,2))) ->  | Z79: =IF(ISBLANK(Y79),"",IF(VALUE(Y79)>89,1,VLOOKUP(VALUE(Y79),List2!$A$1:'List2'!$B$90,2))) ->  | AB79: =IF(ISBLANK(AA79),"",IF(VALUE(AA79)>89,1,VLOOKUP(VALUE(AA79),List2!$A$1:'List2'!$B$90,2))) ->  | AD79: =IF(ISBLANK(AC79),"",IF(VALUE(AC79)>89,1,VLOOKUP(VALUE(AC79),List2!$A$1:'List2'!$B$90,2))) ->  | AF79: =IF(ISBLANK(AE79),"",IF(VALUE(AE79)>89,1,VLOOKUP(VALUE(AE79),List2!$A$1:'List2'!$B$90,2))) ->  | AH79: =IF(ISBLANK(AG79),"",IF(VALUE(AG79)>89,1,VLOOKUP(VALUE(AG79),List2!$A$1:'List2'!$B$90,2))) ->  | AJ79: =IF(ISBLANK(AI79),"",IF(VALUE(AI79)>89,1,VLOOKUP(VALUE(AI79),List2!$A$1:'List2'!$B$90,2))) ->  | AL79: =IF(ISBLANK(AK79),"",IF(VALUE(AK79)>89,1,VLOOKUP(VALUE(AK79),List2!$A$1:'List2'!$B$90,2))) ->  | AN79: =IF(ISBLANK(AM79),"",IF(VALUE(AM79)>89,1,VLOOKUP(VALUE(AM79),List2!$A$1:'List2'!$B$90,2))) ->  | AP79: 0
F80: =IF(ISBLANK(E80),"",IF(VALUE(E80)>89,1,VLOOKUP(VALUE(E80),List2!$A$1:'List2'!$B$90,2))) ->  | H80: =IF(ISBLANK(G80),"",IF(VALUE(G80)>89,1,VLOOKUP(VALUE(G80),List2!$A$1:'List2'!$B$90,2))) ->  | J80: =IF(ISBLANK(I80),"",IF(VALUE(I80)>89,1,VLOOKUP(VALUE(I80),List2!$A$1:'List2'!$B$90,2))) ->  | L80: =IF(ISBLANK(K80),"",IF(VALUE(K80)>89,1,VLOOKUP(VALUE(K80),List2!$A$1:'List2'!$B$90,2))) ->  | N80: =IF(ISBLANK(M80),"",IF(VALUE(M80)>89,1,VLOOKUP(VALUE(M80),List2!$A$1:'List2'!$B$90,2))) ->  | P80: =IF(ISBLANK(O80),"",IF(VALUE(O80)>89,1,VLOOKUP(VALUE(O80),List2!$A$1:'List2'!$B$90,2))) ->  | R80: =IF(ISBLANK(Q80),"",IF(VALUE(Q80)>89,1,VLOOKUP(VALUE(Q80),List2!$A$1:'List2'!$B$90,2))) ->  | T80: =IF(ISBLANK(S80),"",IF(VALUE(S80)>89,1,VLOOKUP(VALUE(S80),List2!$A$1:'List2'!$B$90,2))) ->  | V80: =IF(ISBLANK(U80),"",IF(VALUE(U80)>89,1,VLOOKUP(VALUE(U80),List2!$A$1:'List2'!$B$90,2))) ->  | X80: =IF(ISBLANK(W80),"",IF(VALUE(W80)>89,1,VLOOKUP(VALUE(W80),List2!$A$1:'List2'!$B$90,2))) ->  | Z80: =IF(ISBLANK(Y80),"",IF(VALUE(Y80)>89,1,VLOOKUP(VALUE(Y80),List2!$A$1:'List2'!$B$90,2))) ->  | AB80: =IF(ISBLANK(AA80),"",IF(VALUE(AA80)>89,1,VLOOKUP(VALUE(AA80),List2!$A$1:'List2'!$B$90,2))) ->  | AD80: =IF(ISBLANK(AC80),"",IF(VALUE(AC80)>89,1,VLOOKUP(VALUE(AC80),List2!$A$1:'List2'!$B$90,2))) ->  | AF80: =IF(ISBLANK(AE80),"",IF(VALUE(AE80)>89,1,VLOOKUP(VALUE(AE80),List2!$A$1:'List2'!$B$90,2))) ->  | AH80: =IF(ISBLANK(AG80),"",IF(VALUE(AG80)>89,1,VLOOKUP(VALUE(AG80),List2!$A$1:'List2'!$B$90,2))) ->  | AJ80: =IF(ISBLANK(AI80),"",IF(VALUE(AI80)>89,1,VLOOKUP(VALUE(AI80),List2!$A$1:'List2'!$B$90,2))) ->  | AL80: =IF(ISBLANK(AK80),"",IF(VALUE(AK80)>89,1,VLOOKUP(VALUE(AK80),List2!$A$1:'List2'!$B$90,2))) ->  | AN80: =IF(ISBLANK(AM80),"",IF(VALUE(AM80)>89,1,VLOOKUP(VALUE(AM80),List2!$A$1:'List2'!$B$90,2))) ->  | AP80: 0
F81: =IF(ISBLANK(E81),"",IF(VALUE(E81)>89,1,VLOOKUP(VALUE(E81),List2!$A$1:'List2'!$B$90,2))) ->  | H81: =IF(ISBLANK(G81),"",IF(VALUE(G81)>89,1,VLOOKUP(VALUE(G81),List2!$A$1:'List2'!$B$90,2))) ->  | J81: =IF(ISBLANK(I81),"",IF(VALUE(I81)>89,1,VLOOKUP(VALUE(I81),List2!$A$1:'List2'!$B$90,2))) ->  | L81: =IF(ISBLANK(K81),"",IF(VALUE(K81)>89,1,VLOOKUP(VALUE(K81),List2!$A$1:'List2'!$B$90,2))) ->  | N81: =IF(ISBLANK(M81),"",IF(VALUE(M81)>89,1,VLOOKUP(VALUE(M81),List2!$A$1:'List2'!$B$90,2))) ->  | P81: =IF(ISBLANK(O81),"",IF(VALUE(O81)>89,1,VLOOKUP(VALUE(O81),List2!$A$1:'List2'!$B$90,2))) ->  | R81: =IF(ISBLANK(Q81),"",IF(VALUE(Q81)>89,1,VLOOKUP(VALUE(Q81),List2!$A$1:'List2'!$B$90,2))) ->  | T81: =IF(ISBLANK(S81),"",IF(VALUE(S81)>89,1,VLOOKUP(VALUE(S81),List2!$A$1:'List2'!$B$90,2))) ->  | V81: =IF(ISBLANK(U81),"",IF(VALUE(U81)>89,1,VLOOKUP(VALUE(U81),List2!$A$1:'List2'!$B$90,2))) ->  | X81: =IF(ISBLANK(W81),"",IF(VALUE(W81)>89,1,VLOOKUP(VALUE(W81),List2!$A$1:'List2'!$B$90,2))) ->  | Z81: =IF(ISBLANK(Y81),"",IF(VALUE(Y81)>89,1,VLOOKUP(VALUE(Y81),List2!$A$1:'List2'!$B$90,2))) ->  | AB81: =IF(ISBLANK(AA81),"",IF(VALUE(AA81)>89,1,VLOOKUP(VALUE(AA81),List2!$A$1:'List2'!$B$90,2))) ->  | AD81: =IF(ISBLANK(AC81),"",IF(VALUE(AC81)>89,1,VLOOKUP(VALUE(AC81),List2!$A$1:'List2'!$B$90,2))) ->  | AF81: =IF(ISBLANK(AE81),"",IF(VALUE(AE81)>89,1,VLOOKUP(VALUE(AE81),List2!$A$1:'List2'!$B$90,2))) ->  | AH81: =IF(ISBLANK(AG81),"",IF(VALUE(AG81)>89,1,VLOOKUP(VALUE(AG81),List2!$A$1:'List2'!$B$90,2))) ->  | AJ81: =IF(ISBLANK(AI81),"",IF(VALUE(AI81)>89,1,VLOOKUP(VALUE(AI81),List2!$A$1:'List2'!$B$90,2))) ->  | AL81: =IF(ISBLANK(AK81),"",IF(VALUE(AK81)>89,1,VLOOKUP(VALUE(AK81),List2!$A$1:'List2'!$B$90,2))) ->  | AN81: =IF(ISBLANK(AM81),"",IF(VALUE(AM81)>89,1,VLOOKUP(VALUE(AM81),List2!$A$1:'List2'!$B$90,2))) ->  | AP81: 0
F82: =IF(ISBLANK(E82),"",IF(VALUE(E82)>89,1,VLOOKUP(VALUE(E82),List2!$A$1:'List2'!$B$90,2))) ->  | H82: =IF(ISBLANK(G82),"",IF(VALUE(G82)>89,1,VLOOKUP(VALUE(G82),List2!$A$1:'List2'!$B$90,2))) ->  | J82: =IF(ISBLANK(I82),"",IF(VALUE(I82)>89,1,VLOOKUP(VALUE(I82),List2!$A$1:'List2'!$B$90,2))) ->  | L82: =IF(ISBLANK(K82),"",IF(VALUE(K82)>89,1,VLOOKUP(VALUE(K82),List2!$A$1:'List2'!$B$90,2))) ->  | N82: =IF(ISBLANK(M82),"",IF(VALUE(M82)>89,1,VLOOKUP(VALUE(M82),List2!$A$1:'List2'!$B$90,2))) ->  | P82: =IF(ISBLANK(O82),"",IF(VALUE(O82)>89,1,VLOOKUP(VALUE(O82),List2!$A$1:'List2'!$B$90,2))) ->  | R82: =IF(ISBLANK(Q82),"",IF(VALUE(Q82)>89,1,VLOOKUP(VALUE(Q82),List2!$A$1:'List2'!$B$90,2))) ->  | T82: =IF(ISBLANK(S82),"",IF(VALUE(S82)>89,1,VLOOKUP(VALUE(S82),List2!$A$1:'List2'!$B$90,2))) ->  | V82: =IF(ISBLANK(U82),"",IF(VALUE(U82)>89,1,VLOOKUP(VALUE(U82),List2!$A$1:'List2'!$B$90,2))) ->  | X82: =IF(ISBLANK(W82),"",IF(VALUE(W82)>89,1,VLOOKUP(VALUE(W82),List2!$A$1:'List2'!$B$90,2))) ->  | Z82: =IF(ISBLANK(Y82),"",IF(VALUE(Y82)>89,1,VLOOKUP(VALUE(Y82),List2!$A$1:'List2'!$B$90,2))) ->  | AB82: =IF(ISBLANK(AA82),"",IF(VALUE(AA82)>89,1,VLOOKUP(VALUE(AA82),List2!$A$1:'List2'!$B$90,2))) ->  | AD82: =IF(ISBLANK(AC82),"",IF(VALUE(AC82)>89,1,VLOOKUP(VALUE(AC82),List2!$A$1:'List2'!$B$90,2))) ->  | AF82: =IF(ISBLANK(AE82),"",IF(VALUE(AE82)>89,1,VLOOKUP(VALUE(AE82),List2!$A$1:'List2'!$B$90,2))) ->  | AH82: =IF(ISBLANK(AG82),"",IF(VALUE(AG82)>89,1,VLOOKUP(VALUE(AG82),List2!$A$1:'List2'!$B$90,2))) ->  | AJ82: =IF(ISBLANK(AI82),"",IF(VALUE(AI82)>89,1,VLOOKUP(VALUE(AI82),List2!$A$1:'List2'!$B$90,2))) ->  | AL82: =IF(ISBLANK(AK82),"",IF(VALUE(AK82)>89,1,VLOOKUP(VALUE(AK82),List2!$A$1:'List2'!$B$90,2))) ->  | AN82: =IF(ISBLANK(AM82),"",IF(VALUE(AM82)>89,1,VLOOKUP(VALUE(AM82),List2!$A$1:'List2'!$B$90,2))) ->  | AP82: 0
F83: =IF(ISBLANK(E83),"",IF(VALUE(E83)>89,1,VLOOKUP(VALUE(E83),List2!$A$1:'List2'!$B$90,2))) ->  | H83: =IF(ISBLANK(G83),"",IF(VALUE(G83)>89,1,VLOOKUP(VALUE(G83),List2!$A$1:'List2'!$B$90,2))) ->  | J83: =IF(ISBLANK(I83),"",IF(VALUE(I83)>89,1,VLOOKUP(VALUE(I83),List2!$A$1:'List2'!$B$90,2))) ->  | L83: =IF(ISBLANK(K83),"",IF(VALUE(K83)>89,1,VLOOKUP(VALUE(K83),List2!$A$1:'List2'!$B$90,2))) ->  | N83: =IF(ISBLANK(M83),"",IF(VALUE(M83)>89,1,VLOOKUP(VALUE(M83),List2!$A$1:'List2'!$B$90,2))) ->  | P83: =IF(ISBLANK(O83),"",IF(VALUE(O83)>89,1,VLOOKUP(VALUE(O83),List2!$A$1:'List2'!$B$90,2))) ->  | R83: =IF(ISBLANK(Q83),"",IF(VALUE(Q83)>89,1,VLOOKUP(VALUE(Q83),List2!$A$1:'List2'!$B$90,2))) ->  | T83: =IF(ISBLANK(S83),"",IF(VALUE(S83)>89,1,VLOOKUP(VALUE(S83),List2!$A$1:'List2'!$B$90,2))) ->  | V83: =IF(ISBLANK(U83),"",IF(VALUE(U83)>89,1,VLOOKUP(VALUE(U83),List2!$A$1:'List2'!$B$90,2))) ->  | X83: =IF(ISBLANK(W83),"",IF(VALUE(W83)>89,1,VLOOKUP(VALUE(W83),List2!$A$1:'List2'!$B$90,2))) ->  | Z83: =IF(ISBLANK(Y83),"",IF(VALUE(Y83)>89,1,VLOOKUP(VALUE(Y83),List2!$A$1:'List2'!$B$90,2))) ->  | AB83: =IF(ISBLANK(AA83),"",IF(VALUE(AA83)>89,1,VLOOKUP(VALUE(AA83),List2!$A$1:'List2'!$B$90,2))) ->  | AD83: =IF(ISBLANK(AC83),"",IF(VALUE(AC83)>89,1,VLOOKUP(VALUE(AC83),List2!$A$1:'List2'!$B$90,2))) ->  | AF83: =IF(ISBLANK(AE83),"",IF(VALUE(AE83)>89,1,VLOOKUP(VALUE(AE83),List2!$A$1:'List2'!$B$90,2))) ->  | AH83: =IF(ISBLANK(AG83),"",IF(VALUE(AG83)>89,1,VLOOKUP(VALUE(AG83),List2!$A$1:'List2'!$B$90,2))) ->  | AJ83: =IF(ISBLANK(AI83),"",IF(VALUE(AI83)>89,1,VLOOKUP(VALUE(AI83),List2!$A$1:'List2'!$B$90,2))) ->  | AL83: =IF(ISBLANK(AK83),"",IF(VALUE(AK83)>89,1,VLOOKUP(VALUE(AK83),List2!$A$1:'List2'!$B$90,2))) ->  | AN83: =IF(ISBLANK(AM83),"",IF(VALUE(AM83)>89,1,VLOOKUP(VALUE(AM83),List2!$A$1:'List2'!$B$90,2))) ->  | AP83: 0
F84: =IF(ISBLANK(E84),"",IF(VALUE(E84)>89,1,VLOOKUP(VALUE(E84),List2!$A$1:'List2'!$B$90,2))) ->  | H84: =IF(ISBLANK(G84),"",IF(VALUE(G84)>89,1,VLOOKUP(VALUE(G84),List2!$A$1:'List2'!$B$90,2))) ->  | J84: =IF(ISBLANK(I84),"",IF(VALUE(I84)>89,1,VLOOKUP(VALUE(I84),List2!$A$1:'List2'!$B$90,2))) ->  | L84: =IF(ISBLANK(K84),"",IF(VALUE(K84)>89,1,VLOOKUP(VALUE(K84),List2!$A$1:'List2'!$B$90,2))) ->  | N84: =IF(ISBLANK(M84),"",IF(VALUE(M84)>89,1,VLOOKUP(VALUE(M84),List2!$A$1:'List2'!$B$90,2))) ->  | P84: =IF(ISBLANK(O84),"",IF(VALUE(O84)>89,1,VLOOKUP(VALUE(O84),List2!$A$1:'List2'!$B$90,2))) ->  | R84: =IF(ISBLANK(Q84),"",IF(VALUE(Q84)>89,1,VLOOKUP(VALUE(Q84),List2!$A$1:'List2'!$B$90,2))) ->  | T84: =IF(ISBLANK(S84),"",IF(VALUE(S84)>89,1,VLOOKUP(VALUE(S84),List2!$A$1:'List2'!$B$90,2))) ->  | V84: =IF(ISBLANK(U84),"",IF(VALUE(U84)>89,1,VLOOKUP(VALUE(U84),List2!$A$1:'List2'!$B$90,2))) ->  | X84: =IF(ISBLANK(W84),"",IF(VALUE(W84)>89,1,VLOOKUP(VALUE(W84),List2!$A$1:'List2'!$B$90,2))) ->  | Z84: =IF(ISBLANK(Y84),"",IF(VALUE(Y84)>89,1,VLOOKUP(VALUE(Y84),List2!$A$1:'List2'!$B$90,2))) ->  | AB84: =IF(ISBLANK(AA84),"",IF(VALUE(AA84)>89,1,VLOOKUP(VALUE(AA84),List2!$A$1:'List2'!$B$90,2))) ->  | AD84: =IF(ISBLANK(AC84),"",IF(VALUE(AC84)>89,1,VLOOKUP(VALUE(AC84),List2!$A$1:'List2'!$B$90,2))) ->  | AF84: =IF(ISBLANK(AE84),"",IF(VALUE(AE84)>89,1,VLOOKUP(VALUE(AE84),List2!$A$1:'List2'!$B$90,2))) ->  | AH84: =IF(ISBLANK(AG84),"",IF(VALUE(AG84)>89,1,VLOOKUP(VALUE(AG84),List2!$A$1:'List2'!$B$90,2))) ->  | AJ84: =IF(ISBLANK(AI84),"",IF(VALUE(AI84)>89,1,VLOOKUP(VALUE(AI84),List2!$A$1:'List2'!$B$90,2))) ->  | AL84: =IF(ISBLANK(AK84),"",IF(VALUE(AK84)>89,1,VLOOKUP(VALUE(AK84),List2!$A$1:'List2'!$B$90,2))) ->  | AN84: =IF(ISBLANK(AM84),"",IF(VALUE(AM84)>89,1,VLOOKUP(VALUE(AM84),List2!$A$1:'List2'!$B$90,2))) ->  | AP84: 0
F85: =IF(ISBLANK(E85),"",IF(VALUE(E85)>89,1,VLOOKUP(VALUE(E85),List2!$A$1:'List2'!$B$90,2))) ->  | H85: =IF(ISBLANK(G85),"",IF(VALUE(G85)>89,1,VLOOKUP(VALUE(G85),List2!$A$1:'List2'!$B$90,2))) ->  | J85: =IF(ISBLANK(I85),"",IF(VALUE(I85)>89,1,VLOOKUP(VALUE(I85),List2!$A$1:'List2'!$B$90,2))) ->  | L85: =IF(ISBLANK(K85),"",IF(VALUE(K85)>89,1,VLOOKUP(VALUE(K85),List2!$A$1:'List2'!$B$90,2))) ->  | N85: =IF(ISBLANK(M85),"",IF(VALUE(M85)>89,1,VLOOKUP(VALUE(M85),List2!$A$1:'List2'!$B$90,2))) ->  | P85: =IF(ISBLANK(O85),"",IF(VALUE(O85)>89,1,VLOOKUP(VALUE(O85),List2!$A$1:'List2'!$B$90,2))) ->  | R85: =IF(ISBLANK(Q85),"",IF(VALUE(Q85)>89,1,VLOOKUP(VALUE(Q85),List2!$A$1:'List2'!$B$90,2))) ->  | T85: =IF(ISBLANK(S85),"",IF(VALUE(S85)>89,1,VLOOKUP(VALUE(S85),List2!$A$1:'List2'!$B$90,2))) ->  | V85: =IF(ISBLANK(U85),"",IF(VALUE(U85)>89,1,VLOOKUP(VALUE(U85),List2!$A$1:'List2'!$B$90,2))) ->  | X85: =IF(ISBLANK(W85),"",IF(VALUE(W85)>89,1,VLOOKUP(VALUE(W85),List2!$A$1:'List2'!$B$90,2))) ->  | Z85: =IF(ISBLANK(Y85),"",IF(VALUE(Y85)>89,1,VLOOKUP(VALUE(Y85),List2!$A$1:'List2'!$B$90,2))) ->  | AB85: =IF(ISBLANK(AA85),"",IF(VALUE(AA85)>89,1,VLOOKUP(VALUE(AA85),List2!$A$1:'List2'!$B$90,2))) ->  | AD85: =IF(ISBLANK(AC85),"",IF(VALUE(AC85)>89,1,VLOOKUP(VALUE(AC85),List2!$A$1:'List2'!$B$90,2))) ->  | AF85: =IF(ISBLANK(AE85),"",IF(VALUE(AE85)>89,1,VLOOKUP(VALUE(AE85),List2!$A$1:'List2'!$B$90,2))) ->  | AH85: =IF(ISBLANK(AG85),"",IF(VALUE(AG85)>89,1,VLOOKUP(VALUE(AG85),List2!$A$1:'List2'!$B$90,2))) ->  | AJ85: =IF(ISBLANK(AI85),"",IF(VALUE(AI85)>89,1,VLOOKUP(VALUE(AI85),List2!$A$1:'List2'!$B$90,2))) ->  | AL85: =IF(ISBLANK(AK85),"",IF(VALUE(AK85)>89,1,VLOOKUP(VALUE(AK85),List2!$A$1:'List2'!$B$90,2))) ->  | AN85: =IF(ISBLANK(AM85),"",IF(VALUE(AM85)>89,1,VLOOKUP(VALUE(AM85),List2!$A$1:'List2'!$B$90,2))) ->  | AP85: 0
F86: =IF(ISBLANK(E86),"",IF(VALUE(E86)>89,1,VLOOKUP(VALUE(E86),List2!$A$1:'List2'!$B$90,2))) ->  | H86: =IF(ISBLANK(G86),"",IF(VALUE(G86)>89,1,VLOOKUP(VALUE(G86),List2!$A$1:'List2'!$B$90,2))) ->  | J86: =IF(ISBLANK(I86),"",IF(VALUE(I86)>89,1,VLOOKUP(VALUE(I86),List2!$A$1:'List2'!$B$90,2))) ->  | L86: =IF(ISBLANK(K86),"",IF(VALUE(K86)>89,1,VLOOKUP(VALUE(K86),List2!$A$1:'List2'!$B$90,2))) ->  | N86: =IF(ISBLANK(M86),"",IF(VALUE(M86)>89,1,VLOOKUP(VALUE(M86),List2!$A$1:'List2'!$B$90,2))) ->  | P86: =IF(ISBLANK(O86),"",IF(VALUE(O86)>89,1,VLOOKUP(VALUE(O86),List2!$A$1:'List2'!$B$90,2))) ->  | R86: =IF(ISBLANK(Q86),"",IF(VALUE(Q86)>89,1,VLOOKUP(VALUE(Q86),List2!$A$1:'List2'!$B$90,2))) ->  | T86: =IF(ISBLANK(S86),"",IF(VALUE(S86)>89,1,VLOOKUP(VALUE(S86),List2!$A$1:'List2'!$B$90,2))) ->  | V86: =IF(ISBLANK(U86),"",IF(VALUE(U86)>89,1,VLOOKUP(VALUE(U86),List2!$A$1:'List2'!$B$90,2))) ->  | X86: =IF(ISBLANK(W86),"",IF(VALUE(W86)>89,1,VLOOKUP(VALUE(W86),List2!$A$1:'List2'!$B$90,2))) ->  | Z86: =IF(ISBLANK(Y86),"",IF(VALUE(Y86)>89,1,VLOOKUP(VALUE(Y86),List2!$A$1:'List2'!$B$90,2))) ->  | AB86: =IF(ISBLANK(AA86),"",IF(VALUE(AA86)>89,1,VLOOKUP(VALUE(AA86),List2!$A$1:'List2'!$B$90,2))) ->  | AD86: =IF(ISBLANK(AC86),"",IF(VALUE(AC86)>89,1,VLOOKUP(VALUE(AC86),List2!$A$1:'List2'!$B$90,2))) ->  | AF86: =IF(ISBLANK(AE86),"",IF(VALUE(AE86)>89,1,VLOOKUP(VALUE(AE86),List2!$A$1:'List2'!$B$90,2))) ->  | AH86: =IF(ISBLANK(AG86),"",IF(VALUE(AG86)>89,1,VLOOKUP(VALUE(AG86),List2!$A$1:'List2'!$B$90,2))) ->  | AJ86: =IF(ISBLANK(AI86),"",IF(VALUE(AI86)>89,1,VLOOKUP(VALUE(AI86),List2!$A$1:'List2'!$B$90,2))) ->  | AL86: =IF(ISBLANK(AK86),"",IF(VALUE(AK86)>89,1,VLOOKUP(VALUE(AK86),List2!$A$1:'List2'!$B$90,2))) ->  | AN86: =IF(ISBLANK(AM86),"",IF(VALUE(AM86)>89,1,VLOOKUP(VALUE(AM86),List2!$A$1:'List2'!$B$90,2))) ->  | AP86: 0
F87: =IF(ISBLANK(E87),"",IF(VALUE(E87)>89,1,VLOOKUP(VALUE(E87),List2!$A$1:'List2'!$B$90,2))) ->  | H87: =IF(ISBLANK(G87),"",IF(VALUE(G87)>89,1,VLOOKUP(VALUE(G87),List2!$A$1:'List2'!$B$90,2))) ->  | J87: =IF(ISBLANK(I87),"",IF(VALUE(I87)>89,1,VLOOKUP(VALUE(I87),List2!$A$1:'List2'!$B$90,2))) ->  | L87: =IF(ISBLANK(K87),"",IF(VALUE(K87)>89,1,VLOOKUP(VALUE(K87),List2!$A$1:'List2'!$B$90,2))) ->  | N87: =IF(ISBLANK(M87),"",IF(VALUE(M87)>89,1,VLOOKUP(VALUE(M87),List2!$A$1:'List2'!$B$90,2))) ->  | P87: =IF(ISBLANK(O87),"",IF(VALUE(O87)>89,1,VLOOKUP(VALUE(O87),List2!$A$1:'List2'!$B$90,2))) ->  | R87: =IF(ISBLANK(Q87),"",IF(VALUE(Q87)>89,1,VLOOKUP(VALUE(Q87),List2!$A$1:'List2'!$B$90,2))) ->  | T87: =IF(ISBLANK(S87),"",IF(VALUE(S87)>89,1,VLOOKUP(VALUE(S87),List2!$A$1:'List2'!$B$90,2))) ->  | V87: =IF(ISBLANK(U87),"",IF(VALUE(U87)>89,1,VLOOKUP(VALUE(U87),List2!$A$1:'List2'!$B$90,2))) ->  | X87: =IF(ISBLANK(W87),"",IF(VALUE(W87)>89,1,VLOOKUP(VALUE(W87),List2!$A$1:'List2'!$B$90,2))) ->  | Z87: =IF(ISBLANK(Y87),"",IF(VALUE(Y87)>89,1,VLOOKUP(VALUE(Y87),List2!$A$1:'List2'!$B$90,2))) ->  | AB87: =IF(ISBLANK(AA87),"",IF(VALUE(AA87)>89,1,VLOOKUP(VALUE(AA87),List2!$A$1:'List2'!$B$90,2))) ->  | AD87: =IF(ISBLANK(AC87),"",IF(VALUE(AC87)>89,1,VLOOKUP(VALUE(AC87),List2!$A$1:'List2'!$B$90,2))) ->  | AF87: =IF(ISBLANK(AE87),"",IF(VALUE(AE87)>89,1,VLOOKUP(VALUE(AE87),List2!$A$1:'List2'!$B$90,2))) ->  | AH87: =IF(ISBLANK(AG87),"",IF(VALUE(AG87)>89,1,VLOOKUP(VALUE(AG87),List2!$A$1:'List2'!$B$90,2))) ->  | AJ87: =IF(ISBLANK(AI87),"",IF(VALUE(AI87)>89,1,VLOOKUP(VALUE(AI87),List2!$A$1:'List2'!$B$90,2))) ->  | AL87: =IF(ISBLANK(AK87),"",IF(VALUE(AK87)>89,1,VLOOKUP(VALUE(AK87),List2!$A$1:'List2'!$B$90,2))) ->  | AN87: =IF(ISBLANK(AM87),"",IF(VALUE(AM87)>89,1,VLOOKUP(VALUE(AM87),List2!$A$1:'List2'!$B$90,2))) ->  | AP87: 0
F88: =IF(ISBLANK(E88),"",IF(VALUE(E88)>89,1,VLOOKUP(VALUE(E88),List2!$A$1:'List2'!$B$90,2))) ->  | H88: =IF(ISBLANK(G88),"",IF(VALUE(G88)>89,1,VLOOKUP(VALUE(G88),List2!$A$1:'List2'!$B$90,2))) ->  | J88: =IF(ISBLANK(I88),"",IF(VALUE(I88)>89,1,VLOOKUP(VALUE(I88),List2!$A$1:'List2'!$B$90,2))) ->  | L88: =IF(ISBLANK(K88),"",IF(VALUE(K88)>89,1,VLOOKUP(VALUE(K88),List2!$A$1:'List2'!$B$90,2))) ->  | N88: =IF(ISBLANK(M88),"",IF(VALUE(M88)>89,1,VLOOKUP(VALUE(M88),List2!$A$1:'List2'!$B$90,2))) ->  | P88: =IF(ISBLANK(O88),"",IF(VALUE(O88)>89,1,VLOOKUP(VALUE(O88),List2!$A$1:'List2'!$B$90,2))) ->  | R88: =IF(ISBLANK(Q88),"",IF(VALUE(Q88)>89,1,VLOOKUP(VALUE(Q88),List2!$A$1:'List2'!$B$90,2))) ->  | T88: =IF(ISBLANK(S88),"",IF(VALUE(S88)>89,1,VLOOKUP(VALUE(S88),List2!$A$1:'List2'!$B$90,2))) ->  | V88: =IF(ISBLANK(U88),"",IF(VALUE(U88)>89,1,VLOOKUP(VALUE(U88),List2!$A$1:'List2'!$B$90,2))) ->  | X88: =IF(ISBLANK(W88),"",IF(VALUE(W88)>89,1,VLOOKUP(VALUE(W88),List2!$A$1:'List2'!$B$90,2))) ->  | Z88: =IF(ISBLANK(Y88),"",IF(VALUE(Y88)>89,1,VLOOKUP(VALUE(Y88),List2!$A$1:'List2'!$B$90,2))) ->  | AB88: =IF(ISBLANK(AA88),"",IF(VALUE(AA88)>89,1,VLOOKUP(VALUE(AA88),List2!$A$1:'List2'!$B$90,2))) ->  | AD88: =IF(ISBLANK(AC88),"",IF(VALUE(AC88)>89,1,VLOOKUP(VALUE(AC88),List2!$A$1:'List2'!$B$90,2))) ->  | AF88: =IF(ISBLANK(AE88),"",IF(VALUE(AE88)>89,1,VLOOKUP(VALUE(AE88),List2!$A$1:'List2'!$B$90,2))) ->  | AH88: =IF(ISBLANK(AG88),"",IF(VALUE(AG88)>89,1,VLOOKUP(VALUE(AG88),List2!$A$1:'List2'!$B$90,2))) ->  | AJ88: =IF(ISBLANK(AI88),"",IF(VALUE(AI88)>89,1,VLOOKUP(VALUE(AI88),List2!$A$1:'List2'!$B$90,2))) ->  | AL88: =IF(ISBLANK(AK88),"",IF(VALUE(AK88)>89,1,VLOOKUP(VALUE(AK88),List2!$A$1:'List2'!$B$90,2))) ->  | AN88: =IF(ISBLANK(AM88),"",IF(VALUE(AM88)>89,1,VLOOKUP(VALUE(AM88),List2!$A$1:'List2'!$B$90,2))) ->  | AP88: 0
F89: =IF(ISBLANK(E89),"",IF(VALUE(E89)>89,1,VLOOKUP(VALUE(E89),List2!$A$1:'List2'!$B$90,2))) ->  | H89: =IF(ISBLANK(G89),"",IF(VALUE(G89)>89,1,VLOOKUP(VALUE(G89),List2!$A$1:'List2'!$B$90,2))) ->  | J89: =IF(ISBLANK(I89),"",IF(VALUE(I89)>89,1,VLOOKUP(VALUE(I89),List2!$A$1:'List2'!$B$90,2))) ->  | L89: =IF(ISBLANK(K89),"",IF(VALUE(K89)>89,1,VLOOKUP(VALUE(K89),List2!$A$1:'List2'!$B$90,2))) ->  | N89: =IF(ISBLANK(M89),"",IF(VALUE(M89)>89,1,VLOOKUP(VALUE(M89),List2!$A$1:'List2'!$B$90,2))) ->  | P89: =IF(ISBLANK(O89),"",IF(VALUE(O89)>89,1,VLOOKUP(VALUE(O89),List2!$A$1:'List2'!$B$90,2))) ->  | R89: =IF(ISBLANK(Q89),"",IF(VALUE(Q89)>89,1,VLOOKUP(VALUE(Q89),List2!$A$1:'List2'!$B$90,2))) ->  | T89: =IF(ISBLANK(S89),"",IF(VALUE(S89)>89,1,VLOOKUP(VALUE(S89),List2!$A$1:'List2'!$B$90,2))) ->  | V89: =IF(ISBLANK(U89),"",IF(VALUE(U89)>89,1,VLOOKUP(VALUE(U89),List2!$A$1:'List2'!$B$90,2))) ->  | X89: =IF(ISBLANK(W89),"",IF(VALUE(W89)>89,1,VLOOKUP(VALUE(W89),List2!$A$1:'List2'!$B$90,2))) ->  | Z89: =IF(ISBLANK(Y89),"",IF(VALUE(Y89)>89,1,VLOOKUP(VALUE(Y89),List2!$A$1:'List2'!$B$90,2))) ->  | AB89: =IF(ISBLANK(AA89),"",IF(VALUE(AA89)>89,1,VLOOKUP(VALUE(AA89),List2!$A$1:'List2'!$B$90,2))) ->  | AD89: =IF(ISBLANK(AC89),"",IF(VALUE(AC89)>89,1,VLOOKUP(VALUE(AC89),List2!$A$1:'List2'!$B$90,2))) ->  | AF89: =IF(ISBLANK(AE89),"",IF(VALUE(AE89)>89,1,VLOOKUP(VALUE(AE89),List2!$A$1:'List2'!$B$90,2))) ->  | AH89: =IF(ISBLANK(AG89),"",IF(VALUE(AG89)>89,1,VLOOKUP(VALUE(AG89),List2!$A$1:'List2'!$B$90,2))) ->  | AJ89: =IF(ISBLANK(AI89),"",IF(VALUE(AI89)>89,1,VLOOKUP(VALUE(AI89),List2!$A$1:'List2'!$B$90,2))) ->  | AL89: =IF(ISBLANK(AK89),"",IF(VALUE(AK89)>89,1,VLOOKUP(VALUE(AK89),List2!$A$1:'List2'!$B$90,2))) ->  | AN89: =IF(ISBLANK(AM89),"",IF(VALUE(AM89)>89,1,VLOOKUP(VALUE(AM89),List2!$A$1:'List2'!$B$90,2))) ->  | AP89: 0
F90: =IF(ISBLANK(E90),"",IF(VALUE(E90)>89,1,VLOOKUP(VALUE(E90),List2!$A$1:'List2'!$B$90,2))) ->  | H90: =IF(ISBLANK(G90),"",IF(VALUE(G90)>89,1,VLOOKUP(VALUE(G90),List2!$A$1:'List2'!$B$90,2))) ->  | J90: =IF(ISBLANK(I90),"",IF(VALUE(I90)>89,1,VLOOKUP(VALUE(I90),List2!$A$1:'List2'!$B$90,2))) ->  | L90: =IF(ISBLANK(K90),"",IF(VALUE(K90)>89,1,VLOOKUP(VALUE(K90),List2!$A$1:'List2'!$B$90,2))) ->  | N90: =IF(ISBLANK(M90),"",IF(VALUE(M90)>89,1,VLOOKUP(VALUE(M90),List2!$A$1:'List2'!$B$90,2))) ->  | P90: =IF(ISBLANK(O90),"",IF(VALUE(O90)>89,1,VLOOKUP(VALUE(O90),List2!$A$1:'List2'!$B$90,2))) ->  | R90: =IF(ISBLANK(Q90),"",IF(VALUE(Q90)>89,1,VLOOKUP(VALUE(Q90),List2!$A$1:'List2'!$B$90,2))) ->  | T90: =IF(ISBLANK(S90),"",IF(VALUE(S90)>89,1,VLOOKUP(VALUE(S90),List2!$A$1:'List2'!$B$90,2))) ->  | V90: =IF(ISBLANK(U90),"",IF(VALUE(U90)>89,1,VLOOKUP(VALUE(U90),List2!$A$1:'List2'!$B$90,2))) ->  | X90: =IF(ISBLANK(W90),"",IF(VALUE(W90)>89,1,VLOOKUP(VALUE(W90),List2!$A$1:'List2'!$B$90,2))) ->  | Z90: =IF(ISBLANK(Y90),"",IF(VALUE(Y90)>89,1,VLOOKUP(VALUE(Y90),List2!$A$1:'List2'!$B$90,2))) ->  | AB90: =IF(ISBLANK(AA90),"",IF(VALUE(AA90)>89,1,VLOOKUP(VALUE(AA90),List2!$A$1:'List2'!$B$90,2))) ->  | AD90: =IF(ISBLANK(AC90),"",IF(VALUE(AC90)>89,1,VLOOKUP(VALUE(AC90),List2!$A$1:'List2'!$B$90,2))) ->  | AF90: =IF(ISBLANK(AE90),"",IF(VALUE(AE90)>89,1,VLOOKUP(VALUE(AE90),List2!$A$1:'List2'!$B$90,2))) ->  | AH90: =IF(ISBLANK(AG90),"",IF(VALUE(AG90)>89,1,VLOOKUP(VALUE(AG90),List2!$A$1:'List2'!$B$90,2))) ->  | AJ90: =IF(ISBLANK(AI90),"",IF(VALUE(AI90)>89,1,VLOOKUP(VALUE(AI90),List2!$A$1:'List2'!$B$90,2))) ->  | AL90: =IF(ISBLANK(AK90),"",IF(VALUE(AK90)>89,1,VLOOKUP(VALUE(AK90),List2!$A$1:'List2'!$B$90,2))) ->  | AN90: =IF(ISBLANK(AM90),"",IF(VALUE(AM90)>89,1,VLOOKUP(VALUE(AM90),List2!$A$1:'List2'!$B$90,2))) ->  | AP90: 0
F91: =IF(ISBLANK(E91),"",IF(VALUE(E91)>89,1,VLOOKUP(VALUE(E91),List2!$A$1:'List2'!$B$90,2))) ->  | H91: =IF(ISBLANK(G91),"",IF(VALUE(G91)>89,1,VLOOKUP(VALUE(G91),List2!$A$1:'List2'!$B$90,2))) ->  | J91: =IF(ISBLANK(I91),"",IF(VALUE(I91)>89,1,VLOOKUP(VALUE(I91),List2!$A$1:'List2'!$B$90,2))) ->  | L91: =IF(ISBLANK(K91),"",IF(VALUE(K91)>89,1,VLOOKUP(VALUE(K91),List2!$A$1:'List2'!$B$90,2))) ->  | N91: =IF(ISBLANK(M91),"",IF(VALUE(M91)>89,1,VLOOKUP(VALUE(M91),List2!$A$1:'List2'!$B$90,2))) ->  | P91: =IF(ISBLANK(O91),"",IF(VALUE(O91)>89,1,VLOOKUP(VALUE(O91),List2!$A$1:'List2'!$B$90,2))) ->  | R91: =IF(ISBLANK(Q91),"",IF(VALUE(Q91)>89,1,VLOOKUP(VALUE(Q91),List2!$A$1:'List2'!$B$90,2))) ->  | T91: =IF(ISBLANK(S91),"",IF(VALUE(S91)>89,1,VLOOKUP(VALUE(S91),List2!$A$1:'List2'!$B$90,2))) ->  | V91: =IF(ISBLANK(U91),"",IF(VALUE(U91)>89,1,VLOOKUP(VALUE(U91),List2!$A$1:'List2'!$B$90,2))) ->  | X91: =IF(ISBLANK(W91),"",IF(VALUE(W91)>89,1,VLOOKUP(VALUE(W91),List2!$A$1:'List2'!$B$90,2))) ->  | Z91: =IF(ISBLANK(Y91),"",IF(VALUE(Y91)>89,1,VLOOKUP(VALUE(Y91),List2!$A$1:'List2'!$B$90,2))) ->  | AB91: =IF(ISBLANK(AA91),"",IF(VALUE(AA91)>89,1,VLOOKUP(VALUE(AA91),List2!$A$1:'List2'!$B$90,2))) ->  | AD91: =IF(ISBLANK(AC91),"",IF(VALUE(AC91)>89,1,VLOOKUP(VALUE(AC91),List2!$A$1:'List2'!$B$90,2))) ->  | AF91: =IF(ISBLANK(AE91),"",IF(VALUE(AE91)>89,1,VLOOKUP(VALUE(AE91),List2!$A$1:'List2'!$B$90,2))) ->  | AH91: =IF(ISBLANK(AG91),"",IF(VALUE(AG91)>89,1,VLOOKUP(VALUE(AG91),List2!$A$1:'List2'!$B$90,2))) ->  | AJ91: =IF(ISBLANK(AI91),"",IF(VALUE(AI91)>89,1,VLOOKUP(VALUE(AI91),List2!$A$1:'List2'!$B$90,2))) ->  | AL91: =IF(ISBLANK(AK91),"",IF(VALUE(AK91)>89,1,VLOOKUP(VALUE(AK91),List2!$A$1:'List2'!$B$90,2))) ->  | AN91: =IF(ISBLANK(AM91),"",IF(VALUE(AM91)>89,1,VLOOKUP(VALUE(AM91),List2!$A$1:'List2'!$B$90,2))) ->  | AP91: 0
F92: =IF(ISBLANK(E92),"",IF(VALUE(E92)>89,1,VLOOKUP(VALUE(E92),List2!$A$1:'List2'!$B$90,2))) ->  | H92: =IF(ISBLANK(G92),"",IF(VALUE(G92)>89,1,VLOOKUP(VALUE(G92),List2!$A$1:'List2'!$B$90,2))) ->  | J92: =IF(ISBLANK(I92),"",IF(VALUE(I92)>89,1,VLOOKUP(VALUE(I92),List2!$A$1:'List2'!$B$90,2))) ->  | L92: =IF(ISBLANK(K92),"",IF(VALUE(K92)>89,1,VLOOKUP(VALUE(K92),List2!$A$1:'List2'!$B$90,2))) ->  | N92: =IF(ISBLANK(M92),"",IF(VALUE(M92)>89,1,VLOOKUP(VALUE(M92),List2!$A$1:'List2'!$B$90,2))) ->  | P92: =IF(ISBLANK(O92),"",IF(VALUE(O92)>89,1,VLOOKUP(VALUE(O92),List2!$A$1:'List2'!$B$90,2))) ->  | R92: =IF(ISBLANK(Q92),"",IF(VALUE(Q92)>89,1,VLOOKUP(VALUE(Q92),List2!$A$1:'List2'!$B$90,2))) ->  | T92: =IF(ISBLANK(S92),"",IF(VALUE(S92)>89,1,VLOOKUP(VALUE(S92),List2!$A$1:'List2'!$B$90,2))) ->  | V92: =IF(ISBLANK(U92),"",IF(VALUE(U92)>89,1,VLOOKUP(VALUE(U92),List2!$A$1:'List2'!$B$90,2))) ->  | X92: =IF(ISBLANK(W92),"",IF(VALUE(W92)>89,1,VLOOKUP(VALUE(W92),List2!$A$1:'List2'!$B$90,2))) ->  | Z92: =IF(ISBLANK(Y92),"",IF(VALUE(Y92)>89,1,VLOOKUP(VALUE(Y92),List2!$A$1:'List2'!$B$90,2))) ->  | AB92: =IF(ISBLANK(AA92),"",IF(VALUE(AA92)>89,1,VLOOKUP(VALUE(AA92),List2!$A$1:'List2'!$B$90,2))) ->  | AD92: =IF(ISBLANK(AC92),"",IF(VALUE(AC92)>89,1,VLOOKUP(VALUE(AC92),List2!$A$1:'List2'!$B$90,2))) ->  | AF92: =IF(ISBLANK(AE92),"",IF(VALUE(AE92)>89,1,VLOOKUP(VALUE(AE92),List2!$A$1:'List2'!$B$90,2))) ->  | AH92: =IF(ISBLANK(AG92),"",IF(VALUE(AG92)>89,1,VLOOKUP(VALUE(AG92),List2!$A$1:'List2'!$B$90,2))) ->  | AJ92: =IF(ISBLANK(AI92),"",IF(VALUE(AI92)>89,1,VLOOKUP(VALUE(AI92),List2!$A$1:'List2'!$B$90,2))) ->  | AL92: =IF(ISBLANK(AK92),"",IF(VALUE(AK92)>89,1,VLOOKUP(VALUE(AK92),List2!$A$1:'List2'!$B$90,2))) ->  | AN92: =IF(ISBLANK(AM92),"",IF(VALUE(AM92)>89,1,VLOOKUP(VALUE(AM92),List2!$A$1:'List2'!$B$90,2))) ->  | AP92: 0
F93: =IF(ISBLANK(E93),"",IF(VALUE(E93)>89,1,VLOOKUP(VALUE(E93),List2!$A$1:'List2'!$B$90,2))) ->  | H93: =IF(ISBLANK(G93),"",IF(VALUE(G93)>89,1,VLOOKUP(VALUE(G93),List2!$A$1:'List2'!$B$90,2))) ->  | J93: =IF(ISBLANK(I93),"",IF(VALUE(I93)>89,1,VLOOKUP(VALUE(I93),List2!$A$1:'List2'!$B$90,2))) ->  | L93: =IF(ISBLANK(K93),"",IF(VALUE(K93)>89,1,VLOOKUP(VALUE(K93),List2!$A$1:'List2'!$B$90,2))) ->  | N93: =IF(ISBLANK(M93),"",IF(VALUE(M93)>89,1,VLOOKUP(VALUE(M93),List2!$A$1:'List2'!$B$90,2))) ->  | P93: =IF(ISBLANK(O93),"",IF(VALUE(O93)>89,1,VLOOKUP(VALUE(O93),List2!$A$1:'List2'!$B$90,2))) ->  | R93: =IF(ISBLANK(Q93),"",IF(VALUE(Q93)>89,1,VLOOKUP(VALUE(Q93),List2!$A$1:'List2'!$B$90,2))) ->  | T93: =IF(ISBLANK(S93),"",IF(VALUE(S93)>89,1,VLOOKUP(VALUE(S93),List2!$A$1:'List2'!$B$90,2))) ->  | V93: =IF(ISBLANK(U93),"",IF(VALUE(U93)>89,1,VLOOKUP(VALUE(U93),List2!$A$1:'List2'!$B$90,2))) ->  | X93: =IF(ISBLANK(W93),"",IF(VALUE(W93)>89,1,VLOOKUP(VALUE(W93),List2!$A$1:'List2'!$B$90,2))) ->  | Z93: =IF(ISBLANK(Y93),"",IF(VALUE(Y93)>89,1,VLOOKUP(VALUE(Y93),List2!$A$1:'List2'!$B$90,2))) ->  | AB93: =IF(ISBLANK(AA93),"",IF(VALUE(AA93)>89,1,VLOOKUP(VALUE(AA93),List2!$A$1:'List2'!$B$90,2))) ->  | AD93: =IF(ISBLANK(AC93),"",IF(VALUE(AC93)>89,1,VLOOKUP(VALUE(AC93),List2!$A$1:'List2'!$B$90,2))) ->  | AF93: =IF(ISBLANK(AE93),"",IF(VALUE(AE93)>89,1,VLOOKUP(VALUE(AE93),List2!$A$1:'List2'!$B$90,2))) ->  | AH93: =IF(ISBLANK(AG93),"",IF(VALUE(AG93)>89,1,VLOOKUP(VALUE(AG93),List2!$A$1:'List2'!$B$90,2))) ->  | AJ93: =IF(ISBLANK(AI93),"",IF(VALUE(AI93)>89,1,VLOOKUP(VALUE(AI93),List2!$A$1:'List2'!$B$90,2))) ->  | AL93: =IF(ISBLANK(AK93),"",IF(VALUE(AK93)>89,1,VLOOKUP(VALUE(AK93),List2!$A$1:'List2'!$B$90,2))) ->  | AN93: =IF(ISBLANK(AM93),"",IF(VALUE(AM93)>89,1,VLOOKUP(VALUE(AM93),List2!$A$1:'List2'!$B$90,2))) ->  | AP93: 0
F94: =IF(ISBLANK(E94),"",IF(VALUE(E94)>89,1,VLOOKUP(VALUE(E94),List2!$A$1:'List2'!$B$90,2))) ->  | H94: =IF(ISBLANK(G94),"",IF(VALUE(G94)>89,1,VLOOKUP(VALUE(G94),List2!$A$1:'List2'!$B$90,2))) ->  | J94: =IF(ISBLANK(I94),"",IF(VALUE(I94)>89,1,VLOOKUP(VALUE(I94),List2!$A$1:'List2'!$B$90,2))) ->  | L94: =IF(ISBLANK(K94),"",IF(VALUE(K94)>89,1,VLOOKUP(VALUE(K94),List2!$A$1:'List2'!$B$90,2))) ->  | N94: =IF(ISBLANK(M94),"",IF(VALUE(M94)>89,1,VLOOKUP(VALUE(M94),List2!$A$1:'List2'!$B$90,2))) ->  | P94: =IF(ISBLANK(O94),"",IF(VALUE(O94)>89,1,VLOOKUP(VALUE(O94),List2!$A$1:'List2'!$B$90,2))) ->  | R94: =IF(ISBLANK(Q94),"",IF(VALUE(Q94)>89,1,VLOOKUP(VALUE(Q94),List2!$A$1:'List2'!$B$90,2))) ->  | T94: =IF(ISBLANK(S94),"",IF(VALUE(S94)>89,1,VLOOKUP(VALUE(S94),List2!$A$1:'List2'!$B$90,2))) ->  | V94: =IF(ISBLANK(U94),"",IF(VALUE(U94)>89,1,VLOOKUP(VALUE(U94),List2!$A$1:'List2'!$B$90,2))) ->  | X94: =IF(ISBLANK(W94),"",IF(VALUE(W94)>89,1,VLOOKUP(VALUE(W94),List2!$A$1:'List2'!$B$90,2))) ->  | Z94: =IF(ISBLANK(Y94),"",IF(VALUE(Y94)>89,1,VLOOKUP(VALUE(Y94),List2!$A$1:'List2'!$B$90,2))) ->  | AB94: =IF(ISBLANK(AA94),"",IF(VALUE(AA94)>89,1,VLOOKUP(VALUE(AA94),List2!$A$1:'List2'!$B$90,2))) ->  | AD94: =IF(ISBLANK(AC94),"",IF(VALUE(AC94)>89,1,VLOOKUP(VALUE(AC94),List2!$A$1:'List2'!$B$90,2))) ->  | AF94: =IF(ISBLANK(AE94),"",IF(VALUE(AE94)>89,1,VLOOKUP(VALUE(AE94),List2!$A$1:'List2'!$B$90,2))) ->  | AH94: =IF(ISBLANK(AG94),"",IF(VALUE(AG94)>89,1,VLOOKUP(VALUE(AG94),List2!$A$1:'List2'!$B$90,2))) ->  | AJ94: =IF(ISBLANK(AI94),"",IF(VALUE(AI94)>89,1,VLOOKUP(VALUE(AI94),List2!$A$1:'List2'!$B$90,2))) ->  | AL94: =IF(ISBLANK(AK94),"",IF(VALUE(AK94)>89,1,VLOOKUP(VALUE(AK94),List2!$A$1:'List2'!$B$90,2))) ->  | AN94: =IF(ISBLANK(AM94),"",IF(VALUE(AM94)>89,1,VLOOKUP(VALUE(AM94),List2!$A$1:'List2'!$B$90,2))) ->  | AP94: 0
F95: =IF(ISBLANK(E95),"",IF(VALUE(E95)>89,1,VLOOKUP(VALUE(E95),List2!$A$1:'List2'!$B$90,2))) ->  | H95: =IF(ISBLANK(G95),"",IF(VALUE(G95)>89,1,VLOOKUP(VALUE(G95),List2!$A$1:'List2'!$B$90,2))) ->  | J95: =IF(ISBLANK(I95),"",IF(VALUE(I95)>89,1,VLOOKUP(VALUE(I95),List2!$A$1:'List2'!$B$90,2))) ->  | L95: =IF(ISBLANK(K95),"",IF(VALUE(K95)>89,1,VLOOKUP(VALUE(K95),List2!$A$1:'List2'!$B$90,2))) ->  | N95: =IF(ISBLANK(M95),"",IF(VALUE(M95)>89,1,VLOOKUP(VALUE(M95),List2!$A$1:'List2'!$B$90,2))) ->  | P95: =IF(ISBLANK(O95),"",IF(VALUE(O95)>89,1,VLOOKUP(VALUE(O95),List2!$A$1:'List2'!$B$90,2))) ->  | R95: =IF(ISBLANK(Q95),"",IF(VALUE(Q95)>89,1,VLOOKUP(VALUE(Q95),List2!$A$1:'List2'!$B$90,2))) ->  | T95: =IF(ISBLANK(S95),"",IF(VALUE(S95)>89,1,VLOOKUP(VALUE(S95),List2!$A$1:'List2'!$B$90,2))) ->  | V95: =IF(ISBLANK(U95),"",IF(VALUE(U95)>89,1,VLOOKUP(VALUE(U95),List2!$A$1:'List2'!$B$90,2))) ->  | X95: =IF(ISBLANK(W95),"",IF(VALUE(W95)>89,1,VLOOKUP(VALUE(W95),List2!$A$1:'List2'!$B$90,2))) ->  | Z95: =IF(ISBLANK(Y95),"",IF(VALUE(Y95)>89,1,VLOOKUP(VALUE(Y95),List2!$A$1:'List2'!$B$90,2))) ->  | AB95: =IF(ISBLANK(AA95),"",IF(VALUE(AA95)>89,1,VLOOKUP(VALUE(AA95),List2!$A$1:'List2'!$B$90,2))) ->  | AD95: =IF(ISBLANK(AC95),"",IF(VALUE(AC95)>89,1,VLOOKUP(VALUE(AC95),List2!$A$1:'List2'!$B$90,2))) ->  | AF95: =IF(ISBLANK(AE95),"",IF(VALUE(AE95)>89,1,VLOOKUP(VALUE(AE95),List2!$A$1:'List2'!$B$90,2))) ->  | AH95: =IF(ISBLANK(AG95),"",IF(VALUE(AG95)>89,1,VLOOKUP(VALUE(AG95),List2!$A$1:'List2'!$B$90,2))) ->  | AJ95: =IF(ISBLANK(AI95),"",IF(VALUE(AI95)>89,1,VLOOKUP(VALUE(AI95),List2!$A$1:'List2'!$B$90,2))) ->  | AL95: =IF(ISBLANK(AK95),"",IF(VALUE(AK95)>89,1,VLOOKUP(VALUE(AK95),List2!$A$1:'List2'!$B$90,2))) ->  | AN95: =IF(ISBLANK(AM95),"",IF(VALUE(AM95)>89,1,VLOOKUP(VALUE(AM95),List2!$A$1:'List2'!$B$90,2))) ->  | AP95: 0
F96: =IF(ISBLANK(E96),"",IF(VALUE(E96)>89,1,VLOOKUP(VALUE(E96),List2!$A$1:'List2'!$B$90,2))) ->  | H96: =IF(ISBLANK(G96),"",IF(VALUE(G96)>89,1,VLOOKUP(VALUE(G96),List2!$A$1:'List2'!$B$90,2))) ->  | J96: =IF(ISBLANK(I96),"",IF(VALUE(I96)>89,1,VLOOKUP(VALUE(I96),List2!$A$1:'List2'!$B$90,2))) ->  | L96: =IF(ISBLANK(K96),"",IF(VALUE(K96)>89,1,VLOOKUP(VALUE(K96),List2!$A$1:'List2'!$B$90,2))) ->  | N96: =IF(ISBLANK(M96),"",IF(VALUE(M96)>89,1,VLOOKUP(VALUE(M96),List2!$A$1:'List2'!$B$90,2))) ->  | P96: =IF(ISBLANK(O96),"",IF(VALUE(O96)>89,1,VLOOKUP(VALUE(O96),List2!$A$1:'List2'!$B$90,2))) ->  | R96: =IF(ISBLANK(Q96),"",IF(VALUE(Q96)>89,1,VLOOKUP(VALUE(Q96),List2!$A$1:'List2'!$B$90,2))) ->  | T96: =IF(ISBLANK(S96),"",IF(VALUE(S96)>89,1,VLOOKUP(VALUE(S96),List2!$A$1:'List2'!$B$90,2))) ->  | V96: =IF(ISBLANK(U96),"",IF(VALUE(U96)>89,1,VLOOKUP(VALUE(U96),List2!$A$1:'List2'!$B$90,2))) ->  | X96: =IF(ISBLANK(W96),"",IF(VALUE(W96)>89,1,VLOOKUP(VALUE(W96),List2!$A$1:'List2'!$B$90,2))) ->  | Z96: =IF(ISBLANK(Y96),"",IF(VALUE(Y96)>89,1,VLOOKUP(VALUE(Y96),List2!$A$1:'List2'!$B$90,2))) ->  | AB96: =IF(ISBLANK(AA96),"",IF(VALUE(AA96)>89,1,VLOOKUP(VALUE(AA96),List2!$A$1:'List2'!$B$90,2))) ->  | AD96: =IF(ISBLANK(AC96),"",IF(VALUE(AC96)>89,1,VLOOKUP(VALUE(AC96),List2!$A$1:'List2'!$B$90,2))) ->  | AF96: =IF(ISBLANK(AE96),"",IF(VALUE(AE96)>89,1,VLOOKUP(VALUE(AE96),List2!$A$1:'List2'!$B$90,2))) ->  | AH96: =IF(ISBLANK(AG96),"",IF(VALUE(AG96)>89,1,VLOOKUP(VALUE(AG96),List2!$A$1:'List2'!$B$90,2))) ->  | AJ96: =IF(ISBLANK(AI96),"",IF(VALUE(AI96)>89,1,VLOOKUP(VALUE(AI96),List2!$A$1:'List2'!$B$90,2))) ->  | AL96: =IF(ISBLANK(AK96),"",IF(VALUE(AK96)>89,1,VLOOKUP(VALUE(AK96),List2!$A$1:'List2'!$B$90,2))) ->  | AN96: =IF(ISBLANK(AM96),"",IF(VALUE(AM96)>89,1,VLOOKUP(VALUE(AM96),List2!$A$1:'List2'!$B$90,2))) ->  | AP96: 0
F97: =IF(ISBLANK(E97),"",IF(VALUE(E97)>89,1,VLOOKUP(VALUE(E97),List2!$A$1:'List2'!$B$90,2))) ->  | H97: =IF(ISBLANK(G97),"",IF(VALUE(G97)>89,1,VLOOKUP(VALUE(G97),List2!$A$1:'List2'!$B$90,2))) ->  | J97: =IF(ISBLANK(I97),"",IF(VALUE(I97)>89,1,VLOOKUP(VALUE(I97),List2!$A$1:'List2'!$B$90,2))) ->  | L97: =IF(ISBLANK(K97),"",IF(VALUE(K97)>89,1,VLOOKUP(VALUE(K97),List2!$A$1:'List2'!$B$90,2))) ->  | N97: =IF(ISBLANK(M97),"",IF(VALUE(M97)>89,1,VLOOKUP(VALUE(M97),List2!$A$1:'List2'!$B$90,2))) ->  | P97: =IF(ISBLANK(O97),"",IF(VALUE(O97)>89,1,VLOOKUP(VALUE(O97),List2!$A$1:'List2'!$B$90,2))) ->  | R97: =IF(ISBLANK(Q97),"",IF(VALUE(Q97)>89,1,VLOOKUP(VALUE(Q97),List2!$A$1:'List2'!$B$90,2))) ->  | T97: =IF(ISBLANK(S97),"",IF(VALUE(S97)>89,1,VLOOKUP(VALUE(S97),List2!$A$1:'List2'!$B$90,2))) ->  | V97: =IF(ISBLANK(U97),"",IF(VALUE(U97)>89,1,VLOOKUP(VALUE(U97),List2!$A$1:'List2'!$B$90,2))) ->  | X97: =IF(ISBLANK(W97),"",IF(VALUE(W97)>89,1,VLOOKUP(VALUE(W97),List2!$A$1:'List2'!$B$90,2))) ->  | Z97: =IF(ISBLANK(Y97),"",IF(VALUE(Y97)>89,1,VLOOKUP(VALUE(Y97),List2!$A$1:'List2'!$B$90,2))) ->  | AB97: =IF(ISBLANK(AA97),"",IF(VALUE(AA97)>89,1,VLOOKUP(VALUE(AA97),List2!$A$1:'List2'!$B$90,2))) ->  | AD97: =IF(ISBLANK(AC97),"",IF(VALUE(AC97)>89,1,VLOOKUP(VALUE(AC97),List2!$A$1:'List2'!$B$90,2))) ->  | AF97: =IF(ISBLANK(AE97),"",IF(VALUE(AE97)>89,1,VLOOKUP(VALUE(AE97),List2!$A$1:'List2'!$B$90,2))) ->  | AH97: =IF(ISBLANK(AG97),"",IF(VALUE(AG97)>89,1,VLOOKUP(VALUE(AG97),List2!$A$1:'List2'!$B$90,2))) ->  | AJ97: =IF(ISBLANK(AI97),"",IF(VALUE(AI97)>89,1,VLOOKUP(VALUE(AI97),List2!$A$1:'List2'!$B$90,2))) ->  | AL97: =IF(ISBLANK(AK97),"",IF(VALUE(AK97)>89,1,VLOOKUP(VALUE(AK97),List2!$A$1:'List2'!$B$90,2))) ->  | AN97: =IF(ISBLANK(AM97),"",IF(VALUE(AM97)>89,1,VLOOKUP(VALUE(AM97),List2!$A$1:'List2'!$B$90,2))) ->  | AP97: 0
F98: =IF(ISBLANK(E98),"",IF(VALUE(E98)>89,1,VLOOKUP(VALUE(E98),List2!$A$1:'List2'!$B$90,2))) ->  | H98: =IF(ISBLANK(G98),"",IF(VALUE(G98)>89,1,VLOOKUP(VALUE(G98),List2!$A$1:'List2'!$B$90,2))) ->  | J98: =IF(ISBLANK(I98),"",IF(VALUE(I98)>89,1,VLOOKUP(VALUE(I98),List2!$A$1:'List2'!$B$90,2))) ->  | L98: =IF(ISBLANK(K98),"",IF(VALUE(K98)>89,1,VLOOKUP(VALUE(K98),List2!$A$1:'List2'!$B$90,2))) ->  | N98: =IF(ISBLANK(M98),"",IF(VALUE(M98)>89,1,VLOOKUP(VALUE(M98),List2!$A$1:'List2'!$B$90,2))) ->  | P98: =IF(ISBLANK(O98),"",IF(VALUE(O98)>89,1,VLOOKUP(VALUE(O98),List2!$A$1:'List2'!$B$90,2))) ->  | R98: =IF(ISBLANK(Q98),"",IF(VALUE(Q98)>89,1,VLOOKUP(VALUE(Q98),List2!$A$1:'List2'!$B$90,2))) ->  | T98: =IF(ISBLANK(S98),"",IF(VALUE(S98)>89,1,VLOOKUP(VALUE(S98),List2!$A$1:'List2'!$B$90,2))) ->  | V98: =IF(ISBLANK(U98),"",IF(VALUE(U98)>89,1,VLOOKUP(VALUE(U98),List2!$A$1:'List2'!$B$90,2))) ->  | X98: =IF(ISBLANK(W98),"",IF(VALUE(W98)>89,1,VLOOKUP(VALUE(W98),List2!$A$1:'List2'!$B$90,2))) ->  | Z98: =IF(ISBLANK(Y98),"",IF(VALUE(Y98)>89,1,VLOOKUP(VALUE(Y98),List2!$A$1:'List2'!$B$90,2))) ->  | AB98: =IF(ISBLANK(AA98),"",IF(VALUE(AA98)>89,1,VLOOKUP(VALUE(AA98),List2!$A$1:'List2'!$B$90,2))) ->  | AD98: =IF(ISBLANK(AC98),"",IF(VALUE(AC98)>89,1,VLOOKUP(VALUE(AC98),List2!$A$1:'List2'!$B$90,2))) ->  | AF98: =IF(ISBLANK(AE98),"",IF(VALUE(AE98)>89,1,VLOOKUP(VALUE(AE98),List2!$A$1:'List2'!$B$90,2))) ->  | AH98: =IF(ISBLANK(AG98),"",IF(VALUE(AG98)>89,1,VLOOKUP(VALUE(AG98),List2!$A$1:'List2'!$B$90,2))) ->  | AJ98: =IF(ISBLANK(AI98),"",IF(VALUE(AI98)>89,1,VLOOKUP(VALUE(AI98),List2!$A$1:'List2'!$B$90,2))) ->  | AL98: =IF(ISBLANK(AK98),"",IF(VALUE(AK98)>89,1,VLOOKUP(VALUE(AK98),List2!$A$1:'List2'!$B$90,2))) ->  | AN98: =IF(ISBLANK(AM98),"",IF(VALUE(AM98)>89,1,VLOOKUP(VALUE(AM98),List2!$A$1:'List2'!$B$90,2))) ->  | AP98: 0
F99: =IF(ISBLANK(E99),"",IF(VALUE(E99)>89,1,VLOOKUP(VALUE(E99),List2!$A$1:'List2'!$B$90,2))) ->  | H99: =IF(ISBLANK(G99),"",IF(VALUE(G99)>89,1,VLOOKUP(VALUE(G99),List2!$A$1:'List2'!$B$90,2))) ->  | J99: =IF(ISBLANK(I99),"",IF(VALUE(I99)>89,1,VLOOKUP(VALUE(I99),List2!$A$1:'List2'!$B$90,2))) ->  | L99: =IF(ISBLANK(K99),"",IF(VALUE(K99)>89,1,VLOOKUP(VALUE(K99),List2!$A$1:'List2'!$B$90,2))) ->  | N99: =IF(ISBLANK(M99),"",IF(VALUE(M99)>89,1,VLOOKUP(VALUE(M99),List2!$A$1:'List2'!$B$90,2))) ->  | P99: =IF(ISBLANK(O99),"",IF(VALUE(O99)>89,1,VLOOKUP(VALUE(O99),List2!$A$1:'List2'!$B$90,2))) ->  | R99: =IF(ISBLANK(Q99),"",IF(VALUE(Q99)>89,1,VLOOKUP(VALUE(Q99),List2!$A$1:'List2'!$B$90,2))) ->  | T99: =IF(ISBLANK(S99),"",IF(VALUE(S99)>89,1,VLOOKUP(VALUE(S99),List2!$A$1:'List2'!$B$90,2))) ->  | V99: =IF(ISBLANK(U99),"",IF(VALUE(U99)>89,1,VLOOKUP(VALUE(U99),List2!$A$1:'List2'!$B$90,2))) ->  | X99: =IF(ISBLANK(W99),"",IF(VALUE(W99)>89,1,VLOOKUP(VALUE(W99),List2!$A$1:'List2'!$B$90,2))) ->  | Z99: =IF(ISBLANK(Y99),"",IF(VALUE(Y99)>89,1,VLOOKUP(VALUE(Y99),List2!$A$1:'List2'!$B$90,2))) ->  | AB99: =IF(ISBLANK(AA99),"",IF(VALUE(AA99)>89,1,VLOOKUP(VALUE(AA99),List2!$A$1:'List2'!$B$90,2))) ->  | AD99: =IF(ISBLANK(AC99),"",IF(VALUE(AC99)>89,1,VLOOKUP(VALUE(AC99),List2!$A$1:'List2'!$B$90,2))) ->  | AF99: =IF(ISBLANK(AE99),"",IF(VALUE(AE99)>89,1,VLOOKUP(VALUE(AE99),List2!$A$1:'List2'!$B$90,2))) ->  | AH99: =IF(ISBLANK(AG99),"",IF(VALUE(AG99)>89,1,VLOOKUP(VALUE(AG99),List2!$A$1:'List2'!$B$90,2))) ->  | AJ99: =IF(ISBLANK(AI99),"",IF(VALUE(AI99)>89,1,VLOOKUP(VALUE(AI99),List2!$A$1:'List2'!$B$90,2))) ->  | AL99: =IF(ISBLANK(AK99),"",IF(VALUE(AK99)>89,1,VLOOKUP(VALUE(AK99),List2!$A$1:'List2'!$B$90,2))) ->  | AN99: =IF(ISBLANK(AM99),"",IF(VALUE(AM99)>89,1,VLOOKUP(VALUE(AM99),List2!$A$1:'List2'!$B$90,2))) ->  | AP99: 0
F100: =IF(ISBLANK(E100),"",IF(VALUE(E100)>89,1,VLOOKUP(VALUE(E100),List2!$A$1:'List2'!$B$90,2))) ->  | H100: =IF(ISBLANK(G100),"",IF(VALUE(G100)>89,1,VLOOKUP(VALUE(G100),List2!$A$1:'List2'!$B$90,2))) ->  | J100: =IF(ISBLANK(I100),"",IF(VALUE(I100)>89,1,VLOOKUP(VALUE(I100),List2!$A$1:'List2'!$B$90,2))) ->  | L100: =IF(ISBLANK(K100),"",IF(VALUE(K100)>89,1,VLOOKUP(VALUE(K100),List2!$A$1:'List2'!$B$90,2))) ->  | N100: =IF(ISBLANK(M100),"",IF(VALUE(M100)>89,1,VLOOKUP(VALUE(M100),List2!$A$1:'List2'!$B$90,2))) ->  | P100: =IF(ISBLANK(O100),"",IF(VALUE(O100)>89,1,VLOOKUP(VALUE(O100),List2!$A$1:'List2'!$B$90,2))) ->  | R100: =IF(ISBLANK(Q100),"",IF(VALUE(Q100)>89,1,VLOOKUP(VALUE(Q100),List2!$A$1:'List2'!$B$90,2))) ->  | T100: =IF(ISBLANK(S100),"",IF(VALUE(S100)>89,1,VLOOKUP(VALUE(S100),List2!$A$1:'List2'!$B$90,2))) ->  | V100: =IF(ISBLANK(U100),"",IF(VALUE(U100)>89,1,VLOOKUP(VALUE(U100),List2!$A$1:'List2'!$B$90,2))) ->  | X100: =IF(ISBLANK(W100),"",IF(VALUE(W100)>89,1,VLOOKUP(VALUE(W100),List2!$A$1:'List2'!$B$90,2))) ->  | Z100: =IF(ISBLANK(Y100),"",IF(VALUE(Y100)>89,1,VLOOKUP(VALUE(Y100),List2!$A$1:'List2'!$B$90,2))) ->  | AB100: =IF(ISBLANK(AA100),"",IF(VALUE(AA100)>89,1,VLOOKUP(VALUE(AA100),List2!$A$1:'List2'!$B$90,2))) ->  | AD100: =IF(ISBLANK(AC100),"",IF(VALUE(AC100)>89,1,VLOOKUP(VALUE(AC100),List2!$A$1:'List2'!$B$90,2))) ->  | AF100: =IF(ISBLANK(AE100),"",IF(VALUE(AE100)>89,1,VLOOKUP(VALUE(AE100),List2!$A$1:'List2'!$B$90,2))) ->  | AH100: =IF(ISBLANK(AG100),"",IF(VALUE(AG100)>89,1,VLOOKUP(VALUE(AG100),List2!$A$1:'List2'!$B$90,2))) ->  | AJ100: =IF(ISBLANK(AI100),"",IF(VALUE(AI100)>89,1,VLOOKUP(VALUE(AI100),List2!$A$1:'List2'!$B$90,2))) ->  | AL100: =IF(ISBLANK(AK100),"",IF(VALUE(AK100)>89,1,VLOOKUP(VALUE(AK100),List2!$A$1:'List2'!$B$90,2))) ->  | AN100: =IF(ISBLANK(AM100),"",IF(VALUE(AM100)>89,1,VLOOKUP(VALUE(AM100),List2!$A$1:'List2'!$B$90,2))) ->  | AP100: 0
F101: =IF(ISBLANK(E101),"",IF(VALUE(E101)>89,1,VLOOKUP(VALUE(E101),List2!$A$1:'List2'!$B$90,2))) ->  | H101: =IF(ISBLANK(G101),"",IF(VALUE(G101)>89,1,VLOOKUP(VALUE(G101),List2!$A$1:'List2'!$B$90,2))) ->  | J101: =IF(ISBLANK(I101),"",IF(VALUE(I101)>89,1,VLOOKUP(VALUE(I101),List2!$A$1:'List2'!$B$90,2))) ->  | L101: =IF(ISBLANK(K101),"",IF(VALUE(K101)>89,1,VLOOKUP(VALUE(K101),List2!$A$1:'List2'!$B$90,2))) ->  | N101: =IF(ISBLANK(M101),"",IF(VALUE(M101)>89,1,VLOOKUP(VALUE(M101),List2!$A$1:'List2'!$B$90,2))) ->  | P101: =IF(ISBLANK(O101),"",IF(VALUE(O101)>89,1,VLOOKUP(VALUE(O101),List2!$A$1:'List2'!$B$90,2))) ->  | R101: =IF(ISBLANK(Q101),"",IF(VALUE(Q101)>89,1,VLOOKUP(VALUE(Q101),List2!$A$1:'List2'!$B$90,2))) ->  | T101: =IF(ISBLANK(S101),"",IF(VALUE(S101)>89,1,VLOOKUP(VALUE(S101),List2!$A$1:'List2'!$B$90,2))) ->  | V101: =IF(ISBLANK(U101),"",IF(VALUE(U101)>89,1,VLOOKUP(VALUE(U101),List2!$A$1:'List2'!$B$90,2))) ->  | X101: =IF(ISBLANK(W101),"",IF(VALUE(W101)>89,1,VLOOKUP(VALUE(W101),List2!$A$1:'List2'!$B$90,2))) ->  | Z101: =IF(ISBLANK(Y101),"",IF(VALUE(Y101)>89,1,VLOOKUP(VALUE(Y101),List2!$A$1:'List2'!$B$90,2))) ->  | AB101: =IF(ISBLANK(AA101),"",IF(VALUE(AA101)>89,1,VLOOKUP(VALUE(AA101),List2!$A$1:'List2'!$B$90,2))) ->  | AD101: =IF(ISBLANK(AC101),"",IF(VALUE(AC101)>89,1,VLOOKUP(VALUE(AC101),List2!$A$1:'List2'!$B$90,2))) ->  | AF101: =IF(ISBLANK(AE101),"",IF(VALUE(AE101)>89,1,VLOOKUP(VALUE(AE101),List2!$A$1:'List2'!$B$90,2))) ->  | AH101: =IF(ISBLANK(AG101),"",IF(VALUE(AG101)>89,1,VLOOKUP(VALUE(AG101),List2!$A$1:'List2'!$B$90,2))) ->  | AJ101: =IF(ISBLANK(AI101),"",IF(VALUE(AI101)>89,1,VLOOKUP(VALUE(AI101),List2!$A$1:'List2'!$B$90,2))) ->  | AL101: =IF(ISBLANK(AK101),"",IF(VALUE(AK101)>89,1,VLOOKUP(VALUE(AK101),List2!$A$1:'List2'!$B$90,2))) ->  | AN101: =IF(ISBLANK(AM101),"",IF(VALUE(AM101)>89,1,VLOOKUP(VALUE(AM101),List2!$A$1:'List2'!$B$90,2))) ->  | AP101: 0

Sheet List2
A1: 1 | B1: 200
A2: 2 | B2: 180
A3: 3 | B3: 170
A4: 4 | B4: 162
A5: 5 | B5: 156
A6: 6 | B6: 152
A7: 7 | B7: 148
A8: 8 | B8: 144
A9: 9 | B9: 140
A10: 10 | B10: 136
A11: 11 | B11: 133
A12: 12 | B12: 130
A13: 13 | B13: 127
A14: 14 | B14: 124
A15: 15 | B15: 121
A16: 16 | B16: 118
A17: 17 | B17: 115
A18: 18 | B18: 112
A19: 19 | B19: 109
A20: 20 | B20: 106
A21: 21 | B21: 103
A22: 22 | B22: 100
A23: 23 | B23: 97
A24: 24 | B24: 94
A25: 25 | B25: 91
A26: 26 | B26: 89
A27: 27 | B27: 87
A28: 28 | B28: 85
A29: 29 | B29: 83
A30: 30 | B30: 81
A31: 31 | B31: 79
A32: 32 | B32: 77
A33: 33 | B33: 75
A34: 34 | B34: 73
A35: 35 | B35: 71
A36: 36 | B36: 69
A37: 37 | B37: 67
A38: 38 | B38: 65
A39: 39 | B39: 63
A40: 40 | B40: 61
A41: 41 | B41: 59
A42: 42 | B42: 57
A43: 43 | B43: 55
A44: 44 | B44: 53
A45: 45 | B45: 51
A46: 46 | B46: 49
A47: 47 | B47: 47
A48: 48 | B48: 45
A49: 49 | B49: 43
A50: 50 | B50: 41
A51: 51 | B51: 40
A52: 52 | B52: 39
A53: 53 | B53: 38
A54: 54 | B54: 37
A55: 55 | B55: 36
A56: 56 | B56: 35
A57: 57 | B57: 34
A58: 58 | B58: 33
A59: 59 | B59: 32
A60: 60 | B60: 31
A61: 61 | B61: 30
A62: 62 | B62: 29
A63: 63 | B63: 28
A64: 64 | B64: 27
A65: 65 | B65: 26
A66: 66 | B66: 25
A67: 67 | B67: 24
A68: 68 | B68: 23
A69: 69 | B69: 22
A70: 70 | B70: 21
A71: 71 | B71: 20
A72: 72 | B72: 19
A73: 73 | B73: 18
A74: 74 | B74: 17
A75: 75 | B75: 16
A76: 76 | B76: 15
A77: 77 | B77: 14
A78: 78 | B78: 13
A79: 79 | B79: 12
A80: 80 | B80: 11
A81: 81 | B81: 10
A82: 82 | B82: 9
A83: 83 | B83: 8
A84: 84 | B84: 7
A85: 85 | B85: 6
A86: 86 | B86: 5
A87: 87 | B87: 4
A88: 88 | B88: 3
A89: 89 | B89: 2
A90: 90 | B90: 1

Sheet List3
